Workbook

Sheet INDICE
A1: CRUSCOTTO DELTA: ANALISI DEGLI ACQUISTI
A4: SINTESI ECONOMICA
A5: FATT. PROGR. 2022 | D5: =ACQUISTI!D5 -> 1033305.776
A6: BUDGET PROGR. TRIMEST. | D6: =IF(MONTH(TODAY())<=3,BUDGET!$U$5,IF(MONTH(TODAY())<=6,BUDGET!$V$5,IF(MONTH(TODAY())<=9,BUDGET!$W$5,BUDGET!$X$5))) -> 2099470.348
A7: Δ € BDG | D7: =D5-D6 -> -1066164.572
A8: STIMA PREMI MATURATI | D8: =SUM(PREMI!G6:G102) -> 0
A9: % SU FATTURATO | D9: =IFERROR(D8/D5,0) -> 0
A12: INDICE
A14: CAPITOLO | C14: DESCRIZIONE
A16: ACQUISTI | C16: Analisi mensile degli acquisti in accordo
A17: STAGIONALITA' | C17: Analisi della stagionalità mensile degli acquisti propri e del gruppo
A18: BUDGET | C18: Verifica dei dati di budget e degli scostamenti degli acquisti rispetto agli obiettivi
A19: PREMI | C19: Stima dei premi maturati secondo gli accordi commerciali vigenti

Sheet ACQUISTI
A1: ANALISI FATT. PROGRESSIVO 2022 | H1: ANDAMENTO MENSILE 2022 | Y1: ANDAMENTO MENSILE 2022
A4: SOCIO | B4: FORNITORE | C4: Fatt. Progr.2021 | D4: Fatt. Progr.2022 | E4: Δ € Fatt. Progr | F4: Δ % Fatt. Progr | H4: GRAFICO | I4: SOCIO | J4: FORNITORE | K4: Fatt. Progr.2022 | L4: GEN 22 | M4: FEB 22 | N4: MAR 22 | O4: APR 22 | P4: MAG 22 | Q4: GIU 22 | R4: LUG 22 | S4: AGO 22 | T4: SET 22 | U4: OTT 22 | V4: NOV 22 | W4: DIC 22 | Y4: SOCIO | Z4: FORNITORE | AA4: Fatt. Progr.2022 | AB4: Somma di GEN 21 | AC4: Somma di FEB 21 | AD4: Somma di MAR 21 | AE4: Somma di APR 21 | AF4: Somma di MAG 21 | AG4: Somma di GIU 21 | AH4: Somma di LUG 21 | AI4: Somma di AGO 21 | AJ4: Somma di SET 21 | AK4: Somma di OTT 21 | AL4: Somma di NOV 21 | AM4: Somma di DIC 21 | AN4: Somma di GEN 22 | AO4: Somma di FEB 22 | AP4: Somma di MAR 22 | AQ4: Somma di APR 22 | AR4: Somma di MAG 22 | AS4: Somma di GIU 22 | AT4: Somma di LUG 22 | AU4: Somma di AGO 22 | AV4: Somma di SET 22 | AW4: Somma di OTT 22 | AX4: Somma di NOV 22 | AY4: Somma di DIC 22 | BB4: GEN | BC4: FEB | BD4: MAR | BE4: APR | BF4: MAG | BG4: GIU | BH4: LUG | BI4: AGO | BJ4: SET | BK4: OTT | BL4: NOV | BM4: DIC
A5: RAFFAELE SpA | C5: 661942.4651 | D5: 1033305.776 | E5: 371363.3109 | F5: 0.5610205275 | I5: RAFFAELE SpA | K5: 1033305.776 | L5: 1033305.776 | Y5: RAFFAELE SpA | AA5: 1033305.776 | AB5: 661942.4651 | AN5: 1033305.776 | BA5: 2021 | BB5: =AB5 -> 661942.4651 | BC5: =AC5 -> 0 | BD5: 0 | BE5: 0 | BF5: 0 | BG5: 0 | BH5: 0 | BI5: 0 | BJ5: 0 | BK5: 0 | BL5: 0 | BM5: 0
B6: Geberit | C6: 41022.02 | D6: 149260.83 | E6: 108238.81 | F6: 2.638553879 | J6: Geberit | K6: 149260.83 | L6: 149260.83 | Z6: Albatros | AA6: 0 | BA6: 2022 | BB6: =AN5 -> 1033305.776 | BC6: =AO5 -> 0 | BD6: 0 | BE6: 0 | BF6: 0 | BG6: 0 | BH6: 0 | BI6: 0 | BJ6: 0 | BK6: 0 | BL6: 0 | BM6: 0
B7: General Fittings | C7: 28373.89739 | D7: 132901.34 | E7: 104527.4426 | F7: 3.683929675 | J7: General Fittings | K7: 132901.34 | L7: 132901.34 | Z7: Arbi arredobagno | AA7: 0
B8: Immergas | C8: 0 | D8: 124928.85 | E8: 124928.85 | J8: Immergas | K8: 124928.85 | L8: 124928.85 | Z8: Arblu | AA8: 8399.78 | AB8: 7730.32 | AN8: 8399.78
B9: Carlo Nobili | C9: 0 | D9: 84309 | E9: 84309 | J9: Carlo Nobili | K9: 84309 | L9: 84309 | Z9: Ariston | AA9: 39569.51 | AB9: 86877.25 | AN9: 39569.51
B10: Ebara | C10: 0 | D10: 75856.85 | E10: 75856.85 | J10: Ebara | K10: 75856.85 | L10: 75856.85 | Z10: Arredamenti Montegrappa | AA10: 0
B11: Ferrari | C11: 39104 | D11: 64659 | E11: 25555 | F11: 0.653513707 | J11: Ferrari | K11: 64659 | L11: 64659 | Z11: Atusa | AA11: 0
B12: LG | C12: 16720.18 | D12: 58297.91 | E12: 41577.73 | F12: 2.486679569 | J12: LG | K12: 58297.91 | L12: 58297.91 | Z12: Bernasconi | AA12: 0
B13: Ariston | C13: 86877.25 | D13: 39569.51 | E13: -47307.74 | F13: -0.5445354221 | J13: Ariston | K13: 39569.51 | L13: 39569.51 | Z13: Beza | AA13: 0
B14: Global | C14: 70949.51 | D14: 34301.5 | E14: -36648.01 | F14: -0.5165364778 | J14: Global | K14: 34301.5 | L14: 34301.5 | Z14: Bmeters | AA14: 0
B15: Bosch | C15: 3632.13 | D15: 34199.31 | E15: 30567.18 | F15: 8.415772563 | J15: Bosch | K15: 34199.31 | L15: 34199.31 | Z15: Bosch | AA15: 34199.31 | AB15: 3632.13 | AN15: 34199.31
B16: Valsir | C16: 121488 | D16: 29347 | E16: -92141 | F16: -0.7584370473 | J16: Valsir | K16: 29347 | L16: 29347 | Z16: Bossini | AA16: 0
B17: Cordivari | C17: 18382.21 | D17: 24622.4 | E17: 6240.19 | F17: 0.3394689757 | J17: Cordivari | K17: 24622.4 | L17: 24622.4 | Z17: BT-Flex | AA17: 0
B18: System Group (Sa.Mi. Plastic) | C18: 37019.78 | D18: 22329.4 | E18: -14690.38 | F18: -0.3968251567 | J18: System Group (Sa.Mi. Plastic) | K18: 22329.4 | L18: 22329.4 | Z18: Bwt/Cillichemie | AA18: 355 | AN18: 355
B19: Grohe | C19: 4860.07 | D19: 18078.07 | E19: 13218 | F19: 2.719713914 | J19: Grohe | K19: 18078.07 | L19: 18078.07 | Z19: Caleffi | AA19: 2988.57 | AB19: 3522.45 | AN19: 2988.57
B20: Raccorderie Metalliche | C20: 10410.42 | D20: 17654.93 | E20: 7244.51 | F20: 0.6958902715 | J20: Raccorderie Metalliche | K20: 17654.93 | L20: 17654.93 | Z20: Carlo Nobili | AA20: 84309 | AN20: 84309
B21: Varem | C21: 645.3 | D21: 16405.44 | E21: 15760.14 | F21: 24.42296606 | J21: Varem | K21: 16405.44 | L21: 16405.44 | Z21: Carrier | AA21: 0
B22: Va-Albertoni | C22: 9959.09 | D22: 13618.21 | E22: 3659.12 | F22: 0.3674150952 | J22: Va-Albertoni | K22: 13618.21 | L22: 13618.21 | Z22: Cordivari | AA22: 24622.4 | AB22: 18382.21 | AN22: 24622.4
B23: Neoperl | C23: 3600.07 | D23: 12866.1 | E23: 9266.03 | F23: 2.573847175 | J23: Neoperl | K23: 12866.1 | L23: 12866.1 | Z23: Dab Pumps | AA23: 0
B24: Haier | C24: 5619.72 | D24: 9225.85 | E24: 3606.13 | F24: 0.6416921128 | J24: Haier | K24: 9225.85 | L24: 9225.85 | Z24: Ebara | AA24: 75856.85 | AN24: 75856.85
B25: Thermomat Saniline | C25: 2984 | D25: 8961 | E25: 5977 | F25: 2.003016086 | J25: Thermomat Saniline | K25: 8961 | L25: 8961 | Z25: Effebi | AA25: 2452.3 | AB25: 2665.64 | AN25: 2452.3
B26: Fluidmaster | C26: 1176 | D26: 8941 | E26: 7765 | F26: 6.602891156 | J26: Fluidmaster | K26: 8941 | L26: 8941 | Z26: Enolgas | AA26: 0
B27: Arblu | C27: 7730.32 | D27: 8399.78 | E27: 669.46 | F27: 0.08660184831 | J27: Arblu | K27: 8399.78 | L27: 8399.78 | Z27: Ercos | AA27: 687 | AN27: 687
B28: Giacomini | C28: 90155.32 | D28: 7884.35 | E28: -82270.97 | F28: -0.9125470355 | J28: Giacomini | K28: 7884.35 | L28: 7884.35 | Z28: Euroacque | AA28: 4608 | AN28: 4608
B29: L'isolante K-Flex | C29: 0 | D29: 6049.43 | E29: 6049.43 | J29: L'isolante K-Flex | K29: 6049.43 | L29: 6049.43 | Z29: Eurocornici | AA29: 0
B30: Euroacque | C30: 0 | D30: 4608 | E30: 4608 | J30: Euroacque | K30: 4608 | L30: 4608 | Z30: Farg | AA30: 0
B31: Megius | C31: 792.51 | D31: 4375.8 | E31: 3583.29 | F31: 4.521444524 | J31: Megius | K31: 4375.8 | L31: 4375.8 | Z31: Ferrari | AA31: 64659 | AB31: 39104 | AN31: 64659
B32: Novellini | C32: 7384.18 | D32: 3267.23 | E32: -4116.95 | F32: -0.5575365173 | J32: Novellini | K32: 3267.23 | L32: 3267.23 | Z32: Ferroli | AA32: 0
B33: Caleffi | C33: 3522.45 | D33: 2988.57 | E33: -533.88 | F33: -0.1515649619 | J33: Caleffi | K33: 2988.57 | L33: 2988.57 | Z33: Fima Carlo Frattini | AA33: 0
B34: Paini | C34: 2388.5 | D34: 2524.73 | E34: 136.23 | F34: 0.05703579653 | J34: Paini | K34: 2524.73 | L34: 2524.73 | Z34: Fimi | AA34: 2299 | AB34: 1013.06 | AN34: 2299
B35: Effebi | C35: 2665.64 | D35: 2452.3 | E35: -213.34 | F35: -0.08003331283 | J35: Effebi | K35: 2452.3 | L35: 2452.3 | Z35: First Corporation | AA35: 459.586 | AB35: 14258.4277 | AN35: 459.586
B36: Fimi | C36: 1013.06 | D36: 2299 | E36: 1285.94 | F36: 1.269362131 | J36: Fimi | K36: 2299 | L36: 2299 | Z36: Fluidmaster | AA36: 8941 | AB36: 1176 | AN36: 8941
B37: Giuseppe Tirinnanzi | C37: 2110.06 | D37: 1849.4 | E37: -260.66 | F37: -0.1235320323 | J37: Giuseppe Tirinnanzi | K37: 1849.4 | L37: 1849.4 | Z37: Galassia | AA37: 0
B38: River | C38: 1493.77 | D38: 1642.99 | E38: 149.22 | F38: 0.0998948968 | J38: River | K38: 1642.99 | L38: 1642.99 | Z38: Galletti | AA38: 0
B39: Negrari | C39: 659.6 | D39: 1532.11 | E39: 872.51 | F39: 1.322786537 | J39: Negrari | K39: 1532.11 | L39: 1532.11 | Z39: GBD | AA39: 0
B40: Olimpia Splendid | C40: 5641 | D40: 1281 | E40: -4360 | F40: -0.7729126041 | J40: Olimpia Splendid | K40: 1281 | L40: 1281 | Z40: Geberit | AA40: 149260.83 | AB40: 41022.02 | AN40: 149260.83
B41: Ercos | C41: 0 | D41: 687 | E41: 687 | J41: Ercos | K41: 687 | L41: 687 | Z41: General d'aspirazione | AA41: 0
B42: First Corporation | C42: 14258.4277 | D42: 459.586 | E42: -13798.8417 | F42: -0.9677674138 | J42: First Corporation | K42: 459.586 | L42: 459.586 | Z42: General Fittings | AA42: 132901.34 | AB42: 28373.89739 | AN42: 132901.34
B43: Bwt/Cillichemie | C43: 0 | D43: 355 | E43: 355 | J43: Bwt/Cillichemie | K43: 355 | L43: 355 | Z43: Giacomini | AA43: 7884.35 | AB43: 90155.32 | AN43: 7884.35
B44: Rems | C44: 1302 | D44: 316 | E44: -986 | F44: -0.757296467 | J44: Rems | K44: 316 | L44: 316 | Z44: Giuseppe Tirinnanzi | AA44: 1849.4 | AB44: 2110.06 | AN44: 1849.4
B45: Tenaris Dalmine | C45: 0 | D45: 0 | E45: 0 | J45: Tenaris Dalmine | K45: 0 | Z45: Global | AA45: 34301.5 | AB45: 70949.51 | AN45: 34301.5
B46: Rubinetterie Bresciane | C46: 0 | D46: 0 | E46: 0 | J46: Rubinetterie Bresciane | K46: 0 | Z46: Griffon - Bostik | AA46: 0
B47: Eurocornici | C47: 0 | D47: 0 | E47: 0 | J47: Eurocornici | K47: 0 | Z47: Grohe | AA47: 18078.07 | AB47: 4860.07 | AN47: 18078.07
B48: Bmeters | C48: 0 | D48: 0 | E48: 0 | J48: Bmeters | K48: 0 | Z48: Gruppo Salteco | AA48: 0
B49: Griffon - Bostik | C49: 0 | D49: 0 | E49: 0 | J49: Griffon - Bostik | K49: 0 | Z49: Haier | AA49: 9225.85 | AB49: 5619.72 | AN49: 9225.85
B50: Carrier | C50: 0 | D50: 0 | E50: 0 | J50: Carrier | K50: 0 | Z50: Ibp Banninger | AA50: 0 | AB50: 9287
B51: Bossini | C51: 0 | D51: 0 | E51: 0 | J51: Bossini | K51: 0 | Z51: Ideal Standard | AA51: 0
B52: Arredamenti Montegrappa | C52: 0 | D52: 0 | E52: 0 | J52: Arredamenti Montegrappa | K52: 0 | Z52: Immergas | AA52: 124928.85 | AN52: 124928.85
B53: Gruppo Salteco | C53: 0 | D53: 0 | E53: 0 | J53: Gruppo Salteco | K53: 0 | Z53: Isoclima | AA53: 0
B54: Polieco | C54: 0 | D54: 0 | E54: 0 | J54: Polieco | K54: 0 | Z54: Italkero | AA54: 0
B55: Wilo | C55: 0 | D55: 0 | E55: 0 | J55: Wilo | K55: 0 | Z55: Itap | AA55: 0 | AB55: 4017.23
B56: Galletti | C56: 0 | D56: 0 | E56: 0 | J56: Galletti | K56: 0 | Z56: KINEDO | AA56: 0
B57: Xylem | C57: 0 | D57: 0 | E57: 0 | J57: Xylem | K57: 0 | Z57: LG | AA57: 58297.91 | AB57: 16720.18 | AN57: 58297.91
B58: Enolgas | C58: 0 | D58: 0 | E58: 0 | J58: Enolgas | K58: 0 | Z58: L'isolante K-Flex | AA58: 6049.43 | AN58: 6049.43
B59: Ideal Standard | C59: 0 | D59: 0 | E59: 0 | J59: Ideal Standard | K59: 0 | Z59: Megius | AA59: 4375.8 | AB59: 792.51 | AN59: 4375.8
B60: Tecnocontrol | C60: 0 | D60: 0 | E60: 0 | J60: Tecnocontrol | K60: 0 | Z60: Mut Meccanica Tovo | AA60: 0
B61: BT-Flex | C61: 0 | D61: 0 | E61: 0 | J61: BT-Flex | K61: 0 | Z61: Negrari | AA61: 1532.11 | AB61: 659.6 | AN61: 1532.11
B62: Tiemme Raccorderie | C62: 0 | D62: 0 | E62: 0 | J62: Tiemme Raccorderie | K62: 0 | Z62: Neoperl | AA62: 12866.1 | AB62: 3600.07 | AN62: 12866.1
B63: Isoclima | C63: 0 | D63: 0 | E63: 0 | J63: Isoclima | K63: 0 | Z63: Novellini | AA63: 3267.23 | AB63: 7384.18 | AN63: 3267.23
B64: Atusa | C64: 0 | D64: 0 | E64: 0 | J64: Atusa | K64: 0 | Z64: Olimpia Splendid | AA64: 1281 | AB64: 5641 | AN64: 1281
B65: Italkero | C65: 0 | D65: 0 | E65: 0 | J65: Italkero | K65: 0 | Z65: Omp Tea | AA65: 0 | AB65: 810.03
B66: Planus | C66: 0 | D66: 0 | E66: 0 | J66: Planus | K66: 0 | Z66: Paini | AA66: 2524.73 | AB66: 2388.5 | AN66: 2524.73
B67: Itap | C67: 4017.23 | D67: 0 | E67: -4017.23 | F67: -1 | J67: Itap | K67: 0 | Z67: Panasonic | AA67: 0
B68: Arbi arredobagno | C68: 0 | D68: 0 | E68: 0 | J68: Arbi arredobagno | K68: 0 | Z68: Planus | AA68: 0
B69: KINEDO | C69: 0 | D69: 0 | E69: 0 | J69: KINEDO | K69: 0 | Z69: Polieco | AA69: 0
B70: Beza | C70: 0 | D70: 0 | E70: 0 | J70: Beza | K70: 0 | Z70: Raccorderie Metalliche | AA70: 17654.93 | AB70: 10410.42 | AN70: 17654.93
B71: Rizzo Aquae | C71: 0 | D71: 0 | E71: 0 | J71: Rizzo Aquae | K71: 0 | Z71: Rems | AA71: 316 | AB71: 1302 | AN71: 316
B72: RM Manfredi | C72: 930.06 | D72: 0 | E72: -930.06 | F72: -1 | J72: RM Manfredi | K72: 0 | Z72: River | AA72: 1642.99 | AB72: 1493.77 | AN72: 1642.99
B73: Royo | C73: 0 | D73: 0 | E73: 0 | J73: Royo | K73: 0 | Z73: Rizzo Aquae | AA73: 0
B74: Farg | C74: 0 | D74: 0 | E74: 0 | J74: Farg | K74: 0 | Z74: RM Manfredi | AA74: 0 | AB74: 930.06
B75: Sabiana | C75: 0 | D75: 0 | E75: 0 | J75: Sabiana | K75: 0 | Z75: Royo | AA75: 0
B76: Samsung | C76: 0 | D76: 0 | E76: 0 | J76: Samsung | K76: 0 | Z76: Rubinetterie Bresciane | AA76: 0
B77: Silmet | C77: 0 | D77: 0 | E77: 0 | J77: Silmet | K77: 0 | Z77: Sabiana | AA77: 0
B78: System Group (Rototec) | C78: 2635.49 | D78: 0 | E78: -2635.49 | F78: -1 | J78: System Group (Rototec) | K78: 0 | Z78: Samsung | AA78: 0
B79: Mut Meccanica Tovo | C79: 0 | D79: 0 | E79: 0 | J79: Mut Meccanica Tovo | K79: 0 | Z79: Silmet | AA79: 0
B80: System Group (Sab) | C80: 0 | D80: 0 | E80: 0 | J80: System Group (Sab) | K80: 0 | Z80: System Group (Rototec) | AA80: 0 | AB80: 2635.49
B81: GBD | C81: 0 | D81: 0 | E81: 0 | J81: GBD | K81: 0 | Z81: System Group (Sa.Mi. Plastic) | AA81: 22329.4 | AB81: 37019.78 | AN81: 22329.4
B82: Tecnosystemi | C82: 322.17 | D82: 0 | E82: -322.17 | F82: -1 | J82: Tecnosystemi | K82: 0 | Z82: System Group (Sab) | AA82: 0
B83: Ferroli | C83: 0 | D83: 0 | E83: 0 | J83: Ferroli | K83: 0 | Z83: Tecnocontrol | AA83: 0
B84: Bernasconi | C84: 0 | D84: 0 | E84: 0 | J84: Bernasconi | K84: 0 | Z84: Tecnosystemi | AA84: 0 | AB84: 322.17
B85: Wavin | C85: 0 | D85: 0 | E85: 0 | J85: Wavin | K85: 0 | Z85: Tenaris Dalmine | AA85: 0
B86: Unidelta | C86: 0 | D86: 0 | E86: 0 | J86: Unidelta | K86: 0 | Z86: Thermomat Saniline | AA86: 8961 | AB86: 2984 | AN86: 8961
B87: Galassia | C87: 0 | D87: 0 | E87: 0 | J87: Galassia | K87: 0 | Z87: Tiemme Raccorderie | AA87: 0
B88: Dab Pumps | C88: 0 | D88: 0 | E88: 0 | J88: Dab Pumps | K88: 0 | Z88: Unidelta | AA88: 0
B89: Omp Tea | C89: 810.03 | D89: 0 | E89: -810.03 | F89: -1 | J89: Omp Tea | K89: 0 | Z89: Va-Albertoni | AA89: 13618.21 | AB89: 9959.09 | AN89: 13618.21
B90: Vortice | C90: 0 | D90: 0 | E90: 0 | J90: Vortice | K90: 0 | Z90: Valsir | AA90: 29347 | AB90: 121488 | AN90: 29347
B91: General d'aspirazione | C91: 0 | D91: 0 | E91: 0 | J91: General d'aspirazione | K91: 0 | Z91: Varem | AA91: 16405.44 | AB91: 645.3 | AN91: 16405.44
B92: Panasonic | C92: 0 | D92: 0 | E92: 0 | J92: Panasonic | K92: 0 | Z92: Vortice | AA92: 0
B93: Fima Carlo Frattini | C93: 0 | D93: 0 | E93: 0 | J93: Fima Carlo Frattini | K93: 0 | Z93: Wavin | AA93: 0
B94: Albatros | C94: 0 | D94: 0 | E94: 0 | J94: Albatros | K94: 0 | Z94: Wilo | AA94: 0
B95: Ibp Banninger | C95: 9287 | D95: 0 | E95: -9287 | F95: -1 | J95: Ibp Banninger | K95: 0 | Z95: Xylem | AA95: 0
A96: Totale complessivo | C96: 661942.4651 | D96: 1033305.776 | E96: 371363.3109 | F96: 0.5610205275 | I96: Totale complessivo | K96: 1033305.776 | L96: 1033305.776 | Y96: Totale complessivo | AA96: 1033305.776 | AB96: 661942.4651 | AN96: 1033305.776

Sheet BUDGET
O1: BUDGET ANNUALE DEGLI ACQUISTI
A2: BUDGET MENSILE DEGLI ACQUISTI
A3: FORNITORE | B3: GEN 22 | C3: FEB 22 | D3: MAR 22 | E3: APR 22 | F3: MAG 22 | G3: GIU 22 | H3: LUG 22 | I3: AGO 22 | J3: SET 22 | K3: OTT 22 | L3: NOV 22 | M3: DIC 22 | O3: FORNITORE | P3: BUDGET 2022 | U3: GEN-MAR | V3: APR-GIU | W3: LUG-SET | X3: OTT-DIC
A4: =IF(O4=0,"",O4) -> Geberit | B4: =IFERROR(VLOOKUP(A4,STAGIONALITA!$A$3:$M$105,2,FALSE)*P4,"") -> 55658.65495 | C4: =IFERROR(VLOOKUP(A4,STAGIONALITA!$A$3:$M$105,3,FALSE)*P4,"") -> 83623.41935 | D4: =IFERROR(VLOOKUP(A4,STAGIONALITA!$A$3:$M$105,4,FALSE)*P4,"") -> 86504.88552 | E4: =IFERROR(VLOOKUP(A4,STAGIONALITA!$A$3:$M$105,5,FALSE)*P4,"") -> 62180.10877 | F4: =IFERROR(VLOOKUP(A4,STAGIONALITA!$A$3:$M$105,6,FALSE)*P4,"") -> 61699.71465 | G4: =IFERROR(VLOOKUP(A4,STAGIONALITA!$A$3:$M$105,7,FALSE)*P4,"") -> 77431.49471 | H4: =IFERROR(VLOOKUP(A4,STAGIONALITA!$A$3:$M$105,8,FALSE)*P4,"") -> 69474.4094 | I4: =IFERROR(VLOOKUP(A4,STAGIONALITA!$A$3:$M$105,9,FALSE)*P4,"") -> 33940.22643 | J4: =IFERROR(VLOOKUP(A4,STAGIONALITA!$A$3:$M$105,10,FALSE)*P4,"") -> 56722.98114 | K4: =IFERROR(VLOOKUP(A4,STAGIONALITA!$A$3:$M$105,11,FALSE)*P4,"") -> 82940.21333 | L4: =IFERROR(VLOOKUP(A4,STAGIONALITA!$A$3:$M$105,12,FALSE)*P4,"") -> 88873.76484 | M4: =IFERROR(VLOOKUP(A4,STAGIONALITA!$A$3:$M$105,13,FALSE)*P4,"") -> 40950.12692 | O4: Geberit | P4: 800000 | T4: ACQUISTI | U4: =ACQUISTI!L5+ACQUISTI!M5+ACQUISTI!N5 -> 1033305.776 | V4: =U4+ACQUISTI!O5+ACQUISTI!P5+ACQUISTI!Q5 -> 1033305.776 | W4: =V4+ACQUISTI!R5+ACQUISTI!S5+ACQUISTI!T5 -> 1033305.776 | X4: =W4+ACQUISTI!U5+ACQUISTI!V5+ACQUISTI!W5 -> 1033305.776
A5: Immergas | B5: =IFERROR(VLOOKUP(A5,STAGIONALITA!$A$3:$M$105,2,FALSE)*P5,"") -> 32120.64405 | C5: =IFERROR(VLOOKUP(A5,STAGIONALITA!$A$3:$M$105,3,FALSE)*P5,"") -> 59954.89798 | D5: =IFERROR(VLOOKUP(A5,STAGIONALITA!$A$3:$M$105,4,FALSE)*P5,"") -> 77271.77418 | E5: =IFERROR(VLOOKUP(A5,STAGIONALITA!$A$3:$M$105,5,FALSE)*P5,"") -> 46900.38347 | F5: =IFERROR(VLOOKUP(A5,STAGIONALITA!$A$3:$M$105,6,FALSE)*P5,"") -> 42674.15989 | G5: =IFERROR(VLOOKUP(A5,STAGIONALITA!$A$3:$M$105,7,FALSE)*P5,"") -> 71249.68756 | H5: =IFERROR(VLOOKUP(A5,STAGIONALITA!$A$3:$M$105,8,FALSE)*P5,"") -> 37486.14419 | I5: =IFERROR(VLOOKUP(A5,STAGIONALITA!$A$3:$M$105,9,FALSE)*P5,"") -> 8997.670713 | J5: =IFERROR(VLOOKUP(A5,STAGIONALITA!$A$3:$M$105,10,FALSE)*P5,"") -> 80218.56797 | K5: =IFERROR(VLOOKUP(A5,STAGIONALITA!$A$3:$M$105,11,FALSE)*P5,"") -> 92838.52107 | L5: =IFERROR(VLOOKUP(A5,STAGIONALITA!$A$3:$M$105,12,FALSE)*P5,"") -> 134776.9295 | M5: =IFERROR(VLOOKUP(A5,STAGIONALITA!$A$3:$M$105,13,FALSE)*P5,"") -> 65510.61948 | O5: Immergas | P5: 750000 | T5: BUDGET | U5: =SUM(B4:D106) -> 2099470.348 | V5: =U5+SUM(E4:G106) -> 4076555.736 | W5: =V5+SUM(H4:J106) -> 5653930.667 | X5: =W5+SUM(K4:M106) -> 7596000
A6: Ariston | B6: =IFERROR(VLOOKUP(A6,STAGIONALITA!$A$3:$M$105,2,FALSE)*P6,"") -> 42476.0649 | C6: =IFERROR(VLOOKUP(A6,STAGIONALITA!$A$3:$M$105,3,FALSE)*P6,"") -> 64757.74819 | D6: =IFERROR(VLOOKUP(A6,STAGIONALITA!$A$3:$M$105,4,FALSE)*P6,"") -> 51381.92168 | E6: =IFERROR(VLOOKUP(A6,STAGIONALITA!$A$3:$M$105,5,FALSE)*P6,"") -> 52158.34812 | F6: =IFERROR(VLOOKUP(A6,STAGIONALITA!$A$3:$M$105,6,FALSE)*P6,"") -> 49557.01245 | G6: =IFERROR(VLOOKUP(A6,STAGIONALITA!$A$3:$M$105,7,FALSE)*P6,"") -> 55626.06555 | H6: =IFERROR(VLOOKUP(A6,STAGIONALITA!$A$3:$M$105,8,FALSE)*P6,"") -> 46512.76494 | I6: =IFERROR(VLOOKUP(A6,STAGIONALITA!$A$3:$M$105,9,FALSE)*P6,"") -> 7499.096354 | J6: =IFERROR(VLOOKUP(A6,STAGIONALITA!$A$3:$M$105,10,FALSE)*P6,"") -> 43630.71456 | K6: =IFERROR(VLOOKUP(A6,STAGIONALITA!$A$3:$M$105,11,FALSE)*P6,"") -> 54099.45952 | L6: =IFERROR(VLOOKUP(A6,STAGIONALITA!$A$3:$M$105,12,FALSE)*P6,"") -> 32417.86301 | M6: =IFERROR(VLOOKUP(A6,STAGIONALITA!$A$3:$M$105,13,FALSE)*P6,"") -> 29882.94074 | O6: Ariston | P6: 530000 | T6: Δ € | U6: =U4-U5 -> -1066164.572 | V6: =V4-V5 -> -3043249.96 | W6: =W4-W5 -> -4620624.891 | X6: =X4-X5 -> -6562694.224
A7: Giacomini | B7: =IFERROR(VLOOKUP(A7,STAGIONALITA!$A$3:$M$105,2,FALSE)*P7,"") -> 44302.19763 | C7: =IFERROR(VLOOKUP(A7,STAGIONALITA!$A$3:$M$105,3,FALSE)*P7,"") -> 33842.84307 | D7: =IFERROR(VLOOKUP(A7,STAGIONALITA!$A$3:$M$105,4,FALSE)*P7,"") -> 68887.13683 | E7: =IFERROR(VLOOKUP(A7,STAGIONALITA!$A$3:$M$105,5,FALSE)*P7,"") -> 33100.7328 | F7: =IFERROR(VLOOKUP(A7,STAGIONALITA!$A$3:$M$105,6,FALSE)*P7,"") -> 34681.02136 | G7: =IFERROR(VLOOKUP(A7,STAGIONALITA!$A$3:$M$105,7,FALSE)*P7,"") -> 47708.33722 | H7: =IFERROR(VLOOKUP(A7,STAGIONALITA!$A$3:$M$105,8,FALSE)*P7,"") -> 46781.0395 | I7: =IFERROR(VLOOKUP(A7,STAGIONALITA!$A$3:$M$105,9,FALSE)*P7,"") -> 13520.358 | J7: =IFERROR(VLOOKUP(A7,STAGIONALITA!$A$3:$M$105,10,FALSE)*P7,"") -> 28435.13688 | K7: =IFERROR(VLOOKUP(A7,STAGIONALITA!$A$3:$M$105,11,FALSE)*P7,"") -> 51034.36566 | L7: =IFERROR(VLOOKUP(A7,STAGIONALITA!$A$3:$M$105,12,FALSE)*P7,"") -> 44097.30255 | M7: =IFERROR(VLOOKUP(A7,STAGIONALITA!$A$3:$M$105,13,FALSE)*P7,"") -> 33609.5285 | O7: Giacomini | P7: 480000
A8: Valsir | B8: =IFERROR(VLOOKUP(A8,STAGIONALITA!$A$3:$M$105,2,FALSE)*P8,"") -> 45803.002 | C8: =IFERROR(VLOOKUP(A8,STAGIONALITA!$A$3:$M$105,3,FALSE)*P8,"") -> 39107.63178 | D8: =IFERROR(VLOOKUP(A8,STAGIONALITA!$A$3:$M$105,4,FALSE)*P8,"") -> 58792.2934 | E8: =IFERROR(VLOOKUP(A8,STAGIONALITA!$A$3:$M$105,5,FALSE)*P8,"") -> 33032.59193 | F8: =IFERROR(VLOOKUP(A8,STAGIONALITA!$A$3:$M$105,6,FALSE)*P8,"") -> 38556.09745 | G8: =IFERROR(VLOOKUP(A8,STAGIONALITA!$A$3:$M$105,7,FALSE)*P8,"") -> 41306.60631 | H8: =IFERROR(VLOOKUP(A8,STAGIONALITA!$A$3:$M$105,8,FALSE)*P8,"") -> 42971.87018 | I8: =IFERROR(VLOOKUP(A8,STAGIONALITA!$A$3:$M$105,9,FALSE)*P8,"") -> 5573.311855 | J8: =IFERROR(VLOOKUP(A8,STAGIONALITA!$A$3:$M$105,10,FALSE)*P8,"") -> 39823.24383 | K8: =IFERROR(VLOOKUP(A8,STAGIONALITA!$A$3:$M$105,11,FALSE)*P8,"") -> 47609.6892 | L8: =IFERROR(VLOOKUP(A8,STAGIONALITA!$A$3:$M$105,12,FALSE)*P8,"") -> 29580.96317 | M8: =IFERROR(VLOOKUP(A8,STAGIONALITA!$A$3:$M$105,13,FALSE)*P8,"") -> 27842.69888 | O8: Valsir | P8: 450000
A9: General Fittings | B9: =IFERROR(VLOOKUP(A9,STAGIONALITA!$A$3:$M$105,2,FALSE)*P9,"") -> 0 | C9: =IFERROR(VLOOKUP(A9,STAGIONALITA!$A$3:$M$105,3,FALSE)*P9,"") -> 109443.0628 | D9: =IFERROR(VLOOKUP(A9,STAGIONALITA!$A$3:$M$105,4,FALSE)*P9,"") -> 18522.67653 | E9: =IFERROR(VLOOKUP(A9,STAGIONALITA!$A$3:$M$105,5,FALSE)*P9,"") -> 25693.52177 | F9: =IFERROR(VLOOKUP(A9,STAGIONALITA!$A$3:$M$105,6,FALSE)*P9,"") -> 37538.71666 | G9: =IFERROR(VLOOKUP(A9,STAGIONALITA!$A$3:$M$105,7,FALSE)*P9,"") -> 27811.08849 | H9: =IFERROR(VLOOKUP(A9,STAGIONALITA!$A$3:$M$105,8,FALSE)*P9,"") -> 0 | I9: =IFERROR(VLOOKUP(A9,STAGIONALITA!$A$3:$M$105,9,FALSE)*P9,"") -> 29796.42422 | J9: =IFERROR(VLOOKUP(A9,STAGIONALITA!$A$3:$M$105,10,FALSE)*P9,"") -> 45454.65108 | K9: =IFERROR(VLOOKUP(A9,STAGIONALITA!$A$3:$M$105,11,FALSE)*P9,"") -> 29658.50332 | L9: =IFERROR(VLOOKUP(A9,STAGIONALITA!$A$3:$M$105,12,FALSE)*P9,"") -> 11163.06122 | M9: =IFERROR(VLOOKUP(A9,STAGIONALITA!$A$3:$M$105,13,FALSE)*P9,"") -> 14918.29396 | O9: General Fittings | P9: 350000
A10: Bosch | B10: =IFERROR(VLOOKUP(A10,STAGIONALITA!$A$3:$M$105,2,FALSE)*P10,"") -> 24738.92101 | C10: =IFERROR(VLOOKUP(A10,STAGIONALITA!$A$3:$M$105,3,FALSE)*P10,"") -> 16938.4863 | D10: =IFERROR(VLOOKUP(A10,STAGIONALITA!$A$3:$M$105,4,FALSE)*P10,"") -> 32256.85857 | E10: =IFERROR(VLOOKUP(A10,STAGIONALITA!$A$3:$M$105,5,FALSE)*P10,"") -> 36900.92466 | F10: =IFERROR(VLOOKUP(A10,STAGIONALITA!$A$3:$M$105,6,FALSE)*P10,"") -> 24405.42541 | G10: =IFERROR(VLOOKUP(A10,STAGIONALITA!$A$3:$M$105,7,FALSE)*P10,"") -> 19076.5965 | H10: =IFERROR(VLOOKUP(A10,STAGIONALITA!$A$3:$M$105,8,FALSE)*P10,"") -> 25472.73359 | I10: =IFERROR(VLOOKUP(A10,STAGIONALITA!$A$3:$M$105,9,FALSE)*P10,"") -> 4512.450165 | J10: =IFERROR(VLOOKUP(A10,STAGIONALITA!$A$3:$M$105,10,FALSE)*P10,"") -> 33851.10846 | K10: =IFERROR(VLOOKUP(A10,STAGIONALITA!$A$3:$M$105,11,FALSE)*P10,"") -> 76759.7071 | L10: =IFERROR(VLOOKUP(A10,STAGIONALITA!$A$3:$M$105,12,FALSE)*P10,"") -> 27387.41465 | M10: =IFERROR(VLOOKUP(A10,STAGIONALITA!$A$3:$M$105,13,FALSE)*P10,"") -> 17699.37359 | O10: Bosch | P10: 340000
A11: Haier | B11: =IFERROR(VLOOKUP(A11,STAGIONALITA!$A$3:$M$105,2,FALSE)*P11,"") -> 0 | C11: =IFERROR(VLOOKUP(A11,STAGIONALITA!$A$3:$M$105,3,FALSE)*P11,"") -> 29224.23637 | D11: =IFERROR(VLOOKUP(A11,STAGIONALITA!$A$3:$M$105,4,FALSE)*P11,"") -> 45563.26823 | E11: =IFERROR(VLOOKUP(A11,STAGIONALITA!$A$3:$M$105,5,FALSE)*P11,"") -> 51326.19835 | F11: =IFERROR(VLOOKUP(A11,STAGIONALITA!$A$3:$M$105,6,FALSE)*P11,"") -> 80536.2811 | G11: =IFERROR(VLOOKUP(A11,STAGIONALITA!$A$3:$M$105,7,FALSE)*P11,"") -> 10590.05281 | H11: =IFERROR(VLOOKUP(A11,STAGIONALITA!$A$3:$M$105,8,FALSE)*P11,"") -> 61793.79742 | I11: =IFERROR(VLOOKUP(A11,STAGIONALITA!$A$3:$M$105,9,FALSE)*P11,"") -> 25608.85909 | J11: =IFERROR(VLOOKUP(A11,STAGIONALITA!$A$3:$M$105,10,FALSE)*P11,"") -> 6687.355005 | K11: =IFERROR(VLOOKUP(A11,STAGIONALITA!$A$3:$M$105,11,FALSE)*P11,"") -> -1963.79205 | L11: =IFERROR(VLOOKUP(A11,STAGIONALITA!$A$3:$M$105,12,FALSE)*P11,"") -> 15698.87509 | M11: =IFERROR(VLOOKUP(A11,STAGIONALITA!$A$3:$M$105,13,FALSE)*P11,"") -> 4934.868592 | O11: Haier | P11: 330000
A12: LG | B12: =IFERROR(VLOOKUP(A12,STAGIONALITA!$A$3:$M$105,2,FALSE)*P12,"") -> 0 | C12: =IFERROR(VLOOKUP(A12,STAGIONALITA!$A$3:$M$105,3,FALSE)*P12,"") -> 58547.71732 | D12: =IFERROR(VLOOKUP(A12,STAGIONALITA!$A$3:$M$105,4,FALSE)*P12,"") -> 10886.71667 | E12: =IFERROR(VLOOKUP(A12,STAGIONALITA!$A$3:$M$105,5,FALSE)*P12,"") -> 19703.26412 | F12: =IFERROR(VLOOKUP(A12,STAGIONALITA!$A$3:$M$105,6,FALSE)*P12,"") -> 7182.476268 | G12: =IFERROR(VLOOKUP(A12,STAGIONALITA!$A$3:$M$105,7,FALSE)*P12,"") -> 19467.45334 | H12: =IFERROR(VLOOKUP(A12,STAGIONALITA!$A$3:$M$105,8,FALSE)*P12,"") -> 48680.17588 | I12: =IFERROR(VLOOKUP(A12,STAGIONALITA!$A$3:$M$105,9,FALSE)*P12,"") -> 29139.21989 | J12: =IFERROR(VLOOKUP(A12,STAGIONALITA!$A$3:$M$105,10,FALSE)*P12,"") -> 30594.7057 | K12: =IFERROR(VLOOKUP(A12,STAGIONALITA!$A$3:$M$105,11,FALSE)*P12,"") -> 20047.9964 | L12: =IFERROR(VLOOKUP(A12,STAGIONALITA!$A$3:$M$105,12,FALSE)*P12,"") -> 24565.76222 | M12: =IFERROR(VLOOKUP(A12,STAGIONALITA!$A$3:$M$105,13,FALSE)*P12,"") -> 31184.5122 | O12: LG | P12: 300000
A13: Cordivari | B13: =IFERROR(VLOOKUP(A13,STAGIONALITA!$A$3:$M$105,2,FALSE)*P13,"") -> 13301.50797 | C13: =IFERROR(VLOOKUP(A13,STAGIONALITA!$A$3:$M$105,3,FALSE)*P13,"") -> 18538.43531 | D13: =IFERROR(VLOOKUP(A13,STAGIONALITA!$A$3:$M$105,4,FALSE)*P13,"") -> 23988.84913 | E13: =IFERROR(VLOOKUP(A13,STAGIONALITA!$A$3:$M$105,5,FALSE)*P13,"") -> 24630.05341 | F13: =IFERROR(VLOOKUP(A13,STAGIONALITA!$A$3:$M$105,6,FALSE)*P13,"") -> 23288.05971 | G13: =IFERROR(VLOOKUP(A13,STAGIONALITA!$A$3:$M$105,7,FALSE)*P13,"") -> 24290.22009 | H13: =IFERROR(VLOOKUP(A13,STAGIONALITA!$A$3:$M$105,8,FALSE)*P13,"") -> 27954.77794 | I13: =IFERROR(VLOOKUP(A13,STAGIONALITA!$A$3:$M$105,9,FALSE)*P13,"") -> 12811.64345 | J13: =IFERROR(VLOOKUP(A13,STAGIONALITA!$A$3:$M$105,10,FALSE)*P13,"") -> 22311.6781 | K13: =IFERROR(VLOOKUP(A13,STAGIONALITA!$A$3:$M$105,11,FALSE)*P13,"") -> 28120.47076 | L13: =IFERROR(VLOOKUP(A13,STAGIONALITA!$A$3:$M$105,12,FALSE)*P13,"") -> 37428.91309 | M13: =IFERROR(VLOOKUP(A13,STAGIONALITA!$A$3:$M$105,13,FALSE)*P13,"") -> 23335.39103 | O13: Cordivari | P13: 280000
A14: Ebara | B14: =IFERROR(VLOOKUP(A14,STAGIONALITA!$A$3:$M$105,2,FALSE)*P14,"") -> 0 | C14: =IFERROR(VLOOKUP(A14,STAGIONALITA!$A$3:$M$105,3,FALSE)*P14,"") -> 41827.58766 | D14: =IFERROR(VLOOKUP(A14,STAGIONALITA!$A$3:$M$105,4,FALSE)*P14,"") -> 26084.29846 | E14: =IFERROR(VLOOKUP(A14,STAGIONALITA!$A$3:$M$105,5,FALSE)*P14,"") -> 19652.6239 | F14: =IFERROR(VLOOKUP(A14,STAGIONALITA!$A$3:$M$105,6,FALSE)*P14,"") -> 12640.04022 | G14: =IFERROR(VLOOKUP(A14,STAGIONALITA!$A$3:$M$105,7,FALSE)*P14,"") -> 29132.20981 | H14: =IFERROR(VLOOKUP(A14,STAGIONALITA!$A$3:$M$105,8,FALSE)*P14,"") -> 31712.71151 | I14: =IFERROR(VLOOKUP(A14,STAGIONALITA!$A$3:$M$105,9,FALSE)*P14,"") -> 6621.930156 | J14: =IFERROR(VLOOKUP(A14,STAGIONALITA!$A$3:$M$105,10,FALSE)*P14,"") -> 14337.03629 | K14: =IFERROR(VLOOKUP(A14,STAGIONALITA!$A$3:$M$105,11,FALSE)*P14,"") -> 18474.72222 | L14: =IFERROR(VLOOKUP(A14,STAGIONALITA!$A$3:$M$105,12,FALSE)*P14,"") -> 19732.10526 | M14: =IFERROR(VLOOKUP(A14,STAGIONALITA!$A$3:$M$105,13,FALSE)*P14,"") -> 9784.734509 | O14: Ebara | P14: 230000
A15: Carlo Nobili | B15: =IFERROR(VLOOKUP(A15,STAGIONALITA!$A$3:$M$105,2,FALSE)*P15,"") -> 7828.546053 | C15: =IFERROR(VLOOKUP(A15,STAGIONALITA!$A$3:$M$105,3,FALSE)*P15,"") -> 55261.72996 | D15: =IFERROR(VLOOKUP(A15,STAGIONALITA!$A$3:$M$105,4,FALSE)*P15,"") -> 9783.395895 | E15: =IFERROR(VLOOKUP(A15,STAGIONALITA!$A$3:$M$105,5,FALSE)*P15,"") -> 8626.848393 | F15: =IFERROR(VLOOKUP(A15,STAGIONALITA!$A$3:$M$105,6,FALSE)*P15,"") -> 23451.08401 | G15: =IFERROR(VLOOKUP(A15,STAGIONALITA!$A$3:$M$105,7,FALSE)*P15,"") -> 15560.54376 | H15: =IFERROR(VLOOKUP(A15,STAGIONALITA!$A$3:$M$105,8,FALSE)*P15,"") -> 24762.61701 | I15: =IFERROR(VLOOKUP(A15,STAGIONALITA!$A$3:$M$105,9,FALSE)*P15,"") -> 9258.477806 | J15: =IFERROR(VLOOKUP(A15,STAGIONALITA!$A$3:$M$105,10,FALSE)*P15,"") -> 26693.58384 | K15: =IFERROR(VLOOKUP(A15,STAGIONALITA!$A$3:$M$105,11,FALSE)*P15,"") -> 7051.077829 | L15: =IFERROR(VLOOKUP(A15,STAGIONALITA!$A$3:$M$105,12,FALSE)*P15,"") -> 30066.16986 | M15: =IFERROR(VLOOKUP(A15,STAGIONALITA!$A$3:$M$105,13,FALSE)*P15,"") -> 11655.92557 | O15: Carlo Nobili | P15: 230000
A16: Global | B16: =IFERROR(VLOOKUP(A16,STAGIONALITA!$A$3:$M$105,2,FALSE)*P16,"") -> 25559.64446 | C16: =IFERROR(VLOOKUP(A16,STAGIONALITA!$A$3:$M$105,3,FALSE)*P16,"") -> 17190.43379 | D16: =IFERROR(VLOOKUP(A16,STAGIONALITA!$A$3:$M$105,4,FALSE)*P16,"") -> 22791.71838 | E16: =IFERROR(VLOOKUP(A16,STAGIONALITA!$A$3:$M$105,5,FALSE)*P16,"") -> 17902.33454 | F16: =IFERROR(VLOOKUP(A16,STAGIONALITA!$A$3:$M$105,6,FALSE)*P16,"") -> 8742.743196 | G16: =IFERROR(VLOOKUP(A16,STAGIONALITA!$A$3:$M$105,7,FALSE)*P16,"") -> 19564.1837 | H16: =IFERROR(VLOOKUP(A16,STAGIONALITA!$A$3:$M$105,8,FALSE)*P16,"") -> 3461.447132 | I16: =IFERROR(VLOOKUP(A16,STAGIONALITA!$A$3:$M$105,9,FALSE)*P16,"") -> 2425.38743 | J16: =IFERROR(VLOOKUP(A16,STAGIONALITA!$A$3:$M$105,10,FALSE)*P16,"") -> 15332.94537 | K16: =IFERROR(VLOOKUP(A16,STAGIONALITA!$A$3:$M$105,11,FALSE)*P16,"") -> 11618.23932 | L16: =IFERROR(VLOOKUP(A16,STAGIONALITA!$A$3:$M$105,12,FALSE)*P16,"") -> 43197.74426 | M16: =IFERROR(VLOOKUP(A16,STAGIONALITA!$A$3:$M$105,13,FALSE)*P16,"") -> 12213.17842 | O16: Global | P16: 200000
A17: Novellini | B17: =IFERROR(VLOOKUP(A17,STAGIONALITA!$A$3:$M$105,2,FALSE)*P17,"") -> 9949.811741 | C17: =IFERROR(VLOOKUP(A17,STAGIONALITA!$A$3:$M$105,3,FALSE)*P17,"") -> 11801.29881 | D17: =IFERROR(VLOOKUP(A17,STAGIONALITA!$A$3:$M$105,4,FALSE)*P17,"") -> 11280.13518 | E17: =IFERROR(VLOOKUP(A17,STAGIONALITA!$A$3:$M$105,5,FALSE)*P17,"") -> 17081.72623 | F17: =IFERROR(VLOOKUP(A17,STAGIONALITA!$A$3:$M$105,6,FALSE)*P17,"") -> 13378.75883 | G17: =IFERROR(VLOOKUP(A17,STAGIONALITA!$A$3:$M$105,7,FALSE)*P17,"") -> 19099.306 | H17: =IFERROR(VLOOKUP(A17,STAGIONALITA!$A$3:$M$105,8,FALSE)*P17,"") -> 18274.87796 | I17: =IFERROR(VLOOKUP(A17,STAGIONALITA!$A$3:$M$105,9,FALSE)*P17,"") -> 5102.811188 | J17: =IFERROR(VLOOKUP(A17,STAGIONALITA!$A$3:$M$105,10,FALSE)*P17,"") -> 10819.8156 | K17: =IFERROR(VLOOKUP(A17,STAGIONALITA!$A$3:$M$105,11,FALSE)*P17,"") -> 15273.76426 | L17: =IFERROR(VLOOKUP(A17,STAGIONALITA!$A$3:$M$105,12,FALSE)*P17,"") -> 18751.87256 | M17: =IFERROR(VLOOKUP(A17,STAGIONALITA!$A$3:$M$105,13,FALSE)*P17,"") -> 9185.821642 | O17: Novellini | P17: 160000
A18: System Group (Sa.Mi. Plastic) | B18: =IFERROR(VLOOKUP(A18,STAGIONALITA!$A$3:$M$105,2,FALSE)*P18,"") -> 16321.1111 | C18: =IFERROR(VLOOKUP(A18,STAGIONALITA!$A$3:$M$105,3,FALSE)*P18,"") -> 20811.87533 | D18: =IFERROR(VLOOKUP(A18,STAGIONALITA!$A$3:$M$105,4,FALSE)*P18,"") -> 10938.97026 | E18: =IFERROR(VLOOKUP(A18,STAGIONALITA!$A$3:$M$105,5,FALSE)*P18,"") -> 17185.02113 | F18: =IFERROR(VLOOKUP(A18,STAGIONALITA!$A$3:$M$105,6,FALSE)*P18,"") -> 11717.93502 | G18: =IFERROR(VLOOKUP(A18,STAGIONALITA!$A$3:$M$105,7,FALSE)*P18,"") -> 9314.343311 | H18: =IFERROR(VLOOKUP(A18,STAGIONALITA!$A$3:$M$105,8,FALSE)*P18,"") -> 9833.086197 | I18: =IFERROR(VLOOKUP(A18,STAGIONALITA!$A$3:$M$105,9,FALSE)*P18,"") -> 2941.316026 | J18: =IFERROR(VLOOKUP(A18,STAGIONALITA!$A$3:$M$105,10,FALSE)*P18,"") -> 22596.50217 | K18: =IFERROR(VLOOKUP(A18,STAGIONALITA!$A$3:$M$105,11,FALSE)*P18,"") -> 12862.80629 | L18: =IFERROR(VLOOKUP(A18,STAGIONALITA!$A$3:$M$105,12,FALSE)*P18,"") -> 15701.78385 | M18: =IFERROR(VLOOKUP(A18,STAGIONALITA!$A$3:$M$105,13,FALSE)*P18,"") -> 9775.249325 | O18: System Group (Sa.Mi. Plastic) | P18: 160000
A19: Paini | B19: =IFERROR(VLOOKUP(A19,STAGIONALITA!$A$3:$M$105,2,FALSE)*P19,"") -> 2370.131691 | C19: =IFERROR(VLOOKUP(A19,STAGIONALITA!$A$3:$M$105,3,FALSE)*P19,"") -> 74183.76066 | D19: =IFERROR(VLOOKUP(A19,STAGIONALITA!$A$3:$M$105,4,FALSE)*P19,"") -> 17935.6018 | E19: =IFERROR(VLOOKUP(A19,STAGIONALITA!$A$3:$M$105,5,FALSE)*P19,"") -> 4404.128593 | F19: =IFERROR(VLOOKUP(A19,STAGIONALITA!$A$3:$M$105,6,FALSE)*P19,"") -> 6385.233409 | G19: =IFERROR(VLOOKUP(A19,STAGIONALITA!$A$3:$M$105,7,FALSE)*P19,"") -> 5573.069845 | H19: =IFERROR(VLOOKUP(A19,STAGIONALITA!$A$3:$M$105,8,FALSE)*P19,"") -> 7399.300116 | I19: =IFERROR(VLOOKUP(A19,STAGIONALITA!$A$3:$M$105,9,FALSE)*P19,"") -> 0 | J19: =IFERROR(VLOOKUP(A19,STAGIONALITA!$A$3:$M$105,10,FALSE)*P19,"") -> 7210.285585 | K19: =IFERROR(VLOOKUP(A19,STAGIONALITA!$A$3:$M$105,11,FALSE)*P19,"") -> 8056.367871 | L19: =IFERROR(VLOOKUP(A19,STAGIONALITA!$A$3:$M$105,12,FALSE)*P19,"") -> 10826.49911 | M19: =IFERROR(VLOOKUP(A19,STAGIONALITA!$A$3:$M$105,13,FALSE)*P19,"") -> 5655.621327 | O19: Paini | P19: 150000
A20: Ferrari | B20: =IFERROR(VLOOKUP(A20,STAGIONALITA!$A$3:$M$105,2,FALSE)*P20,"") -> 14282.11784 | C20: =IFERROR(VLOOKUP(A20,STAGIONALITA!$A$3:$M$105,3,FALSE)*P20,"") -> 10819.44579 | D20: =IFERROR(VLOOKUP(A20,STAGIONALITA!$A$3:$M$105,4,FALSE)*P20,"") -> 13143.28061 | E20: =IFERROR(VLOOKUP(A20,STAGIONALITA!$A$3:$M$105,5,FALSE)*P20,"") -> 11108.9917 | F20: =IFERROR(VLOOKUP(A20,STAGIONALITA!$A$3:$M$105,6,FALSE)*P20,"") -> 7348.929462 | G20: =IFERROR(VLOOKUP(A20,STAGIONALITA!$A$3:$M$105,7,FALSE)*P20,"") -> 12238.54459 | H20: =IFERROR(VLOOKUP(A20,STAGIONALITA!$A$3:$M$105,8,FALSE)*P20,"") -> 17363.30602 | I20: =IFERROR(VLOOKUP(A20,STAGIONALITA!$A$3:$M$105,9,FALSE)*P20,"") -> 3162.170872 | J20: =IFERROR(VLOOKUP(A20,STAGIONALITA!$A$3:$M$105,10,FALSE)*P20,"") -> 12286.24223 | K20: =IFERROR(VLOOKUP(A20,STAGIONALITA!$A$3:$M$105,11,FALSE)*P20,"") -> 16373.35226 | L20: =IFERROR(VLOOKUP(A20,STAGIONALITA!$A$3:$M$105,12,FALSE)*P20,"") -> 10142.88675 | M20: =IFERROR(VLOOKUP(A20,STAGIONALITA!$A$3:$M$105,13,FALSE)*P20,"") -> 11730.73188 | O20: Ferrari | P20: 140000
A21: Effebi | B21: =IFERROR(VLOOKUP(A21,STAGIONALITA!$A$3:$M$105,2,FALSE)*P21,"") -> 0 | C21: =IFERROR(VLOOKUP(A21,STAGIONALITA!$A$3:$M$105,3,FALSE)*P21,"") -> 26268.66634 | D21: =IFERROR(VLOOKUP(A21,STAGIONALITA!$A$3:$M$105,4,FALSE)*P21,"") -> 10794.71055 | E21: =IFERROR(VLOOKUP(A21,STAGIONALITA!$A$3:$M$105,5,FALSE)*P21,"") -> 2504.006684 | F21: =IFERROR(VLOOKUP(A21,STAGIONALITA!$A$3:$M$105,6,FALSE)*P21,"") -> 5728.808219 | G21: =IFERROR(VLOOKUP(A21,STAGIONALITA!$A$3:$M$105,7,FALSE)*P21,"") -> 23879.84546 | H21: =IFERROR(VLOOKUP(A21,STAGIONALITA!$A$3:$M$105,8,FALSE)*P21,"") -> 15510.88851 | I21: =IFERROR(VLOOKUP(A21,STAGIONALITA!$A$3:$M$105,9,FALSE)*P21,"") -> 1710.405609 | J21: =IFERROR(VLOOKUP(A21,STAGIONALITA!$A$3:$M$105,10,FALSE)*P21,"") -> 6511.309618 | K21: =IFERROR(VLOOKUP(A21,STAGIONALITA!$A$3:$M$105,11,FALSE)*P21,"") -> 11221.97084 | L21: =IFERROR(VLOOKUP(A21,STAGIONALITA!$A$3:$M$105,12,FALSE)*P21,"") -> 7588.209874 | M21: =IFERROR(VLOOKUP(A21,STAGIONALITA!$A$3:$M$105,13,FALSE)*P21,"") -> 8281.178302 | O21: Effebi | P21: 120000
A22: First Corporation | B22: =IFERROR(VLOOKUP(A22,STAGIONALITA!$A$3:$M$105,2,FALSE)*P22,"") -> 0 | C22: =IFERROR(VLOOKUP(A22,STAGIONALITA!$A$3:$M$105,3,FALSE)*P22,"") -> 18516.66781 | D22: =IFERROR(VLOOKUP(A22,STAGIONALITA!$A$3:$M$105,4,FALSE)*P22,"") -> 11710.99929 | E22: =IFERROR(VLOOKUP(A22,STAGIONALITA!$A$3:$M$105,5,FALSE)*P22,"") -> 14857.76792 | F22: =IFERROR(VLOOKUP(A22,STAGIONALITA!$A$3:$M$105,6,FALSE)*P22,"") -> 19643.08985 | G22: =IFERROR(VLOOKUP(A22,STAGIONALITA!$A$3:$M$105,7,FALSE)*P22,"") -> 5798.343936 | H22: =IFERROR(VLOOKUP(A22,STAGIONALITA!$A$3:$M$105,8,FALSE)*P22,"") -> 7322.666455 | I22: =IFERROR(VLOOKUP(A22,STAGIONALITA!$A$3:$M$105,9,FALSE)*P22,"") -> 4252.0294 | J22: =IFERROR(VLOOKUP(A22,STAGIONALITA!$A$3:$M$105,10,FALSE)*P22,"") -> 8613.952314 | K22: =IFERROR(VLOOKUP(A22,STAGIONALITA!$A$3:$M$105,11,FALSE)*P22,"") -> 8307.737606 | L22: =IFERROR(VLOOKUP(A22,STAGIONALITA!$A$3:$M$105,12,FALSE)*P22,"") -> 3681.419316 | M22: =IFERROR(VLOOKUP(A22,STAGIONALITA!$A$3:$M$105,13,FALSE)*P22,"") -> 7295.326099 | O22: First Corporation | P22: 110000
A23: Arblu | B23: =IFERROR(VLOOKUP(A23,STAGIONALITA!$A$3:$M$105,2,FALSE)*P23,"") -> 4600.901203 | C23: =IFERROR(VLOOKUP(A23,STAGIONALITA!$A$3:$M$105,3,FALSE)*P23,"") -> 7686.378418 | D23: =IFERROR(VLOOKUP(A23,STAGIONALITA!$A$3:$M$105,4,FALSE)*P23,"") -> 12503.78446 | E23: =IFERROR(VLOOKUP(A23,STAGIONALITA!$A$3:$M$105,5,FALSE)*P23,"") -> 11322.63406 | F23: =IFERROR(VLOOKUP(A23,STAGIONALITA!$A$3:$M$105,6,FALSE)*P23,"") -> 8332.340829 | G23: =IFERROR(VLOOKUP(A23,STAGIONALITA!$A$3:$M$105,7,FALSE)*P23,"") -> 11540.62395 | H23: =IFERROR(VLOOKUP(A23,STAGIONALITA!$A$3:$M$105,8,FALSE)*P23,"") -> 12940.95056 | I23: =IFERROR(VLOOKUP(A23,STAGIONALITA!$A$3:$M$105,9,FALSE)*P23,"") -> 2565.386954 | J23: =IFERROR(VLOOKUP(A23,STAGIONALITA!$A$3:$M$105,10,FALSE)*P23,"") -> 11171.68431 | K23: =IFERROR(VLOOKUP(A23,STAGIONALITA!$A$3:$M$105,11,FALSE)*P23,"") -> 7806.614246 | L23: =IFERROR(VLOOKUP(A23,STAGIONALITA!$A$3:$M$105,12,FALSE)*P23,"") -> 9165.237556 | M23: =IFERROR(VLOOKUP(A23,STAGIONALITA!$A$3:$M$105,13,FALSE)*P23,"") -> 10363.46345 | O23: Arblu | P23: 110000
A24: Galletti | B24: =IFERROR(VLOOKUP(A24,STAGIONALITA!$A$3:$M$105,2,FALSE)*P24,"") -> 0 | C24: =IFERROR(VLOOKUP(A24,STAGIONALITA!$A$3:$M$105,3,FALSE)*P24,"") -> 17651.35994 | D24: =IFERROR(VLOOKUP(A24,STAGIONALITA!$A$3:$M$105,4,FALSE)*P24,"") -> 2343.77195 | E24: =IFERROR(VLOOKUP(A24,STAGIONALITA!$A$3:$M$105,5,FALSE)*P24,"") -> 40117.04929 | F24: =IFERROR(VLOOKUP(A24,STAGIONALITA!$A$3:$M$105,6,FALSE)*P24,"") -> 1822.95758 | G24: =IFERROR(VLOOKUP(A24,STAGIONALITA!$A$3:$M$105,7,FALSE)*P24,"") -> 1439.027048 | H24: =IFERROR(VLOOKUP(A24,STAGIONALITA!$A$3:$M$105,8,FALSE)*P24,"") -> 7420.064204 | I24: =IFERROR(VLOOKUP(A24,STAGIONALITA!$A$3:$M$105,9,FALSE)*P24,"") -> 910.9809148 | J24: =IFERROR(VLOOKUP(A24,STAGIONALITA!$A$3:$M$105,10,FALSE)*P24,"") -> 6922.61812 | K24: =IFERROR(VLOOKUP(A24,STAGIONALITA!$A$3:$M$105,11,FALSE)*P24,"") -> 7305.757416 | L24: =IFERROR(VLOOKUP(A24,STAGIONALITA!$A$3:$M$105,12,FALSE)*P24,"") -> 14662.52274 | M24: =IFERROR(VLOOKUP(A24,STAGIONALITA!$A$3:$M$105,13,FALSE)*P24,"") -> 9403.890803 | O24: Galletti | P24: 110000
A25: Raccorderie Metalliche | B25: =IFERROR(VLOOKUP(A25,STAGIONALITA!$A$3:$M$105,2,FALSE)*P25,"") -> 7498.345988 | C25: =IFERROR(VLOOKUP(A25,STAGIONALITA!$A$3:$M$105,3,FALSE)*P25,"") -> 6092.866996 | D25: =IFERROR(VLOOKUP(A25,STAGIONALITA!$A$3:$M$105,4,FALSE)*P25,"") -> 11972.3913 | E25: =IFERROR(VLOOKUP(A25,STAGIONALITA!$A$3:$M$105,5,FALSE)*P25,"") -> 9378.281617 | F25: =IFERROR(VLOOKUP(A25,STAGIONALITA!$A$3:$M$105,6,FALSE)*P25,"") -> 8796.945483 | G25: =IFERROR(VLOOKUP(A25,STAGIONALITA!$A$3:$M$105,7,FALSE)*P25,"") -> 12410.83993 | H25: =IFERROR(VLOOKUP(A25,STAGIONALITA!$A$3:$M$105,8,FALSE)*P25,"") -> 11512.24541 | I25: =IFERROR(VLOOKUP(A25,STAGIONALITA!$A$3:$M$105,9,FALSE)*P25,"") -> 3430.628425 | J25: =IFERROR(VLOOKUP(A25,STAGIONALITA!$A$3:$M$105,10,FALSE)*P25,"") -> 5978.071603 | K25: =IFERROR(VLOOKUP(A25,STAGIONALITA!$A$3:$M$105,11,FALSE)*P25,"") -> 10081.87049 | L25: =IFERROR(VLOOKUP(A25,STAGIONALITA!$A$3:$M$105,12,FALSE)*P25,"") -> 7025.16683 | M25: =IFERROR(VLOOKUP(A25,STAGIONALITA!$A$3:$M$105,13,FALSE)*P25,"") -> 5822.345938 | O25: Raccorderie Metalliche | P25: 100000
A26: System Group (Rototec) | B26: =IFERROR(VLOOKUP(A26,STAGIONALITA!$A$3:$M$105,2,FALSE)*P26,"") -> 6568.228189 | C26: =IFERROR(VLOOKUP(A26,STAGIONALITA!$A$3:$M$105,3,FALSE)*P26,"") -> 0 | D26: =IFERROR(VLOOKUP(A26,STAGIONALITA!$A$3:$M$105,4,FALSE)*P26,"") -> 11104.55727 | E26: =IFERROR(VLOOKUP(A26,STAGIONALITA!$A$3:$M$105,5,FALSE)*P26,"") -> 11958.02228 | F26: =IFERROR(VLOOKUP(A26,STAGIONALITA!$A$3:$M$105,6,FALSE)*P26,"") -> 12139.52006 | G26: =IFERROR(VLOOKUP(A26,STAGIONALITA!$A$3:$M$105,7,FALSE)*P26,"") -> 20874.67743 | H26: =IFERROR(VLOOKUP(A26,STAGIONALITA!$A$3:$M$105,8,FALSE)*P26,"") -> 11922.46495 | I26: =IFERROR(VLOOKUP(A26,STAGIONALITA!$A$3:$M$105,9,FALSE)*P26,"") -> 4418.873152 | J26: =IFERROR(VLOOKUP(A26,STAGIONALITA!$A$3:$M$105,10,FALSE)*P26,"") -> 7872.886697 | K26: =IFERROR(VLOOKUP(A26,STAGIONALITA!$A$3:$M$105,11,FALSE)*P26,"") -> 2350.97049 | L26: =IFERROR(VLOOKUP(A26,STAGIONALITA!$A$3:$M$105,12,FALSE)*P26,"") -> 9207.271752 | M26: =IFERROR(VLOOKUP(A26,STAGIONALITA!$A$3:$M$105,13,FALSE)*P26,"") -> 1582.527722 | O26: System Group (Rototec) | P26: 100000
A27: Ibp Banninger | B27: =IFERROR(VLOOKUP(A27,STAGIONALITA!$A$3:$M$105,2,FALSE)*P27,"") -> 9508.425099 | C27: =IFERROR(VLOOKUP(A27,STAGIONALITA!$A$3:$M$105,3,FALSE)*P27,"") -> 6961.318888 | D27: =IFERROR(VLOOKUP(A27,STAGIONALITA!$A$3:$M$105,4,FALSE)*P27,"") -> 9810.957323 | E27: =IFERROR(VLOOKUP(A27,STAGIONALITA!$A$3:$M$105,5,FALSE)*P27,"") -> 12657.56622 | F27: =IFERROR(VLOOKUP(A27,STAGIONALITA!$A$3:$M$105,6,FALSE)*P27,"") -> 8442.606313 | G27: =IFERROR(VLOOKUP(A27,STAGIONALITA!$A$3:$M$105,7,FALSE)*P27,"") -> 8596.620319 | H27: =IFERROR(VLOOKUP(A27,STAGIONALITA!$A$3:$M$105,8,FALSE)*P27,"") -> 10355.09489 | I27: =IFERROR(VLOOKUP(A27,STAGIONALITA!$A$3:$M$105,9,FALSE)*P27,"") -> 3131.406678 | J27: =IFERROR(VLOOKUP(A27,STAGIONALITA!$A$3:$M$105,10,FALSE)*P27,"") -> 9961.179336 | K27: =IFERROR(VLOOKUP(A27,STAGIONALITA!$A$3:$M$105,11,FALSE)*P27,"") -> 8027.377448 | L27: =IFERROR(VLOOKUP(A27,STAGIONALITA!$A$3:$M$105,12,FALSE)*P27,"") -> 7595.148686 | M27: =IFERROR(VLOOKUP(A27,STAGIONALITA!$A$3:$M$105,13,FALSE)*P27,"") -> 4952.298792 | O27: Ibp Banninger | P27: 100000
A28: Grohe | B28: =IFERROR(VLOOKUP(A28,STAGIONALITA!$A$3:$M$105,2,FALSE)*P28,"") -> 5059.177308 | C28: =IFERROR(VLOOKUP(A28,STAGIONALITA!$A$3:$M$105,3,FALSE)*P28,"") -> 10439.83476 | D28: =IFERROR(VLOOKUP(A28,STAGIONALITA!$A$3:$M$105,4,FALSE)*P28,"") -> 5377.349429 | E28: =IFERROR(VLOOKUP(A28,STAGIONALITA!$A$3:$M$105,5,FALSE)*P28,"") -> 5182.175793 | F28: =IFERROR(VLOOKUP(A28,STAGIONALITA!$A$3:$M$105,6,FALSE)*P28,"") -> 2931.213293 | G28: =IFERROR(VLOOKUP(A28,STAGIONALITA!$A$3:$M$105,7,FALSE)*P28,"") -> 10051.89333 | H28: =IFERROR(VLOOKUP(A28,STAGIONALITA!$A$3:$M$105,8,FALSE)*P28,"") -> 4449.297288 | I28: =IFERROR(VLOOKUP(A28,STAGIONALITA!$A$3:$M$105,9,FALSE)*P28,"") -> 2024.813696 | J28: =IFERROR(VLOOKUP(A28,STAGIONALITA!$A$3:$M$105,10,FALSE)*P28,"") -> 7750.188693 | K28: =IFERROR(VLOOKUP(A28,STAGIONALITA!$A$3:$M$105,11,FALSE)*P28,"") -> 25143.08874 | L28: =IFERROR(VLOOKUP(A28,STAGIONALITA!$A$3:$M$105,12,FALSE)*P28,"") -> 7475.01191 | M28: =IFERROR(VLOOKUP(A28,STAGIONALITA!$A$3:$M$105,13,FALSE)*P28,"") -> 14115.95575 | O28: Grohe | P28: 100000
A29: Neoperl | B29: =IFERROR(VLOOKUP(A29,STAGIONALITA!$A$3:$M$105,2,FALSE)*P29,"") -> 4723.091725 | C29: =IFERROR(VLOOKUP(A29,STAGIONALITA!$A$3:$M$105,3,FALSE)*P29,"") -> 5819.760925 | D29: =IFERROR(VLOOKUP(A29,STAGIONALITA!$A$3:$M$105,4,FALSE)*P29,"") -> 4024.507218 | E29: =IFERROR(VLOOKUP(A29,STAGIONALITA!$A$3:$M$105,5,FALSE)*P29,"") -> 6388.77366 | F29: =IFERROR(VLOOKUP(A29,STAGIONALITA!$A$3:$M$105,6,FALSE)*P29,"") -> 6314.17218 | G29: =IFERROR(VLOOKUP(A29,STAGIONALITA!$A$3:$M$105,7,FALSE)*P29,"") -> 5347.032727 | H29: =IFERROR(VLOOKUP(A29,STAGIONALITA!$A$3:$M$105,8,FALSE)*P29,"") -> 4768.284742 | I29: =IFERROR(VLOOKUP(A29,STAGIONALITA!$A$3:$M$105,9,FALSE)*P29,"") -> 2684.728711 | J29: =IFERROR(VLOOKUP(A29,STAGIONALITA!$A$3:$M$105,10,FALSE)*P29,"") -> 5367.951894 | K29: =IFERROR(VLOOKUP(A29,STAGIONALITA!$A$3:$M$105,11,FALSE)*P29,"") -> 6505.418663 | L29: =IFERROR(VLOOKUP(A29,STAGIONALITA!$A$3:$M$105,12,FALSE)*P29,"") -> 4915.205926 | M29: =IFERROR(VLOOKUP(A29,STAGIONALITA!$A$3:$M$105,13,FALSE)*P29,"") -> 3141.071629 | O29: Neoperl | P29: 60000
A30: Itap | B30: =IFERROR(VLOOKUP(A30,STAGIONALITA!$A$3:$M$105,2,FALSE)*P30,"") -> 3864.560138 | C30: =IFERROR(VLOOKUP(A30,STAGIONALITA!$A$3:$M$105,3,FALSE)*P30,"") -> 4234.047271 | D30: =IFERROR(VLOOKUP(A30,STAGIONALITA!$A$3:$M$105,4,FALSE)*P30,"") -> 9314.358484 | E30: =IFERROR(VLOOKUP(A30,STAGIONALITA!$A$3:$M$105,5,FALSE)*P30,"") -> 2979.450766 | F30: =IFERROR(VLOOKUP(A30,STAGIONALITA!$A$3:$M$105,6,FALSE)*P30,"") -> 8508.288273 | G30: =IFERROR(VLOOKUP(A30,STAGIONALITA!$A$3:$M$105,7,FALSE)*P30,"") -> 4487.886024 | H30: =IFERROR(VLOOKUP(A30,STAGIONALITA!$A$3:$M$105,8,FALSE)*P30,"") -> 2626.042674 | I30: =IFERROR(VLOOKUP(A30,STAGIONALITA!$A$3:$M$105,9,FALSE)*P30,"") -> 0 | J30: =IFERROR(VLOOKUP(A30,STAGIONALITA!$A$3:$M$105,10,FALSE)*P30,"") -> 5539.571697 | K30: =IFERROR(VLOOKUP(A30,STAGIONALITA!$A$3:$M$105,11,FALSE)*P30,"") -> 8013.250377 | L30: =IFERROR(VLOOKUP(A30,STAGIONALITA!$A$3:$M$105,12,FALSE)*P30,"") -> 5477.543976 | M30: =IFERROR(VLOOKUP(A30,STAGIONALITA!$A$3:$M$105,13,FALSE)*P30,"") -> 4955.000321 | O30: Itap | P30: 60000
A31: Va-Albertoni | B31: =IFERROR(VLOOKUP(A31,STAGIONALITA!$A$3:$M$105,2,FALSE)*P31,"") -> 4745.83056 | C31: =IFERROR(VLOOKUP(A31,STAGIONALITA!$A$3:$M$105,3,FALSE)*P31,"") -> 6335.964076 | D31: =IFERROR(VLOOKUP(A31,STAGIONALITA!$A$3:$M$105,4,FALSE)*P31,"") -> 4577.899368 | E31: =IFERROR(VLOOKUP(A31,STAGIONALITA!$A$3:$M$105,5,FALSE)*P31,"") -> 9038.796811 | F31: =IFERROR(VLOOKUP(A31,STAGIONALITA!$A$3:$M$105,6,FALSE)*P31,"") -> 6303.130534 | G31: =IFERROR(VLOOKUP(A31,STAGIONALITA!$A$3:$M$105,7,FALSE)*P31,"") -> 3917.369615 | H31: =IFERROR(VLOOKUP(A31,STAGIONALITA!$A$3:$M$105,8,FALSE)*P31,"") -> 5489.42828 | I31: =IFERROR(VLOOKUP(A31,STAGIONALITA!$A$3:$M$105,9,FALSE)*P31,"") -> 5799.623244 | J31: =IFERROR(VLOOKUP(A31,STAGIONALITA!$A$3:$M$105,10,FALSE)*P31,"") -> 4012.112724 | K31: =IFERROR(VLOOKUP(A31,STAGIONALITA!$A$3:$M$105,11,FALSE)*P31,"") -> 5383.174047 | L31: =IFERROR(VLOOKUP(A31,STAGIONALITA!$A$3:$M$105,12,FALSE)*P31,"") -> 1285.276612 | M31: =IFERROR(VLOOKUP(A31,STAGIONALITA!$A$3:$M$105,13,FALSE)*P31,"") -> 3111.394129 | O31: Va-Albertoni | P31: 60000
A32: Ercos | B32: =IFERROR(VLOOKUP(A32,STAGIONALITA!$A$3:$M$105,2,FALSE)*P32,"") -> 3550.813473 | C32: =IFERROR(VLOOKUP(A32,STAGIONALITA!$A$3:$M$105,3,FALSE)*P32,"") -> 4557.080029 | D32: =IFERROR(VLOOKUP(A32,STAGIONALITA!$A$3:$M$105,4,FALSE)*P32,"") -> 6478.947476 | E32: =IFERROR(VLOOKUP(A32,STAGIONALITA!$A$3:$M$105,5,FALSE)*P32,"") -> 7469.211731 | F32: =IFERROR(VLOOKUP(A32,STAGIONALITA!$A$3:$M$105,6,FALSE)*P32,"") -> 5149.08875 | G32: =IFERROR(VLOOKUP(A32,STAGIONALITA!$A$3:$M$105,7,FALSE)*P32,"") -> 3959.457771 | H32: =IFERROR(VLOOKUP(A32,STAGIONALITA!$A$3:$M$105,8,FALSE)*P32,"") -> 6078.868424 | I32: =IFERROR(VLOOKUP(A32,STAGIONALITA!$A$3:$M$105,9,FALSE)*P32,"") -> 0 | J32: =IFERROR(VLOOKUP(A32,STAGIONALITA!$A$3:$M$105,10,FALSE)*P32,"") -> 7146.95733 | K32: =IFERROR(VLOOKUP(A32,STAGIONALITA!$A$3:$M$105,11,FALSE)*P32,"") -> 4325.182802 | L32: =IFERROR(VLOOKUP(A32,STAGIONALITA!$A$3:$M$105,12,FALSE)*P32,"") -> 4445.254897 | M32: =IFERROR(VLOOKUP(A32,STAGIONALITA!$A$3:$M$105,13,FALSE)*P32,"") -> 1839.137317 | O32: Ercos | P32: 55000
A33: Thermomat Saniline | B33: =IFERROR(VLOOKUP(A33,STAGIONALITA!$A$3:$M$105,2,FALSE)*P33,"") -> 3849.516188 | C33: =IFERROR(VLOOKUP(A33,STAGIONALITA!$A$3:$M$105,3,FALSE)*P33,"") -> 4768.330751 | D33: =IFERROR(VLOOKUP(A33,STAGIONALITA!$A$3:$M$105,4,FALSE)*P33,"") -> 7930.662702 | E33: =IFERROR(VLOOKUP(A33,STAGIONALITA!$A$3:$M$105,5,FALSE)*P33,"") -> 7966.199332 | F33: =IFERROR(VLOOKUP(A33,STAGIONALITA!$A$3:$M$105,6,FALSE)*P33,"") -> 4325.193252 | G33: =IFERROR(VLOOKUP(A33,STAGIONALITA!$A$3:$M$105,7,FALSE)*P33,"") -> 2350.983582 | H33: =IFERROR(VLOOKUP(A33,STAGIONALITA!$A$3:$M$105,8,FALSE)*P33,"") -> 5750.083684 | I33: =IFERROR(VLOOKUP(A33,STAGIONALITA!$A$3:$M$105,9,FALSE)*P33,"") -> 734.2809768 | J33: =IFERROR(VLOOKUP(A33,STAGIONALITA!$A$3:$M$105,10,FALSE)*P33,"") -> 6805.050639 | K33: =IFERROR(VLOOKUP(A33,STAGIONALITA!$A$3:$M$105,11,FALSE)*P33,"") -> 3473.170428 | L33: =IFERROR(VLOOKUP(A33,STAGIONALITA!$A$3:$M$105,12,FALSE)*P33,"") -> 3061.288037 | M33: =IFERROR(VLOOKUP(A33,STAGIONALITA!$A$3:$M$105,13,FALSE)*P33,"") -> 3985.240427 | O33: Thermomat Saniline | P33: 55000
A34: L'isolante K-Flex | B34: =IFERROR(VLOOKUP(A34,STAGIONALITA!$A$3:$M$105,2,FALSE)*P34,"") -> 1620.450363 | C34: =IFERROR(VLOOKUP(A34,STAGIONALITA!$A$3:$M$105,3,FALSE)*P34,"") -> 3377.705621 | D34: =IFERROR(VLOOKUP(A34,STAGIONALITA!$A$3:$M$105,4,FALSE)*P34,"") -> 5353.105312 | E34: =IFERROR(VLOOKUP(A34,STAGIONALITA!$A$3:$M$105,5,FALSE)*P34,"") -> 4251.457963 | F34: =IFERROR(VLOOKUP(A34,STAGIONALITA!$A$3:$M$105,6,FALSE)*P34,"") -> 3400.090043 | G34: =IFERROR(VLOOKUP(A34,STAGIONALITA!$A$3:$M$105,7,FALSE)*P34,"") -> 6081.012349 | H34: =IFERROR(VLOOKUP(A34,STAGIONALITA!$A$3:$M$105,8,FALSE)*P34,"") -> 5021.884039 | I34: =IFERROR(VLOOKUP(A34,STAGIONALITA!$A$3:$M$105,9,FALSE)*P34,"") -> 1733.663555 | J34: =IFERROR(VLOOKUP(A34,STAGIONALITA!$A$3:$M$105,10,FALSE)*P34,"") -> 4934.770856 | K34: =IFERROR(VLOOKUP(A34,STAGIONALITA!$A$3:$M$105,11,FALSE)*P34,"") -> 8588.451121 | L34: =IFERROR(VLOOKUP(A34,STAGIONALITA!$A$3:$M$105,12,FALSE)*P34,"") -> 3214.556419 | M34: =IFERROR(VLOOKUP(A34,STAGIONALITA!$A$3:$M$105,13,FALSE)*P34,"") -> 2422.852359 | O34: L'isolante K-Flex | P34: 50000
A35: Rainbox | B35: =IFERROR(VLOOKUP(A35,STAGIONALITA!$A$3:$M$105,2,FALSE)*P35,"") -> 3838.923664 | C35: =IFERROR(VLOOKUP(A35,STAGIONALITA!$A$3:$M$105,3,FALSE)*P35,"") -> 3282.105035 | D35: =IFERROR(VLOOKUP(A35,STAGIONALITA!$A$3:$M$105,4,FALSE)*P35,"") -> 4021.495217 | E35: =IFERROR(VLOOKUP(A35,STAGIONALITA!$A$3:$M$105,5,FALSE)*P35,"") -> 5773.886855 | F35: =IFERROR(VLOOKUP(A35,STAGIONALITA!$A$3:$M$105,6,FALSE)*P35,"") -> 7387.750482 | G35: =IFERROR(VLOOKUP(A35,STAGIONALITA!$A$3:$M$105,7,FALSE)*P35,"") -> 4000.334632 | H35: =IFERROR(VLOOKUP(A35,STAGIONALITA!$A$3:$M$105,8,FALSE)*P35,"") -> 9330.833432 | I35: =IFERROR(VLOOKUP(A35,STAGIONALITA!$A$3:$M$105,9,FALSE)*P35,"") -> 2497.441046 | J35: =IFERROR(VLOOKUP(A35,STAGIONALITA!$A$3:$M$105,10,FALSE)*P35,"") -> 3421.371206 | K35: =IFERROR(VLOOKUP(A35,STAGIONALITA!$A$3:$M$105,11,FALSE)*P35,"") -> 2743.494351 | L35: =IFERROR(VLOOKUP(A35,STAGIONALITA!$A$3:$M$105,12,FALSE)*P35,"") -> 2645.565135 | M35: =IFERROR(VLOOKUP(A35,STAGIONALITA!$A$3:$M$105,13,FALSE)*P35,"") -> 1056.798945 | O35: Rainbox | P35: 50000
A36: =IF(O36=0,"",O36) -> System Group (Sab) | B36: =IFERROR(VLOOKUP(A36,STAGIONALITA!$A$3:$M$105,2,FALSE)*P36,"") -> 1072.255451 | C36: =IFERROR(VLOOKUP(A36,STAGIONALITA!$A$3:$M$105,3,FALSE)*P36,"") -> 12126.90527 | D36: =IFERROR(VLOOKUP(A36,STAGIONALITA!$A$3:$M$105,4,FALSE)*P36,"") -> 2241.100714 | E36: =IFERROR(VLOOKUP(A36,STAGIONALITA!$A$3:$M$105,5,FALSE)*P36,"") -> 12890.3989 | F36: =IFERROR(VLOOKUP(A36,STAGIONALITA!$A$3:$M$105,6,FALSE)*P36,"") -> 1440.164962 | G36: =IFERROR(VLOOKUP(A36,STAGIONALITA!$A$3:$M$105,7,FALSE)*P36,"") -> 2769.088848 | H36: =IFERROR(VLOOKUP(A36,STAGIONALITA!$A$3:$M$105,8,FALSE)*P36,"") -> 4001.96556 | I36: =IFERROR(VLOOKUP(A36,STAGIONALITA!$A$3:$M$105,9,FALSE)*P36,"") -> 927.3707312 | J36: =IFERROR(VLOOKUP(A36,STAGIONALITA!$A$3:$M$105,10,FALSE)*P36,"") -> 2323.581902 | K36: =IFERROR(VLOOKUP(A36,STAGIONALITA!$A$3:$M$105,11,FALSE)*P36,"") -> 2556.916844 | L36: =IFERROR(VLOOKUP(A36,STAGIONALITA!$A$3:$M$105,12,FALSE)*P36,"") -> 1245.357418 | M36: =IFERROR(VLOOKUP(A36,STAGIONALITA!$A$3:$M$105,13,FALSE)*P36,"") -> 1404.893402 | O36: System Group (Sab) | P36: 45000
A37: Euroacque | B37: =IFERROR(VLOOKUP(A37,STAGIONALITA!$A$3:$M$105,2,FALSE)*P37,"") -> 0 | C37: =IFERROR(VLOOKUP(A37,STAGIONALITA!$A$3:$M$105,3,FALSE)*P37,"") -> 9041.180976 | D37: =IFERROR(VLOOKUP(A37,STAGIONALITA!$A$3:$M$105,4,FALSE)*P37,"") -> 2386.579377 | E37: =IFERROR(VLOOKUP(A37,STAGIONALITA!$A$3:$M$105,5,FALSE)*P37,"") -> 3640.80081 | F37: =IFERROR(VLOOKUP(A37,STAGIONALITA!$A$3:$M$105,6,FALSE)*P37,"") -> 3844.835233 | G37: =IFERROR(VLOOKUP(A37,STAGIONALITA!$A$3:$M$105,7,FALSE)*P37,"") -> 1503.126497 | H37: =IFERROR(VLOOKUP(A37,STAGIONALITA!$A$3:$M$105,8,FALSE)*P37,"") -> 3557.244128 | I37: =IFERROR(VLOOKUP(A37,STAGIONALITA!$A$3:$M$105,9,FALSE)*P37,"") -> 2109.018518 | J37: =IFERROR(VLOOKUP(A37,STAGIONALITA!$A$3:$M$105,10,FALSE)*P37,"") -> 4217.893542 | K37: =IFERROR(VLOOKUP(A37,STAGIONALITA!$A$3:$M$105,11,FALSE)*P37,"") -> 6849.665584 | L37: =IFERROR(VLOOKUP(A37,STAGIONALITA!$A$3:$M$105,12,FALSE)*P37,"") -> 3735.54389 | M37: =IFERROR(VLOOKUP(A37,STAGIONALITA!$A$3:$M$105,13,FALSE)*P37,"") -> 3114.111445 | O37: Euroacque | P37: 44000
A38: Caleffi | B38: =IFERROR(VLOOKUP(A38,STAGIONALITA!$A$3:$M$105,2,FALSE)*P38,"") -> 2775.703294 | C38: =IFERROR(VLOOKUP(A38,STAGIONALITA!$A$3:$M$105,3,FALSE)*P38,"") -> 3611.71661 | D38: =IFERROR(VLOOKUP(A38,STAGIONALITA!$A$3:$M$105,4,FALSE)*P38,"") -> 3141.287506 | E38: =IFERROR(VLOOKUP(A38,STAGIONALITA!$A$3:$M$105,5,FALSE)*P38,"") -> 3147.500808 | F38: =IFERROR(VLOOKUP(A38,STAGIONALITA!$A$3:$M$105,6,FALSE)*P38,"") -> 2903.387375 | G38: =IFERROR(VLOOKUP(A38,STAGIONALITA!$A$3:$M$105,7,FALSE)*P38,"") -> 3736.857857 | H38: =IFERROR(VLOOKUP(A38,STAGIONALITA!$A$3:$M$105,8,FALSE)*P38,"") -> 3821.689539 | I38: =IFERROR(VLOOKUP(A38,STAGIONALITA!$A$3:$M$105,9,FALSE)*P38,"") -> 1613.147426 | J38: =IFERROR(VLOOKUP(A38,STAGIONALITA!$A$3:$M$105,10,FALSE)*P38,"") -> 3147.894556 | K38: =IFERROR(VLOOKUP(A38,STAGIONALITA!$A$3:$M$105,11,FALSE)*P38,"") -> 4654.391523 | L38: =IFERROR(VLOOKUP(A38,STAGIONALITA!$A$3:$M$105,12,FALSE)*P38,"") -> 4092.769355 | M38: =IFERROR(VLOOKUP(A38,STAGIONALITA!$A$3:$M$105,13,FALSE)*P38,"") -> 4353.654151 | O38: Caleffi | P38: 41000
A39: Fluidmaster | B39: =IFERROR(VLOOKUP(A39,STAGIONALITA!$A$3:$M$105,2,FALSE)*P39,"") -> 4395.9097 | C39: =IFERROR(VLOOKUP(A39,STAGIONALITA!$A$3:$M$105,3,FALSE)*P39,"") -> 2504.507026 | D39: =IFERROR(VLOOKUP(A39,STAGIONALITA!$A$3:$M$105,4,FALSE)*P39,"") -> 3335.226856 | E39: =IFERROR(VLOOKUP(A39,STAGIONALITA!$A$3:$M$105,5,FALSE)*P39,"") -> 3884.159623 | F39: =IFERROR(VLOOKUP(A39,STAGIONALITA!$A$3:$M$105,6,FALSE)*P39,"") -> 966.2042007 | G39: =IFERROR(VLOOKUP(A39,STAGIONALITA!$A$3:$M$105,7,FALSE)*P39,"") -> 8278.388353 | H39: =IFERROR(VLOOKUP(A39,STAGIONALITA!$A$3:$M$105,8,FALSE)*P39,"") -> 785.4270472 | I39: =IFERROR(VLOOKUP(A39,STAGIONALITA!$A$3:$M$105,9,FALSE)*P39,"") -> 374.383371 | J39: =IFERROR(VLOOKUP(A39,STAGIONALITA!$A$3:$M$105,10,FALSE)*P39,"") -> 3950.902273 | K39: =IFERROR(VLOOKUP(A39,STAGIONALITA!$A$3:$M$105,11,FALSE)*P39,"") -> 7831.002472 | L39: =IFERROR(VLOOKUP(A39,STAGIONALITA!$A$3:$M$105,12,FALSE)*P39,"") -> 2341.105725 | M39: =IFERROR(VLOOKUP(A39,STAGIONALITA!$A$3:$M$105,13,FALSE)*P39,"") -> 1352.783354 | O39: Fluidmaster | P39: 40000
A40: Olimpia Splendid | B40: =IFERROR(VLOOKUP(A40,STAGIONALITA!$A$3:$M$105,2,FALSE)*P40,"") -> 1559.766203 | C40: =IFERROR(VLOOKUP(A40,STAGIONALITA!$A$3:$M$105,3,FALSE)*P40,"") -> 2323.559144 | D40: =IFERROR(VLOOKUP(A40,STAGIONALITA!$A$3:$M$105,4,FALSE)*P40,"") -> 3762.719097 | E40: =IFERROR(VLOOKUP(A40,STAGIONALITA!$A$3:$M$105,5,FALSE)*P40,"") -> 2420.799681 | F40: =IFERROR(VLOOKUP(A40,STAGIONALITA!$A$3:$M$105,6,FALSE)*P40,"") -> 3340.177481 | G40: =IFERROR(VLOOKUP(A40,STAGIONALITA!$A$3:$M$105,7,FALSE)*P40,"") -> 1661.763831 | H40: =IFERROR(VLOOKUP(A40,STAGIONALITA!$A$3:$M$105,8,FALSE)*P40,"") -> 4381.001018 | I40: =IFERROR(VLOOKUP(A40,STAGIONALITA!$A$3:$M$105,9,FALSE)*P40,"") -> 169.1565608 | J40: =IFERROR(VLOOKUP(A40,STAGIONALITA!$A$3:$M$105,10,FALSE)*P40,"") -> 6527.988135 | K40: =IFERROR(VLOOKUP(A40,STAGIONALITA!$A$3:$M$105,11,FALSE)*P40,"") -> 4712.458332 | L40: =IFERROR(VLOOKUP(A40,STAGIONALITA!$A$3:$M$105,12,FALSE)*P40,"") -> 6580.456051 | M40: =IFERROR(VLOOKUP(A40,STAGIONALITA!$A$3:$M$105,13,FALSE)*P40,"") -> 2560.154466 | O40: Olimpia Splendid | P40: 40000
A41: Samsung | B41: =IFERROR(VLOOKUP(A41,STAGIONALITA!$A$3:$M$105,2,FALSE)*P41,"") -> 600.1147479 | C41: =IFERROR(VLOOKUP(A41,STAGIONALITA!$A$3:$M$105,3,FALSE)*P41,"") -> 6103.971184 | D41: =IFERROR(VLOOKUP(A41,STAGIONALITA!$A$3:$M$105,4,FALSE)*P41,"") -> 5514.871302 | E41: =IFERROR(VLOOKUP(A41,STAGIONALITA!$A$3:$M$105,5,FALSE)*P41,"") -> 4247.961362 | F41: =IFERROR(VLOOKUP(A41,STAGIONALITA!$A$3:$M$105,6,FALSE)*P41,"") -> 3494.218644 | G41: =IFERROR(VLOOKUP(A41,STAGIONALITA!$A$3:$M$105,7,FALSE)*P41,"") -> 3860.409911 | H41: =IFERROR(VLOOKUP(A41,STAGIONALITA!$A$3:$M$105,8,FALSE)*P41,"") -> 1595.234138 | I41: =IFERROR(VLOOKUP(A41,STAGIONALITA!$A$3:$M$105,9,FALSE)*P41,"") -> 920.7952479 | J41: =IFERROR(VLOOKUP(A41,STAGIONALITA!$A$3:$M$105,10,FALSE)*P41,"") -> 449.0025153 | K41: =IFERROR(VLOOKUP(A41,STAGIONALITA!$A$3:$M$105,11,FALSE)*P41,"") -> 4148.215359 | L41: =IFERROR(VLOOKUP(A41,STAGIONALITA!$A$3:$M$105,12,FALSE)*P41,"") -> 2215.164978 | M41: =IFERROR(VLOOKUP(A41,STAGIONALITA!$A$3:$M$105,13,FALSE)*P41,"") -> 1850.040611 | O41: Samsung | P41: 35000
A42: Giuseppe Tirinnanzi | B42: =IFERROR(VLOOKUP(A42,STAGIONALITA!$A$3:$M$105,2,FALSE)*P42,"") -> 2925.87653 | C42: =IFERROR(VLOOKUP(A42,STAGIONALITA!$A$3:$M$105,3,FALSE)*P42,"") -> 1834.612722 | D42: =IFERROR(VLOOKUP(A42,STAGIONALITA!$A$3:$M$105,4,FALSE)*P42,"") -> 3872.751114 | E42: =IFERROR(VLOOKUP(A42,STAGIONALITA!$A$3:$M$105,5,FALSE)*P42,"") -> 1878.565926 | F42: =IFERROR(VLOOKUP(A42,STAGIONALITA!$A$3:$M$105,6,FALSE)*P42,"") -> 2029.949433 | G42: =IFERROR(VLOOKUP(A42,STAGIONALITA!$A$3:$M$105,7,FALSE)*P42,"") -> 2785.8171 | H42: =IFERROR(VLOOKUP(A42,STAGIONALITA!$A$3:$M$105,8,FALSE)*P42,"") -> 3399.12919 | I42: =IFERROR(VLOOKUP(A42,STAGIONALITA!$A$3:$M$105,9,FALSE)*P42,"") -> 1583.486469 | J42: =IFERROR(VLOOKUP(A42,STAGIONALITA!$A$3:$M$105,10,FALSE)*P42,"") -> 2688.813057 | K42: =IFERROR(VLOOKUP(A42,STAGIONALITA!$A$3:$M$105,11,FALSE)*P42,"") -> 2348.428241 | L42: =IFERROR(VLOOKUP(A42,STAGIONALITA!$A$3:$M$105,12,FALSE)*P42,"") -> 3007.793268 | M42: =IFERROR(VLOOKUP(A42,STAGIONALITA!$A$3:$M$105,13,FALSE)*P42,"") -> 1644.77695 | O42: Giuseppe Tirinnanzi | P42: 30000
A43: Italkero | B43: =IFERROR(VLOOKUP(A43,STAGIONALITA!$A$3:$M$105,2,FALSE)*P43,"") -> 0 | C43: =IFERROR(VLOOKUP(A43,STAGIONALITA!$A$3:$M$105,3,FALSE)*P43,"") -> 7502.954512 | D43: =IFERROR(VLOOKUP(A43,STAGIONALITA!$A$3:$M$105,4,FALSE)*P43,"") -> 7749.372299 | E43: =IFERROR(VLOOKUP(A43,STAGIONALITA!$A$3:$M$105,5,FALSE)*P43,"") -> 0 | F43: =IFERROR(VLOOKUP(A43,STAGIONALITA!$A$3:$M$105,6,FALSE)*P43,"") -> 636.8472953 | G43: =IFERROR(VLOOKUP(A43,STAGIONALITA!$A$3:$M$105,7,FALSE)*P43,"") -> 374.5721382 | H43: =IFERROR(VLOOKUP(A43,STAGIONALITA!$A$3:$M$105,8,FALSE)*P43,"") -> 125.0849768 | I43: =IFERROR(VLOOKUP(A43,STAGIONALITA!$A$3:$M$105,9,FALSE)*P43,"") -> 955.270943 | J43: =IFERROR(VLOOKUP(A43,STAGIONALITA!$A$3:$M$105,10,FALSE)*P43,"") -> 7515.819083 | K43: =IFERROR(VLOOKUP(A43,STAGIONALITA!$A$3:$M$105,11,FALSE)*P43,"") -> 2382.115184 | L43: =IFERROR(VLOOKUP(A43,STAGIONALITA!$A$3:$M$105,12,FALSE)*P43,"") -> 2684.579362 | M43: =IFERROR(VLOOKUP(A43,STAGIONALITA!$A$3:$M$105,13,FALSE)*P43,"") -> 73.38420738 | O43: Italkero | P43: 30000
A44: Fimi | B44: =IFERROR(VLOOKUP(A44,STAGIONALITA!$A$3:$M$105,2,FALSE)*P44,"") -> 1122.81995 | C44: =IFERROR(VLOOKUP(A44,STAGIONALITA!$A$3:$M$105,3,FALSE)*P44,"") -> 1899.494795 | D44: =IFERROR(VLOOKUP(A44,STAGIONALITA!$A$3:$M$105,4,FALSE)*P44,"") -> 2842.468924 | E44: =IFERROR(VLOOKUP(A44,STAGIONALITA!$A$3:$M$105,5,FALSE)*P44,"") -> 1895.96283 | F44: =IFERROR(VLOOKUP(A44,STAGIONALITA!$A$3:$M$105,6,FALSE)*P44,"") -> 1622.835146 | G44: =IFERROR(VLOOKUP(A44,STAGIONALITA!$A$3:$M$105,7,FALSE)*P44,"") -> 2419.477481 | H44: =IFERROR(VLOOKUP(A44,STAGIONALITA!$A$3:$M$105,8,FALSE)*P44,"") -> 2915.517801 | I44: =IFERROR(VLOOKUP(A44,STAGIONALITA!$A$3:$M$105,9,FALSE)*P44,"") -> 1112.391406 | J44: =IFERROR(VLOOKUP(A44,STAGIONALITA!$A$3:$M$105,10,FALSE)*P44,"") -> 3130.644261 | K44: =IFERROR(VLOOKUP(A44,STAGIONALITA!$A$3:$M$105,11,FALSE)*P44,"") -> 3191.134344 | L44: =IFERROR(VLOOKUP(A44,STAGIONALITA!$A$3:$M$105,12,FALSE)*P44,"") -> 1426.86585 | M44: =IFERROR(VLOOKUP(A44,STAGIONALITA!$A$3:$M$105,13,FALSE)*P44,"") -> 2420.38721 | O44: Fimi | P44: 26000
A45: Megius | B45: =IFERROR(VLOOKUP(A45,STAGIONALITA!$A$3:$M$105,2,FALSE)*P45,"") -> 0 | C45: =IFERROR(VLOOKUP(A45,STAGIONALITA!$A$3:$M$105,3,FALSE)*P45,"") -> 2777.22266 | D45: =IFERROR(VLOOKUP(A45,STAGIONALITA!$A$3:$M$105,4,FALSE)*P45,"") -> 1169.403826 | E45: =IFERROR(VLOOKUP(A45,STAGIONALITA!$A$3:$M$105,5,FALSE)*P45,"") -> 848.8696767 | F45: =IFERROR(VLOOKUP(A45,STAGIONALITA!$A$3:$M$105,6,FALSE)*P45,"") -> 2533.141078 | G45: =IFERROR(VLOOKUP(A45,STAGIONALITA!$A$3:$M$105,7,FALSE)*P45,"") -> 2631.604315 | H45: =IFERROR(VLOOKUP(A45,STAGIONALITA!$A$3:$M$105,8,FALSE)*P45,"") -> 1895.147813 | I45: =IFERROR(VLOOKUP(A45,STAGIONALITA!$A$3:$M$105,9,FALSE)*P45,"") -> 442.6613171 | J45: =IFERROR(VLOOKUP(A45,STAGIONALITA!$A$3:$M$105,10,FALSE)*P45,"") -> 3340.518544 | K45: =IFERROR(VLOOKUP(A45,STAGIONALITA!$A$3:$M$105,11,FALSE)*P45,"") -> 3043.42029 | L45: =IFERROR(VLOOKUP(A45,STAGIONALITA!$A$3:$M$105,12,FALSE)*P45,"") -> 3738.39322 | M45: =IFERROR(VLOOKUP(A45,STAGIONALITA!$A$3:$M$105,13,FALSE)*P45,"") -> 2579.61726 | O45: Megius | P45: 25000
A46: Omp Tea | B46: =IFERROR(VLOOKUP(A46,STAGIONALITA!$A$3:$M$105,2,FALSE)*P46,"") -> 2051.152856 | C46: =IFERROR(VLOOKUP(A46,STAGIONALITA!$A$3:$M$105,3,FALSE)*P46,"") -> 2052.569862 | D46: =IFERROR(VLOOKUP(A46,STAGIONALITA!$A$3:$M$105,4,FALSE)*P46,"") -> 3156.423117 | E46: =IFERROR(VLOOKUP(A46,STAGIONALITA!$A$3:$M$105,5,FALSE)*P46,"") -> 1650.969821 | F46: =IFERROR(VLOOKUP(A46,STAGIONALITA!$A$3:$M$105,6,FALSE)*P46,"") -> 2379.19984 | G46: =IFERROR(VLOOKUP(A46,STAGIONALITA!$A$3:$M$105,7,FALSE)*P46,"") -> 2462.462202 | H46: =IFERROR(VLOOKUP(A46,STAGIONALITA!$A$3:$M$105,8,FALSE)*P46,"") -> 2365.051241 | I46: =IFERROR(VLOOKUP(A46,STAGIONALITA!$A$3:$M$105,9,FALSE)*P46,"") -> 1043.39182 | J46: =IFERROR(VLOOKUP(A46,STAGIONALITA!$A$3:$M$105,10,FALSE)*P46,"") -> 2275.252151 | K46: =IFERROR(VLOOKUP(A46,STAGIONALITA!$A$3:$M$105,11,FALSE)*P46,"") -> 3015.58288 | L46: =IFERROR(VLOOKUP(A46,STAGIONALITA!$A$3:$M$105,12,FALSE)*P46,"") -> 1664.544515 | M46: =IFERROR(VLOOKUP(A46,STAGIONALITA!$A$3:$M$105,13,FALSE)*P46,"") -> 883.3996959 | O46: Omp Tea | P46: 25000
A47: Varem | B47: =IFERROR(VLOOKUP(A47,STAGIONALITA!$A$3:$M$105,2,FALSE)*P47,"") -> 1573.904017 | C47: =IFERROR(VLOOKUP(A47,STAGIONALITA!$A$3:$M$105,3,FALSE)*P47,"") -> 844.9577114 | D47: =IFERROR(VLOOKUP(A47,STAGIONALITA!$A$3:$M$105,4,FALSE)*P47,"") -> 3657.149419 | E47: =IFERROR(VLOOKUP(A47,STAGIONALITA!$A$3:$M$105,5,FALSE)*P47,"") -> 1989.287879 | F47: =IFERROR(VLOOKUP(A47,STAGIONALITA!$A$3:$M$105,6,FALSE)*P47,"") -> 1698.464066 | G47: =IFERROR(VLOOKUP(A47,STAGIONALITA!$A$3:$M$105,7,FALSE)*P47,"") -> 1512.733617 | H47: =IFERROR(VLOOKUP(A47,STAGIONALITA!$A$3:$M$105,8,FALSE)*P47,"") -> 822.02768 | I47: =IFERROR(VLOOKUP(A47,STAGIONALITA!$A$3:$M$105,9,FALSE)*P47,"") -> 1246.877584 | J47: =IFERROR(VLOOKUP(A47,STAGIONALITA!$A$3:$M$105,10,FALSE)*P47,"") -> 1797.724685 | K47: =IFERROR(VLOOKUP(A47,STAGIONALITA!$A$3:$M$105,11,FALSE)*P47,"") -> 1558.85933 | L47: =IFERROR(VLOOKUP(A47,STAGIONALITA!$A$3:$M$105,12,FALSE)*P47,"") -> 1907.329146 | M47: =IFERROR(VLOOKUP(A47,STAGIONALITA!$A$3:$M$105,13,FALSE)*P47,"") -> 1390.684867 | O47: Varem | P47: 20000
A48: Rems | B48: =IFERROR(VLOOKUP(A48,STAGIONALITA!$A$3:$M$105,2,FALSE)*P48,"") -> 981.2527249 | C48: =IFERROR(VLOOKUP(A48,STAGIONALITA!$A$3:$M$105,3,FALSE)*P48,"") -> 1432.839474 | D48: =IFERROR(VLOOKUP(A48,STAGIONALITA!$A$3:$M$105,4,FALSE)*P48,"") -> 1410.688471 | E48: =IFERROR(VLOOKUP(A48,STAGIONALITA!$A$3:$M$105,5,FALSE)*P48,"") -> 1392.453667 | F48: =IFERROR(VLOOKUP(A48,STAGIONALITA!$A$3:$M$105,6,FALSE)*P48,"") -> 1650.433306 | G48: =IFERROR(VLOOKUP(A48,STAGIONALITA!$A$3:$M$105,7,FALSE)*P48,"") -> 1028.859024 | H48: =IFERROR(VLOOKUP(A48,STAGIONALITA!$A$3:$M$105,8,FALSE)*P48,"") -> 1291.733913 | I48: =IFERROR(VLOOKUP(A48,STAGIONALITA!$A$3:$M$105,9,FALSE)*P48,"") -> 195.0756851 | J48: =IFERROR(VLOOKUP(A48,STAGIONALITA!$A$3:$M$105,10,FALSE)*P48,"") -> 1207.168481 | K48: =IFERROR(VLOOKUP(A48,STAGIONALITA!$A$3:$M$105,11,FALSE)*P48,"") -> 2057.106143 | L48: =IFERROR(VLOOKUP(A48,STAGIONALITA!$A$3:$M$105,12,FALSE)*P48,"") -> 2207.267915 | M48: =IFERROR(VLOOKUP(A48,STAGIONALITA!$A$3:$M$105,13,FALSE)*P48,"") -> 1145.121196 | O48: Rems | P48: 16000
A49: Rizzo Aquae | B49: =IFERROR(VLOOKUP(A49,STAGIONALITA!$A$3:$M$105,2,FALSE)*P49,"") -> 0 | C49: =IFERROR(VLOOKUP(A49,STAGIONALITA!$A$3:$M$105,3,FALSE)*P49,"") -> 866.6578966 | D49: =IFERROR(VLOOKUP(A49,STAGIONALITA!$A$3:$M$105,4,FALSE)*P49,"") -> 1015.191567 | E49: =IFERROR(VLOOKUP(A49,STAGIONALITA!$A$3:$M$105,5,FALSE)*P49,"") -> 2123.61457 | F49: =IFERROR(VLOOKUP(A49,STAGIONALITA!$A$3:$M$105,6,FALSE)*P49,"") -> 647.5009426 | G49: =IFERROR(VLOOKUP(A49,STAGIONALITA!$A$3:$M$105,7,FALSE)*P49,"") -> 1518.835638 | H49: =IFERROR(VLOOKUP(A49,STAGIONALITA!$A$3:$M$105,8,FALSE)*P49,"") -> 478.4691176 | I49: =IFERROR(VLOOKUP(A49,STAGIONALITA!$A$3:$M$105,9,FALSE)*P49,"") -> 174.0204101 | J49: =IFERROR(VLOOKUP(A49,STAGIONALITA!$A$3:$M$105,10,FALSE)*P49,"") -> 1829.324304 | K49: =IFERROR(VLOOKUP(A49,STAGIONALITA!$A$3:$M$105,11,FALSE)*P49,"") -> 1484.205576 | L49: =IFERROR(VLOOKUP(A49,STAGIONALITA!$A$3:$M$105,12,FALSE)*P49,"") -> 832.1365977 | M49: =IFERROR(VLOOKUP(A49,STAGIONALITA!$A$3:$M$105,13,FALSE)*P49,"") -> 3030.043381 | O49: Rizzo Aquae | P49: 14000
A50: River | B50: =IFERROR(VLOOKUP(A50,STAGIONALITA!$A$3:$M$105,2,FALSE)*P50,"") -> 1046.293362 | C50: =IFERROR(VLOOKUP(A50,STAGIONALITA!$A$3:$M$105,3,FALSE)*P50,"") -> 518.6513239 | D50: =IFERROR(VLOOKUP(A50,STAGIONALITA!$A$3:$M$105,4,FALSE)*P50,"") -> 1066.667106 | E50: =IFERROR(VLOOKUP(A50,STAGIONALITA!$A$3:$M$105,5,FALSE)*P50,"") -> 514.7067769 | F50: =IFERROR(VLOOKUP(A50,STAGIONALITA!$A$3:$M$105,6,FALSE)*P50,"") -> 1442.560699 | G50: =IFERROR(VLOOKUP(A50,STAGIONALITA!$A$3:$M$105,7,FALSE)*P50,"") -> 782.9223881 | H50: =IFERROR(VLOOKUP(A50,STAGIONALITA!$A$3:$M$105,8,FALSE)*P50,"") -> 1178.685901 | I50: =IFERROR(VLOOKUP(A50,STAGIONALITA!$A$3:$M$105,9,FALSE)*P50,"") -> 334.4486769 | J50: =IFERROR(VLOOKUP(A50,STAGIONALITA!$A$3:$M$105,10,FALSE)*P50,"") -> 1821.344771 | K50: =IFERROR(VLOOKUP(A50,STAGIONALITA!$A$3:$M$105,11,FALSE)*P50,"") -> 896.3598163 | L50: =IFERROR(VLOOKUP(A50,STAGIONALITA!$A$3:$M$105,12,FALSE)*P50,"") -> 1064.912213 | M50: =IFERROR(VLOOKUP(A50,STAGIONALITA!$A$3:$M$105,13,FALSE)*P50,"") -> 332.4469665 | O50: River | P50: 11000
A51: Tecnosystemi | B51: =IFERROR(VLOOKUP(A51,STAGIONALITA!$A$3:$M$105,2,FALSE)*P51,"") -> 595.0778305 | C51: =IFERROR(VLOOKUP(A51,STAGIONALITA!$A$3:$M$105,3,FALSE)*P51,"") -> 694.2872833 | D51: =IFERROR(VLOOKUP(A51,STAGIONALITA!$A$3:$M$105,4,FALSE)*P51,"") -> 1126.149952 | E51: =IFERROR(VLOOKUP(A51,STAGIONALITA!$A$3:$M$105,5,FALSE)*P51,"") -> 699.525232 | F51: =IFERROR(VLOOKUP(A51,STAGIONALITA!$A$3:$M$105,6,FALSE)*P51,"") -> 1469.134771 | G51: =IFERROR(VLOOKUP(A51,STAGIONALITA!$A$3:$M$105,7,FALSE)*P51,"") -> 553.7516549 | H51: =IFERROR(VLOOKUP(A51,STAGIONALITA!$A$3:$M$105,8,FALSE)*P51,"") -> 962.7329207 | I51: =IFERROR(VLOOKUP(A51,STAGIONALITA!$A$3:$M$105,9,FALSE)*P51,"") -> 536.2333029 | J51: =IFERROR(VLOOKUP(A51,STAGIONALITA!$A$3:$M$105,10,FALSE)*P51,"") -> 1038.529286 | K51: =IFERROR(VLOOKUP(A51,STAGIONALITA!$A$3:$M$105,11,FALSE)*P51,"") -> 874.9670126 | L51: =IFERROR(VLOOKUP(A51,STAGIONALITA!$A$3:$M$105,12,FALSE)*P51,"") -> 1050.317573 | M51: =IFERROR(VLOOKUP(A51,STAGIONALITA!$A$3:$M$105,13,FALSE)*P51,"") -> 399.2931814 | O51: Tecnosystemi | P51: 10000
A52: RM Manfredi | B52: =IFERROR(VLOOKUP(A52,STAGIONALITA!$A$3:$M$105,2,FALSE)*P52,"") -> 994.9038791 | C52: =IFERROR(VLOOKUP(A52,STAGIONALITA!$A$3:$M$105,3,FALSE)*P52,"") -> 897.9053838 | D52: =IFERROR(VLOOKUP(A52,STAGIONALITA!$A$3:$M$105,4,FALSE)*P52,"") -> 719.7148301 | E52: =IFERROR(VLOOKUP(A52,STAGIONALITA!$A$3:$M$105,5,FALSE)*P52,"") -> 1080.559801 | F52: =IFERROR(VLOOKUP(A52,STAGIONALITA!$A$3:$M$105,6,FALSE)*P52,"") -> 453.6733753 | G52: =IFERROR(VLOOKUP(A52,STAGIONALITA!$A$3:$M$105,7,FALSE)*P52,"") -> 2016.382157 | H52: =IFERROR(VLOOKUP(A52,STAGIONALITA!$A$3:$M$105,8,FALSE)*P52,"") -> 1058.493609 | I52: =IFERROR(VLOOKUP(A52,STAGIONALITA!$A$3:$M$105,9,FALSE)*P52,"") -> 302.7519274 | J52: =IFERROR(VLOOKUP(A52,STAGIONALITA!$A$3:$M$105,10,FALSE)*P52,"") -> 1076.299176 | K52: =IFERROR(VLOOKUP(A52,STAGIONALITA!$A$3:$M$105,11,FALSE)*P52,"") -> 271.429131 | L52: =IFERROR(VLOOKUP(A52,STAGIONALITA!$A$3:$M$105,12,FALSE)*P52,"") -> 534.2889746 | M52: =IFERROR(VLOOKUP(A52,STAGIONALITA!$A$3:$M$105,13,FALSE)*P52,"") -> 593.5977557 | O52: RM Manfredi | P52: 10000
A53: =IF(O53=0,"",O53) -> Bwt/Cillichemie | B53: =IFERROR(VLOOKUP(A53,STAGIONALITA!$A$3:$M$105,2,FALSE)*P53,"") -> 345.3556327 | C53: =IFERROR(VLOOKUP(A53,STAGIONALITA!$A$3:$M$105,3,FALSE)*P53,"") -> 450.4776131 | D53: =IFERROR(VLOOKUP(A53,STAGIONALITA!$A$3:$M$105,4,FALSE)*P53,"") -> 696.5119253 | E53: =IFERROR(VLOOKUP(A53,STAGIONALITA!$A$3:$M$105,5,FALSE)*P53,"") -> 1199.419739 | F53: =IFERROR(VLOOKUP(A53,STAGIONALITA!$A$3:$M$105,6,FALSE)*P53,"") -> 566.4456003 | G53: =IFERROR(VLOOKUP(A53,STAGIONALITA!$A$3:$M$105,7,FALSE)*P53,"") -> 473.4782379 | H53: =IFERROR(VLOOKUP(A53,STAGIONALITA!$A$3:$M$105,8,FALSE)*P53,"") -> 841.6819976 | I53: =IFERROR(VLOOKUP(A53,STAGIONALITA!$A$3:$M$105,9,FALSE)*P53,"") -> 197.9034747 | J53: =IFERROR(VLOOKUP(A53,STAGIONALITA!$A$3:$M$105,10,FALSE)*P53,"") -> 764.45995 | K53: =IFERROR(VLOOKUP(A53,STAGIONALITA!$A$3:$M$105,11,FALSE)*P53,"") -> 313.3134992 | L53: =IFERROR(VLOOKUP(A53,STAGIONALITA!$A$3:$M$105,12,FALSE)*P53,"") -> 947.3461527 | M53: =IFERROR(VLOOKUP(A53,STAGIONALITA!$A$3:$M$105,13,FALSE)*P53,"") -> 203.6061772 | O53: Bwt/Cillichemie | P53: 7000
A54: =IF(O54=0,"",O54) -> Negrari | B54: =IFERROR(VLOOKUP(A54,STAGIONALITA!$A$3:$M$105,2,FALSE)*P54,"") -> 577.3832532 | C54: =IFERROR(VLOOKUP(A54,STAGIONALITA!$A$3:$M$105,3,FALSE)*P54,"") -> 660.1957778 | D54: =IFERROR(VLOOKUP(A54,STAGIONALITA!$A$3:$M$105,4,FALSE)*P54,"") -> 503.0386894 | E54: =IFERROR(VLOOKUP(A54,STAGIONALITA!$A$3:$M$105,5,FALSE)*P54,"") -> 542.6727834 | F54: =IFERROR(VLOOKUP(A54,STAGIONALITA!$A$3:$M$105,6,FALSE)*P54,"") -> 116.3167185 | G54: =IFERROR(VLOOKUP(A54,STAGIONALITA!$A$3:$M$105,7,FALSE)*P54,"") -> 1213.417468 | H54: =IFERROR(VLOOKUP(A54,STAGIONALITA!$A$3:$M$105,8,FALSE)*P54,"") -> 713.2863364 | I54: =IFERROR(VLOOKUP(A54,STAGIONALITA!$A$3:$M$105,9,FALSE)*P54,"") -> 216.3967707 | J54: =IFERROR(VLOOKUP(A54,STAGIONALITA!$A$3:$M$105,10,FALSE)*P54,"") -> 1371.381945 | K54: =IFERROR(VLOOKUP(A54,STAGIONALITA!$A$3:$M$105,11,FALSE)*P54,"") -> 519.6814525 | L54: =IFERROR(VLOOKUP(A54,STAGIONALITA!$A$3:$M$105,12,FALSE)*P54,"") -> 220.0131956 | M54: =IFERROR(VLOOKUP(A54,STAGIONALITA!$A$3:$M$105,13,FALSE)*P54,"") -> 346.2156096 | O54: Negrari | P54: 7000
A55: =IF(O55=0,"",O55) ->  | B55: =IFERROR(VLOOKUP(A55,STAGIONALITA!$A$3:$M$105,2,FALSE)*P55,"") ->  | C55: =IFERROR(VLOOKUP(A55,STAGIONALITA!$A$3:$M$105,3,FALSE)*P55,"") ->  | D55: =IFERROR(VLOOKUP(A55,STAGIONALITA!$A$3:$M$105,4,FALSE)*P55,"") ->  | E55: =IFERROR(VLOOKUP(A55,STAGIONALITA!$A$3:$M$105,5,FALSE)*P55,"") ->  | F55: =IFERROR(VLOOKUP(A55,STAGIONALITA!$A$3:$M$105,6,FALSE)*P55,"") ->  | G55: =IFERROR(VLOOKUP(A55,STAGIONALITA!$A$3:$M$105,7,FALSE)*P55,"") ->  | H55: =IFERROR(VLOOKUP(A55,STAGIONALITA!$A$3:$M$105,8,FALSE)*P55,"") ->  | I55: =IFERROR(VLOOKUP(A55,STAGIONALITA!$A$3:$M$105,9,FALSE)*P55,"") ->  | J55: =IFERROR(VLOOKUP(A55,STAGIONALITA!$A$3:$M$105,10,FALSE)*P55,"") ->  | K55: =IFERROR(VLOOKUP(A55,STAGIONALITA!$A$3:$M$105,11,FALSE)*P55,"") ->  | L55: =IFERROR(VLOOKUP(A55,STAGIONALITA!$A$3:$M$105,12,FALSE)*P55,"") ->  | M55: =IFERROR(VLOOKUP(A55,STAGIONALITA!$A$3:$M$105,13,FALSE)*P55,"") -> 
A56: =IF(O56=0,"",O56) ->  | B56: =IFERROR(VLOOKUP(A56,STAGIONALITA!$A$3:$M$105,2,FALSE)*P56,"") ->  | C56: =IFERROR(VLOOKUP(A56,STAGIONALITA!$A$3:$M$105,3,FALSE)*P56,"") ->  | D56: =IFERROR(VLOOKUP(A56,STAGIONALITA!$A$3:$M$105,4,FALSE)*P56,"") ->  | E56: =IFERROR(VLOOKUP(A56,STAGIONALITA!$A$3:$M$105,5,FALSE)*P56,"") ->  | F56: =IFERROR(VLOOKUP(A56,STAGIONALITA!$A$3:$M$105,6,FALSE)*P56,"") ->  | G56: =IFERROR(VLOOKUP(A56,STAGIONALITA!$A$3:$M$105,7,FALSE)*P56,"") ->  | H56: =IFERROR(VLOOKUP(A56,STAGIONALITA!$A$3:$M$105,8,FALSE)*P56,"") ->  | I56: =IFERROR(VLOOKUP(A56,STAGIONALITA!$A$3:$M$105,9,FALSE)*P56,"") ->  | J56: =IFERROR(VLOOKUP(A56,STAGIONALITA!$A$3:$M$105,10,FALSE)*P56,"") ->  | K56: =IFERROR(VLOOKUP(A56,STAGIONALITA!$A$3:$M$105,11,FALSE)*P56,"") ->  | L56: =IFERROR(VLOOKUP(A56,STAGIONALITA!$A$3:$M$105,12,FALSE)*P56,"") ->  | M56: =IFERROR(VLOOKUP(A56,STAGIONALITA!$A$3:$M$105,13,FALSE)*P56,"") -> 
A57: =IF(O57=0,"",O57) ->  | B57: =IFERROR(VLOOKUP(A57,STAGIONALITA!$A$3:$M$105,2,FALSE)*P57,"") ->  | C57: =IFERROR(VLOOKUP(A57,STAGIONALITA!$A$3:$M$105,3,FALSE)*P57,"") ->  | D57: =IFERROR(VLOOKUP(A57,STAGIONALITA!$A$3:$M$105,4,FALSE)*P57,"") ->  | E57: =IFERROR(VLOOKUP(A57,STAGIONALITA!$A$3:$M$105,5,FALSE)*P57,"") ->  | F57: =IFERROR(VLOOKUP(A57,STAGIONALITA!$A$3:$M$105,6,FALSE)*P57,"") ->  | G57: =IFERROR(VLOOKUP(A57,STAGIONALITA!$A$3:$M$105,7,FALSE)*P57,"") ->  | H57: =IFERROR(VLOOKUP(A57,STAGIONALITA!$A$3:$M$105,8,FALSE)*P57,"") ->  | I57: =IFERROR(VLOOKUP(A57,STAGIONALITA!$A$3:$M$105,9,FALSE)*P57,"") ->  | J57: =IFERROR(VLOOKUP(A57,STAGIONALITA!$A$3:$M$105,10,FALSE)*P57,"") ->  | K57: =IFERROR(VLOOKUP(A57,STAGIONALITA!$A$3:$M$105,11,FALSE)*P57,"") ->  | L57: =IFERROR(VLOOKUP(A57,STAGIONALITA!$A$3:$M$105,12,FALSE)*P57,"") ->  | M57: =IFERROR(VLOOKUP(A57,STAGIONALITA!$A$3:$M$105,13,FALSE)*P57,"") -> 
A58: =IF(O58=0,"",O58) ->  | B58: =IFERROR(VLOOKUP(A58,STAGIONALITA!$A$3:$M$105,2,FALSE)*P58,"") ->  | C58: =IFERROR(VLOOKUP(A58,STAGIONALITA!$A$3:$M$105,3,FALSE)*P58,"") ->  | D58: =IFERROR(VLOOKUP(A58,STAGIONALITA!$A$3:$M$105,4,FALSE)*P58,"") ->  | E58: =IFERROR(VLOOKUP(A58,STAGIONALITA!$A$3:$M$105,5,FALSE)*P58,"") ->  | F58: =IFERROR(VLOOKUP(A58,STAGIONALITA!$A$3:$M$105,6,FALSE)*P58,"") ->  | G58: =IFERROR(VLOOKUP(A58,STAGIONALITA!$A$3:$M$105,7,FALSE)*P58,"") ->  | H58: =IFERROR(VLOOKUP(A58,STAGIONALITA!$A$3:$M$105,8,FALSE)*P58,"") ->  | I58: =IFERROR(VLOOKUP(A58,STAGIONALITA!$A$3:$M$105,9,FALSE)*P58,"") ->  | J58: =IFERROR(VLOOKUP(A58,STAGIONALITA!$A$3:$M$105,10,FALSE)*P58,"") ->  | K58: =IFERROR(VLOOKUP(A58,STAGIONALITA!$A$3:$M$105,11,FALSE)*P58,"") ->  | L58: =IFERROR(VLOOKUP(A58,STAGIONALITA!$A$3:$M$105,12,FALSE)*P58,"") ->  | M58: =IFERROR(VLOOKUP(A58,STAGIONALITA!$A$3:$M$105,13,FALSE)*P58,"") -> 
A59: =IF(O59=0,"",O59) ->  | B59: =IFERROR(VLOOKUP(A59,STAGIONALITA!$A$3:$M$105,2,FALSE)*P59,"") ->  | C59: =IFERROR(VLOOKUP(A59,STAGIONALITA!$A$3:$M$105,3,FALSE)*P59,"") ->  | D59: =IFERROR(VLOOKUP(A59,STAGIONALITA!$A$3:$M$105,4,FALSE)*P59,"") ->  | E59: =IFERROR(VLOOKUP(A59,STAGIONALITA!$A$3:$M$105,5,FALSE)*P59,"") ->  | F59: =IFERROR(VLOOKUP(A59,STAGIONALITA!$A$3:$M$105,6,FALSE)*P59,"") ->  | G59: =IFERROR(VLOOKUP(A59,STAGIONALITA!$A$3:$M$105,7,FALSE)*P59,"") ->  | H59: =IFERROR(VLOOKUP(A59,STAGIONALITA!$A$3:$M$105,8,FALSE)*P59,"") ->  | I59: =IFERROR(VLOOKUP(A59,STAGIONALITA!$A$3:$M$105,9,FALSE)*P59,"") ->  | J59: =IFERROR(VLOOKUP(A59,STAGIONALITA!$A$3:$M$105,10,FALSE)*P59,"") ->  | K59: =IFERROR(VLOOKUP(A59,STAGIONALITA!$A$3:$M$105,11,FALSE)*P59,"") ->  | L59: =IFERROR(VLOOKUP(A59,STAGIONALITA!$A$3:$M$105,12,FALSE)*P59,"") ->  | M59: =IFERROR(VLOOKUP(A59,STAGIONALITA!$A$3:$M$105,13,FALSE)*P59,"") -> 
A60: =IF(O60=0,"",O60) ->  | B60: =IFERROR(VLOOKUP(A60,STAGIONALITA!$A$3:$M$105,2,FALSE)*P60,"") ->  | C60: =IFERROR(VLOOKUP(A60,STAGIONALITA!$A$3:$M$105,3,FALSE)*P60,"") ->  | D60: =IFERROR(VLOOKUP(A60,STAGIONALITA!$A$3:$M$105,4,FALSE)*P60,"") ->  | E60: =IFERROR(VLOOKUP(A60,STAGIONALITA!$A$3:$M$105,5,FALSE)*P60,"") ->  | F60: =IFERROR(VLOOKUP(A60,STAGIONALITA!$A$3:$M$105,6,FALSE)*P60,"") ->  | G60: =IFERROR(VLOOKUP(A60,STAGIONALITA!$A$3:$M$105,7,FALSE)*P60,"") ->  | H60: =IFERROR(VLOOKUP(A60,STAGIONALITA!$A$3:$M$105,8,FALSE)*P60,"") ->  | I60: =IFERROR(VLOOKUP(A60,STAGIONALITA!$A$3:$M$105,9,FALSE)*P60,"") ->  | J60: =IFERROR(VLOOKUP(A60,STAGIONALITA!$A$3:$M$105,10,FALSE)*P60,"") ->  | K60: =IFERROR(VLOOKUP(A60,STAGIONALITA!$A$3:$M$105,11,FALSE)*P60,"") ->  | L60: =IFERROR(VLOOKUP(A60,STAGIONALITA!$A$3:$M$105,12,FALSE)*P60,"") ->  | M60: =IFERROR(VLOOKUP(A60,STAGIONALITA!$A$3:$M$105,13,FALSE)*P60,"") -> 
A61: =IF(O61=0,"",O61) ->  | B61: =IFERROR(VLOOKUP(A61,STAGIONALITA!$A$3:$M$105,2,FALSE)*P61,"") ->  | C61: =IFERROR(VLOOKUP(A61,STAGIONALITA!$A$3:$M$105,3,FALSE)*P61,"") ->  | D61: =IFERROR(VLOOKUP(A61,STAGIONALITA!$A$3:$M$105,4,FALSE)*P61,"") ->  | E61: =IFERROR(VLOOKUP(A61,STAGIONALITA!$A$3:$M$105,5,FALSE)*P61,"") ->  | F61: =IFERROR(VLOOKUP(A61,STAGIONALITA!$A$3:$M$105,6,FALSE)*P61,"") ->  | G61: =IFERROR(VLOOKUP(A61,STAGIONALITA!$A$3:$M$105,7,FALSE)*P61,"") ->  | H61: =IFERROR(VLOOKUP(A61,STAGIONALITA!$A$3:$M$105,8,FALSE)*P61,"") ->  | I61: =IFERROR(VLOOKUP(A61,STAGIONALITA!$A$3:$M$105,9,FALSE)*P61,"") ->  | J61: =IFERROR(VLOOKUP(A61,STAGIONALITA!$A$3:$M$105,10,FALSE)*P61,"") ->  | K61: =IFERROR(VLOOKUP(A61,STAGIONALITA!$A$3:$M$105,11,FALSE)*P61,"") ->  | L61: =IFERROR(VLOOKUP(A61,STAGIONALITA!$A$3:$M$105,12,FALSE)*P61,"") ->  | M61: =IFERROR(VLOOKUP(A61,STAGIONALITA!$A$3:$M$105,13,FALSE)*P61,"") -> 
A62: =IF(O62=0,"",O62) ->  | B62: =IFERROR(VLOOKUP(A62,STAGIONALITA!$A$3:$M$105,2,FALSE)*P62,"") ->  | C62: =IFERROR(VLOOKUP(A62,STAGIONALITA!$A$3:$M$105,3,FALSE)*P62,"") ->  | D62: =IFERROR(VLOOKUP(A62,STAGIONALITA!$A$3:$M$105,4,FALSE)*P62,"") ->  | E62: =IFERROR(VLOOKUP(A62,STAGIONALITA!$A$3:$M$105,5,FALSE)*P62,"") ->  | F62: =IFERROR(VLOOKUP(A62,STAGIONALITA!$A$3:$M$105,6,FALSE)*P62,"") ->  | G62: =IFERROR(VLOOKUP(A62,STAGIONALITA!$A$3:$M$105,7,FALSE)*P62,"") ->  | H62: =IFERROR(VLOOKUP(A62,STAGIONALITA!$A$3:$M$105,8,FALSE)*P62,"") ->  | I62: =IFERROR(VLOOKUP(A62,STAGIONALITA!$A$3:$M$105,9,FALSE)*P62,"") ->  | J62: =IFERROR(VLOOKUP(A62,STAGIONALITA!$A$3:$M$105,10,FALSE)*P62,"") ->  | K62: =IFERROR(VLOOKUP(A62,STAGIONALITA!$A$3:$M$105,11,FALSE)*P62,"") ->  | L62: =IFERROR(VLOOKUP(A62,STAGIONALITA!$A$3:$M$105,12,FALSE)*P62,"") ->  | M62: =IFERROR(VLOOKUP(A62,STAGIONALITA!$A$3:$M$105,13,FALSE)*P62,"") -> 
A63: =IF(O63=0,"",O63) ->  | B63: =IFERROR(VLOOKUP(A63,STAGIONALITA!$A$3:$M$105,2,FALSE)*P63,"") ->  | C63: =IFERROR(VLOOKUP(A63,STAGIONALITA!$A$3:$M$105,3,FALSE)*P63,"") ->  | D63: =IFERROR(VLOOKUP(A63,STAGIONALITA!$A$3:$M$105,4,FALSE)*P63,"") ->  | E63: =IFERROR(VLOOKUP(A63,STAGIONALITA!$A$3:$M$105,5,FALSE)*P63,"") ->  | F63: =IFERROR(VLOOKUP(A63,STAGIONALITA!$A$3:$M$105,6,FALSE)*P63,"") ->  | G63: =IFERROR(VLOOKUP(A63,STAGIONALITA!$A$3:$M$105,7,FALSE)*P63,"") ->  | H63: =IFERROR(VLOOKUP(A63,STAGIONALITA!$A$3:$M$105,8,FALSE)*P63,"") ->  | I63: =IFERROR(VLOOKUP(A63,STAGIONALITA!$A$3:$M$105,9,FALSE)*P63,"") ->  | J63: =IFERROR(VLOOKUP(A63,STAGIONALITA!$A$3:$M$105,10,FALSE)*P63,"") ->  | K63: =IFERROR(VLOOKUP(A63,STAGIONALITA!$A$3:$M$105,11,FALSE)*P63,"") ->  | L63: =IFERROR(VLOOKUP(A63,STAGIONALITA!$A$3:$M$105,12,FALSE)*P63,"") ->  | M63: =IFERROR(VLOOKUP(A63,STAGIONALITA!$A$3:$M$105,13,FALSE)*P63,"") -> 
A64: =IF(O64=0,"",O64) ->  | B64: =IFERROR(VLOOKUP(A64,STAGIONALITA!$A$3:$M$105,2,FALSE)*P64,"") ->  | C64: =IFERROR(VLOOKUP(A64,STAGIONALITA!$A$3:$M$105,3,FALSE)*P64,"") ->  | D64: =IFERROR(VLOOKUP(A64,STAGIONALITA!$A$3:$M$105,4,FALSE)*P64,"") ->  | E64: =IFERROR(VLOOKUP(A64,STAGIONALITA!$A$3:$M$105,5,FALSE)*P64,"") ->  | F64: =IFERROR(VLOOKUP(A64,STAGIONALITA!$A$3:$M$105,6,FALSE)*P64,"") ->  | G64: =IFERROR(VLOOKUP(A64,STAGIONALITA!$A$3:$M$105,7,FALSE)*P64,"") ->  | H64: =IFERROR(VLOOKUP(A64,STAGIONALITA!$A$3:$M$105,8,FALSE)*P64,"") ->  | I64: =IFERROR(VLOOKUP(A64,STAGIONALITA!$A$3:$M$105,9,FALSE)*P64,"") ->  | J64: =IFERROR(VLOOKUP(A64,STAGIONALITA!$A$3:$M$105,10,FALSE)*P64,"") ->  | K64: =IFERROR(VLOOKUP(A64,STAGIONALITA!$A$3:$M$105,11,FALSE)*P64,"") ->  | L64: =IFERROR(VLOOKUP(A64,STAGIONALITA!$A$3:$M$105,12,FALSE)*P64,"") ->  | M64: =IFERROR(VLOOKUP(A64,STAGIONALITA!$A$3:$M$105,13,FALSE)*P64,"") -> 
A65: =IF(O65=0,"",O65) ->  | B65: =IFERROR(VLOOKUP(A65,STAGIONALITA!$A$3:$M$105,2,FALSE)*P65,"") ->  | C65: =IFERROR(VLOOKUP(A65,STAGIONALITA!$A$3:$M$105,3,FALSE)*P65,"") ->  | D65: =IFERROR(VLOOKUP(A65,STAGIONALITA!$A$3:$M$105,4,FALSE)*P65,"") ->  | E65: =IFERROR(VLOOKUP(A65,STAGIONALITA!$A$3:$M$105,5,FALSE)*P65,"") ->  | F65: =IFERROR(VLOOKUP(A65,STAGIONALITA!$A$3:$M$105,6,FALSE)*P65,"") ->  | G65: =IFERROR(VLOOKUP(A65,STAGIONALITA!$A$3:$M$105,7,FALSE)*P65,"") ->  | H65: =IFERROR(VLOOKUP(A65,STAGIONALITA!$A$3:$M$105,8,FALSE)*P65,"") ->  | I65: =IFERROR(VLOOKUP(A65,STAGIONALITA!$A$3:$M$105,9,FALSE)*P65,"") ->  | J65: =IFERROR(VLOOKUP(A65,STAGIONALITA!$A$3:$M$105,10,FALSE)*P65,"") ->  | K65: =IFERROR(VLOOKUP(A65,STAGIONALITA!$A$3:$M$105,11,FALSE)*P65,"") ->  | L65: =IFERROR(VLOOKUP(A65,STAGIONALITA!$A$3:$M$105,12,FALSE)*P65,"") ->  | M65: =IFERROR(VLOOKUP(A65,STAGIONALITA!$A$3:$M$105,13,FALSE)*P65,"") -> 
A66: =IF(O66=0,"",O66) ->  | B66: =IFERROR(VLOOKUP(A66,STAGIONALITA!$A$3:$M$105,2,FALSE)*P66,"") ->  | C66: =IFERROR(VLOOKUP(A66,STAGIONALITA!$A$3:$M$105,3,FALSE)*P66,"") ->  | D66: =IFERROR(VLOOKUP(A66,STAGIONALITA!$A$3:$M$105,4,FALSE)*P66,"") ->  | E66: =IFERROR(VLOOKUP(A66,STAGIONALITA!$A$3:$M$105,5,FALSE)*P66,"") ->  | F66: =IFERROR(VLOOKUP(A66,STAGIONALITA!$A$3:$M$105,6,FALSE)*P66,"") ->  | G66: =IFERROR(VLOOKUP(A66,STAGIONALITA!$A$3:$M$105,7,FALSE)*P66,"") ->  | H66: =IFERROR(VLOOKUP(A66,STAGIONALITA!$A$3:$M$105,8,FALSE)*P66,"") ->  | I66: =IFERROR(VLOOKUP(A66,STAGIONALITA!$A$3:$M$105,9,FALSE)*P66,"") ->  | J66: =IFERROR(VLOOKUP(A66,STAGIONALITA!$A$3:$M$105,10,FALSE)*P66,"") ->  | K66: =IFERROR(VLOOKUP(A66,STAGIONALITA!$A$3:$M$105,11,FALSE)*P66,"") ->  | L66: =IFERROR(VLOOKUP(A66,STAGIONALITA!$A$3:$M$105,12,FALSE)*P66,"") ->  | M66: =IFERROR(VLOOKUP(A66,STAGIONALITA!$A$3:$M$105,13,FALSE)*P66,"") -> 
A67: =IF(O67=0,"",O67) ->  | B67: =IFERROR(VLOOKUP(A67,STAGIONALITA!$A$3:$M$105,2,FALSE)*P67,"") ->  | C67: =IFERROR(VLOOKUP(A67,STAGIONALITA!$A$3:$M$105,3,FALSE)*P67,"") ->  | D67: =IFERROR(VLOOKUP(A67,STAGIONALITA!$A$3:$M$105,4,FALSE)*P67,"") ->  | E67: =IFERROR(VLOOKUP(A67,STAGIONALITA!$A$3:$M$105,5,FALSE)*P67,"") ->  | F67: =IFERROR(VLOOKUP(A67,STAGIONALITA!$A$3:$M$105,6,FALSE)*P67,"") ->  | G67: =IFERROR(VLOOKUP(A67,STAGIONALITA!$A$3:$M$105,7,FALSE)*P67,"") ->  | H67: =IFERROR(VLOOKUP(A67,STAGIONALITA!$A$3:$M$105,8,FALSE)*P67,"") ->  | I67: =IFERROR(VLOOKUP(A67,STAGIONALITA!$A$3:$M$105,9,FALSE)*P67,"") ->  | J67: =IFERROR(VLOOKUP(A67,STAGIONALITA!$A$3:$M$105,10,FALSE)*P67,"") ->  | K67: =IFERROR(VLOOKUP(A67,STAGIONALITA!$A$3:$M$105,11,FALSE)*P67,"") ->  | L67: =IFERROR(VLOOKUP(A67,STAGIONALITA!$A$3:$M$105,12,FALSE)*P67,"") ->  | M67: =IFERROR(VLOOKUP(A67,STAGIONALITA!$A$3:$M$105,13,FALSE)*P67,"") -> 
B68: =IFERROR(VLOOKUP(A68,STAGIONALITA!$A$3:$M$105,2,FALSE)*P68,"") ->  | C68: =IFERROR(VLOOKUP(A68,STAGIONALITA!$A$3:$M$105,3,FALSE)*P68,"") ->  | D68: =IFERROR(VLOOKUP(A68,STAGIONALITA!$A$3:$M$105,4,FALSE)*P68,"") ->  | E68: =IFERROR(VLOOKUP(A68,STAGIONALITA!$A$3:$M$105,5,FALSE)*P68,"") ->  | F68: =IFERROR(VLOOKUP(A68,STAGIONALITA!$A$3:$M$105,6,FALSE)*P68,"") ->  | G68: =IFERROR(VLOOKUP(A68,STAGIONALITA!$A$3:$M$105,7,FALSE)*P68,"") ->  | H68: =IFERROR(VLOOKUP(A68,STAGIONALITA!$A$3:$M$105,8,FALSE)*P68,"") ->  | I68: =IFERROR(VLOOKUP(A68,STAGIONALITA!$A$3:$M$105,9,FALSE)*P68,"") ->  | J68: =IFERROR(VLOOKUP(A68,STAGIONALITA!$A$3:$M$105,10,FALSE)*P68,"") ->  | K68: =IFERROR(VLOOKUP(A68,STAGIONALITA!$A$3:$M$105,11,FALSE)*P68,"") ->  | L68: =IFERROR(VLOOKUP(A68,STAGIONALITA!$A$3:$M$105,12,FALSE)*P68,"") ->  | M68: =IFERROR(VLOOKUP(A68,STAGIONALITA!$A$3:$M$105,13,FALSE)*P68,"") -> 
B69: =IFERROR(VLOOKUP(A69,STAGIONALITA!$A$3:$M$105,2,FALSE)*P69,"") ->  | C69: =IFERROR(VLOOKUP(A69,STAGIONALITA!$A$3:$M$105,3,FALSE)*P69,"") ->  | D69: =IFERROR(VLOOKUP(A69,STAGIONALITA!$A$3:$M$105,4,FALSE)*P69,"") ->  | E69: =IFERROR(VLOOKUP(A69,STAGIONALITA!$A$3:$M$105,5,FALSE)*P69,"") ->  | F69: =IFERROR(VLOOKUP(A69,STAGIONALITA!$A$3:$M$105,6,FALSE)*P69,"") ->  | G69: =IFERROR(VLOOKUP(A69,STAGIONALITA!$A$3:$M$105,7,FALSE)*P69,"") ->  | H69: =IFERROR(VLOOKUP(A69,STAGIONALITA!$A$3:$M$105,8,FALSE)*P69,"") ->  | I69: =IFERROR(VLOOKUP(A69,STAGIONALITA!$A$3:$M$105,9,FALSE)*P69,"") ->  | J69: =IFERROR(VLOOKUP(A69,STAGIONALITA!$A$3:$M$105,10,FALSE)*P69,"") ->  | K69: =IFERROR(VLOOKUP(A69,STAGIONALITA!$A$3:$M$105,11,FALSE)*P69,"") ->  | L69: =IFERROR(VLOOKUP(A69,STAGIONALITA!$A$3:$M$105,12,FALSE)*P69,"") ->  | M69: =IFERROR(VLOOKUP(A69,STAGIONALITA!$A$3:$M$105,13,FALSE)*P69,"") -> 
B70: =IFERROR(VLOOKUP(A70,STAGIONALITA!$A$3:$M$105,2,FALSE)*P70,"") ->  | C70: =IFERROR(VLOOKUP(A70,STAGIONALITA!$A$3:$M$105,3,FALSE)*P70,"") ->  | D70: =IFERROR(VLOOKUP(A70,STAGIONALITA!$A$3:$M$105,4,FALSE)*P70,"") ->  | E70: =IFERROR(VLOOKUP(A70,STAGIONALITA!$A$3:$M$105,5,FALSE)*P70,"") ->  | F70: =IFERROR(VLOOKUP(A70,STAGIONALITA!$A$3:$M$105,6,FALSE)*P70,"") ->  | G70: =IFERROR(VLOOKUP(A70,STAGIONALITA!$A$3:$M$105,7,FALSE)*P70,"") ->  | H70: =IFERROR(VLOOKUP(A70,STAGIONALITA!$A$3:$M$105,8,FALSE)*P70,"") ->  | I70: =IFERROR(VLOOKUP(A70,STAGIONALITA!$A$3:$M$105,9,FALSE)*P70,"") ->  | J70: =IFERROR(VLOOKUP(A70,STAGIONALITA!$A$3:$M$105,10,FALSE)*P70,"") ->  | K70: =IFERROR(VLOOKUP(A70,STAGIONALITA!$A$3:$M$105,11,FALSE)*P70,"") ->  | L70: =IFERROR(VLOOKUP(A70,STAGIONALITA!$A$3:$M$105,12,FALSE)*P70,"") ->  | M70: =IFERROR(VLOOKUP(A70,STAGIONALITA!$A$3:$M$105,13,FALSE)*P70,"") -> 
B71: =IFERROR(VLOOKUP(A71,STAGIONALITA!$A$3:$M$105,2,FALSE)*P71,"") ->  | C71: =IFERROR(VLOOKUP(A71,STAGIONALITA!$A$3:$M$105,3,FALSE)*P71,"") ->  | D71: =IFERROR(VLOOKUP(A71,STAGIONALITA!$A$3:$M$105,4,FALSE)*P71,"") ->  | E71: =IFERROR(VLOOKUP(A71,STAGIONALITA!$A$3:$M$105,5,FALSE)*P71,"") ->  | F71: =IFERROR(VLOOKUP(A71,STAGIONALITA!$A$3:$M$105,6,FALSE)*P71,"") ->  | G71: =IFERROR(VLOOKUP(A71,STAGIONALITA!$A$3:$M$105,7,FALSE)*P71,"") ->  | H71: =IFERROR(VLOOKUP(A71,STAGIONALITA!$A$3:$M$105,8,FALSE)*P71,"") ->  | I71: =IFERROR(VLOOKUP(A71,STAGIONALITA!$A$3:$M$105,9,FALSE)*P71,"") ->  | J71: =IFERROR(VLOOKUP(A71,STAGIONALITA!$A$3:$M$105,10,FALSE)*P71,"") ->  | K71: =IFERROR(VLOOKUP(A71,STAGIONALITA!$A$3:$M$105,11,FALSE)*P71,"") ->  | L71: =IFERROR(VLOOKUP(A71,STAGIONALITA!$A$3:$M$105,12,FALSE)*P71,"") ->  | M71: =IFERROR(VLOOKUP(A71,STAGIONALITA!$A$3:$M$105,13,FALSE)*P71,"") -> 
B72: =IFERROR(VLOOKUP(A72,STAGIONALITA!$A$3:$M$105,2,FALSE)*P72,"") ->  | C72: =IFERROR(VLOOKUP(A72,STAGIONALITA!$A$3:$M$105,3,FALSE)*P72,"") ->  | D72: =IFERROR(VLOOKUP(A72,STAGIONALITA!$A$3:$M$105,4,FALSE)*P72,"") ->  | E72: =IFERROR(VLOOKUP(A72,STAGIONALITA!$A$3:$M$105,5,FALSE)*P72,"") ->  | F72: =IFERROR(VLOOKUP(A72,STAGIONALITA!$A$3:$M$105,6,FALSE)*P72,"") ->  | G72: =IFERROR(VLOOKUP(A72,STAGIONALITA!$A$3:$M$105,7,FALSE)*P72,"") ->  | H72: =IFERROR(VLOOKUP(A72,STAGIONALITA!$A$3:$M$105,8,FALSE)*P72,"") ->  | I72: =IFERROR(VLOOKUP(A72,STAGIONALITA!$A$3:$M$105,9,FALSE)*P72,"") ->  | J72: =IFERROR(VLOOKUP(A72,STAGIONALITA!$A$3:$M$105,10,FALSE)*P72,"") ->  | K72: =IFERROR(VLOOKUP(A72,STAGIONALITA!$A$3:$M$105,11,FALSE)*P72,"") ->  | L72: =IFERROR(VLOOKUP(A72,STAGIONALITA!$A$3:$M$105,12,FALSE)*P72,"") ->  | M72: =IFERROR(VLOOKUP(A72,STAGIONALITA!$A$3:$M$105,13,FALSE)*P72,"") -> 
B73: =IFERROR(VLOOKUP(A73,STAGIONALITA!$A$3:$M$105,2,FALSE)*P73,"") ->  | C73: =IFERROR(VLOOKUP(A73,STAGIONALITA!$A$3:$M$105,3,FALSE)*P73,"") ->  | D73: =IFERROR(VLOOKUP(A73,STAGIONALITA!$A$3:$M$105,4,FALSE)*P73,"") ->  | E73: =IFERROR(VLOOKUP(A73,STAGIONALITA!$A$3:$M$105,5,FALSE)*P73,"") ->  | F73: =IFERROR(VLOOKUP(A73,STAGIONALITA!$A$3:$M$105,6,FALSE)*P73,"") ->  | G73: =IFERROR(VLOOKUP(A73,STAGIONALITA!$A$3:$M$105,7,FALSE)*P73,"") ->  | H73: =IFERROR(VLOOKUP(A73,STAGIONALITA!$A$3:$M$105,8,FALSE)*P73,"") ->  | I73: =IFERROR(VLOOKUP(A73,STAGIONALITA!$A$3:$M$105,9,FALSE)*P73,"") ->  | J73: =IFERROR(VLOOKUP(A73,STAGIONALITA!$A$3:$M$105,10,FALSE)*P73,"") ->  | K73: =IFERROR(VLOOKUP(A73,STAGIONALITA!$A$3:$M$105,11,FALSE)*P73,"") ->  | L73: =IFERROR(VLOOKUP(A73,STAGIONALITA!$A$3:$M$105,12,FALSE)*P73,"") ->  | M73: =IFERROR(VLOOKUP(A73,STAGIONALITA!$A$3:$M$105,13,FALSE)*P73,"") -> 
B74: =IFERROR(VLOOKUP(A74,STAGIONALITA!$A$3:$M$105,2,FALSE)*P74,"") ->  | C74: =IFERROR(VLOOKUP(A74,STAGIONALITA!$A$3:$M$105,3,FALSE)*P74,"") ->  | D74: =IFERROR(VLOOKUP(A74,STAGIONALITA!$A$3:$M$105,4,FALSE)*P74,"") ->  | E74: =IFERROR(VLOOKUP(A74,STAGIONALITA!$A$3:$M$105,5,FALSE)*P74,"") ->  | F74: =IFERROR(VLOOKUP(A74,STAGIONALITA!$A$3:$M$105,6,FALSE)*P74,"") ->  | G74: =IFERROR(VLOOKUP(A74,STAGIONALITA!$A$3:$M$105,7,FALSE)*P74,"") ->  | H74: =IFERROR(VLOOKUP(A74,STAGIONALITA!$A$3:$M$105,8,FALSE)*P74,"") ->  | I74: =IFERROR(VLOOKUP(A74,STAGIONALITA!$A$3:$M$105,9,FALSE)*P74,"") ->  | J74: =IFERROR(VLOOKUP(A74,STAGIONALITA!$A$3:$M$105,10,FALSE)*P74,"") ->  | K74: =IFERROR(VLOOKUP(A74,STAGIONALITA!$A$3:$M$105,11,FALSE)*P74,"") ->  | L74: =IFERROR(VLOOKUP(A74,STAGIONALITA!$A$3:$M$105,12,FALSE)*P74,"") ->  | M74: =IFERROR(VLOOKUP(A74,STAGIONALITA!$A$3:$M$105,13,FALSE)*P74,"") -> 
B75: =IFERROR(VLOOKUP(A75,STAGIONALITA!$A$3:$M$105,2,FALSE)*P75,"") ->  | C75: =IFERROR(VLOOKUP(A75,STAGIONALITA!$A$3:$M$105,3,FALSE)*P75,"") ->  | D75: =IFERROR(VLOOKUP(A75,STAGIONALITA!$A$3:$M$105,4,FALSE)*P75,"") ->  | E75: =IFERROR(VLOOKUP(A75,STAGIONALITA!$A$3:$M$105,5,FALSE)*P75,"") ->  | F75: =IFERROR(VLOOKUP(A75,STAGIONALITA!$A$3:$M$105,6,FALSE)*P75,"") ->  | G75: =IFERROR(VLOOKUP(A75,STAGIONALITA!$A$3:$M$105,7,FALSE)*P75,"") ->  | H75: =IFERROR(VLOOKUP(A75,STAGIONALITA!$A$3:$M$105,8,FALSE)*P75,"") ->  | I75: =IFERROR(VLOOKUP(A75,STAGIONALITA!$A$3:$M$105,9,FALSE)*P75,"") ->  | J75: =IFERROR(VLOOKUP(A75,STAGIONALITA!$A$3:$M$105,10,FALSE)*P75,"") ->  | K75: =IFERROR(VLOOKUP(A75,STAGIONALITA!$A$3:$M$105,11,FALSE)*P75,"") ->  | L75: =IFERROR(VLOOKUP(A75,STAGIONALITA!$A$3:$M$105,12,FALSE)*P75,"") ->  | M75: =IFERROR(VLOOKUP(A75,STAGIONALITA!$A$3:$M$105,13,FALSE)*P75,"") -> 
B76: =IFERROR(VLOOKUP(A76,STAGIONALITA!$A$3:$M$105,2,FALSE)*P76,"") ->  | C76: =IFERROR(VLOOKUP(A76,STAGIONALITA!$A$3:$M$105,3,FALSE)*P76,"") ->  | D76: =IFERROR(VLOOKUP(A76,STAGIONALITA!$A$3:$M$105,4,FALSE)*P76,"") ->  | E76: =IFERROR(VLOOKUP(A76,STAGIONALITA!$A$3:$M$105,5,FALSE)*P76,"") ->  | F76: =IFERROR(VLOOKUP(A76,STAGIONALITA!$A$3:$M$105,6,FALSE)*P76,"") ->  | G76: =IFERROR(VLOOKUP(A76,STAGIONALITA!$A$3:$M$105,7,FALSE)*P76,"") ->  | H76: =IFERROR(VLOOKUP(A76,STAGIONALITA!$A$3:$M$105,8,FALSE)*P76,"") ->  | I76: =IFERROR(VLOOKUP(A76,STAGIONALITA!$A$3:$M$105,9,FALSE)*P76,"") ->  | J76: =IFERROR(VLOOKUP(A76,STAGIONALITA!$A$3:$M$105,10,FALSE)*P76,"") ->  | K76: =IFERROR(VLOOKUP(A76,STAGIONALITA!$A$3:$M$105,11,FALSE)*P76,"") ->  | L76: =IFERROR(VLOOKUP(A76,STAGIONALITA!$A$3:$M$105,12,FALSE)*P76,"") ->  | M76: =IFERROR(VLOOKUP(A76,STAGIONALITA!$A$3:$M$105,13,FALSE)*P76,"") -> 
B77: =IFERROR(VLOOKUP(A77,STAGIONALITA!$A$3:$M$105,2,FALSE)*P77,"") ->  | C77: =IFERROR(VLOOKUP(A77,STAGIONALITA!$A$3:$M$105,3,FALSE)*P77,"") ->  | D77: =IFERROR(VLOOKUP(A77,STAGIONALITA!$A$3:$M$105,4,FALSE)*P77,"") ->  | E77: =IFERROR(VLOOKUP(A77,STAGIONALITA!$A$3:$M$105,5,FALSE)*P77,"") ->  | F77: =IFERROR(VLOOKUP(A77,STAGIONALITA!$A$3:$M$105,6,FALSE)*P77,"") ->  | G77: =IFERROR(VLOOKUP(A77,STAGIONALITA!$A$3:$M$105,7,FALSE)*P77,"") ->  | H77: =IFERROR(VLOOKUP(A77,STAGIONALITA!$A$3:$M$105,8,FALSE)*P77,"") ->  | I77: =IFERROR(VLOOKUP(A77,STAGIONALITA!$A$3:$M$105,9,FALSE)*P77,"") ->  | J77: =IFERROR(VLOOKUP(A77,STAGIONALITA!$A$3:$M$105,10,FALSE)*P77,"") ->  | K77: =IFERROR(VLOOKUP(A77,STAGIONALITA!$A$3:$M$105,11,FALSE)*P77,"") ->  | L77: =IFERROR(VLOOKUP(A77,STAGIONALITA!$A$3:$M$105,12,FALSE)*P77,"") ->  | M77: =IFERROR(VLOOKUP(A77,STAGIONALITA!$A$3:$M$105,13,FALSE)*P77,"") -> 
B78: =IFERROR(VLOOKUP(A78,STAGIONALITA!$A$3:$M$105,2,FALSE)*P78,"") ->  | C78: =IFERROR(VLOOKUP(A78,STAGIONALITA!$A$3:$M$105,3,FALSE)*P78,"") ->  | D78: =IFERROR(VLOOKUP(A78,STAGIONALITA!$A$3:$M$105,4,FALSE)*P78,"") ->  | E78: =IFERROR(VLOOKUP(A78,STAGIONALITA!$A$3:$M$105,5,FALSE)*P78,"") ->  | F78: =IFERROR(VLOOKUP(A78,STAGIONALITA!$A$3:$M$105,6,FALSE)*P78,"") ->  | G78: =IFERROR(VLOOKUP(A78,STAGIONALITA!$A$3:$M$105,7,FALSE)*P78,"") ->  | H78: =IFERROR(VLOOKUP(A78,STAGIONALITA!$A$3:$M$105,8,FALSE)*P78,"") ->  | I78: =IFERROR(VLOOKUP(A78,STAGIONALITA!$A$3:$M$105,9,FALSE)*P78,"") ->  | J78: =IFERROR(VLOOKUP(A78,STAGIONALITA!$A$3:$M$105,10,FALSE)*P78,"") ->  | K78: =IFERROR(VLOOKUP(A78,STAGIONALITA!$A$3:$M$105,11,FALSE)*P78,"") ->  | L78: =IFERROR(VLOOKUP(A78,STAGIONALITA!$A$3:$M$105,12,FALSE)*P78,"") ->  | M78: =IFERROR(VLOOKUP(A78,STAGIONALITA!$A$3:$M$105,13,FALSE)*P78,"") -> 
B79: =IFERROR(VLOOKUP(A79,STAGIONALITA!$A$3:$M$105,2,FALSE)*P79,"") ->  | C79: =IFERROR(VLOOKUP(A79,STAGIONALITA!$A$3:$M$105,3,FALSE)*P79,"") ->  | D79: =IFERROR(VLOOKUP(A79,STAGIONALITA!$A$3:$M$105,4,FALSE)*P79,"") ->  | E79: =IFERROR(VLOOKUP(A79,STAGIONALITA!$A$3:$M$105,5,FALSE)*P79,"") ->  | F79: =IFERROR(VLOOKUP(A79,STAGIONALITA!$A$3:$M$105,6,FALSE)*P79,"") ->  | G79: =IFERROR(VLOOKUP(A79,STAGIONALITA!$A$3:$M$105,7,FALSE)*P79,"") ->  | H79: =IFERROR(VLOOKUP(A79,STAGIONALITA!$A$3:$M$105,8,FALSE)*P79,"") ->  | I79: =IFERROR(VLOOKUP(A79,STAGIONALITA!$A$3:$M$105,9,FALSE)*P79,"") ->  | J79: =IFERROR(VLOOKUP(A79,STAGIONALITA!$A$3:$M$105,10,FALSE)*P79,"") ->  | K79: =IFERROR(VLOOKUP(A79,STAGIONALITA!$A$3:$M$105,11,FALSE)*P79,"") ->  | L79: =IFERROR(VLOOKUP(A79,STAGIONALITA!$A$3:$M$105,12,FALSE)*P79,"") ->  | M79: =IFERROR(VLOOKUP(A79,STAGIONALITA!$A$3:$M$105,13,FALSE)*P79,"") -> 
B80: =IFERROR(VLOOKUP(A80,STAGIONALITA!$A$3:$M$105,2,FALSE)*P80,"") ->  | C80: =IFERROR(VLOOKUP(A80,STAGIONALITA!$A$3:$M$105,3,FALSE)*P80,"") ->  | D80: =IFERROR(VLOOKUP(A80,STAGIONALITA!$A$3:$M$105,4,FALSE)*P80,"") ->  | E80: =IFERROR(VLOOKUP(A80,STAGIONALITA!$A$3:$M$105,5,FALSE)*P80,"") ->  | F80: =IFERROR(VLOOKUP(A80,STAGIONALITA!$A$3:$M$105,6,FALSE)*P80,"") ->  | G80: =IFERROR(VLOOKUP(A80,STAGIONALITA!$A$3:$M$105,7,FALSE)*P80,"") ->  | H80: =IFERROR(VLOOKUP(A80,STAGIONALITA!$A$3:$M$105,8,FALSE)*P80,"") ->  | I80: =IFERROR(VLOOKUP(A80,STAGIONALITA!$A$3:$M$105,9,FALSE)*P80,"") ->  | J80: =IFERROR(VLOOKUP(A80,STAGIONALITA!$A$3:$M$105,10,FALSE)*P80,"") ->  | K80: =IFERROR(VLOOKUP(A80,STAGIONALITA!$A$3:$M$105,11,FALSE)*P80,"") ->  | L80: =IFERROR(VLOOKUP(A80,STAGIONALITA!$A$3:$M$105,12,FALSE)*P80,"") ->  | M80: =IFERROR(VLOOKUP(A80,STAGIONALITA!$A$3:$M$105,13,FALSE)*P80,"") -> 
B81: =IFERROR(VLOOKUP(A81,STAGIONALITA!$A$3:$M$105,2,FALSE)*P81,"") ->  | C81: =IFERROR(VLOOKUP(A81,STAGIONALITA!$A$3:$M$105,3,FALSE)*P81,"") ->  | D81: =IFERROR(VLOOKUP(A81,STAGIONALITA!$A$3:$M$105,4,FALSE)*P81,"") ->  | E81: =IFERROR(VLOOKUP(A81,STAGIONALITA!$A$3:$M$105,5,FALSE)*P81,"") ->  | F81: =IFERROR(VLOOKUP(A81,STAGIONALITA!$A$3:$M$105,6,FALSE)*P81,"") ->  | G81: =IFERROR(VLOOKUP(A81,STAGIONALITA!$A$3:$M$105,7,FALSE)*P81,"") ->  | H81: =IFERROR(VLOOKUP(A81,STAGIONALITA!$A$3:$M$105,8,FALSE)*P81,"") ->  | I81: =IFERROR(VLOOKUP(A81,STAGIONALITA!$A$3:$M$105,9,FALSE)*P81,"") ->  | J81: =IFERROR(VLOOKUP(A81,STAGIONALITA!$A$3:$M$105,10,FALSE)*P81,"") ->  | K81: =IFERROR(VLOOKUP(A81,STAGIONALITA!$A$3:$M$105,11,FALSE)*P81,"") ->  | L81: =IFERROR(VLOOKUP(A81,STAGIONALITA!$A$3:$M$105,12,FALSE)*P81,"") ->  | M81: =IFERROR(VLOOKUP(A81,STAGIONALITA!$A$3:$M$105,13,FALSE)*P81,"") -> 
B82: =IFERROR(VLOOKUP(A82,STAGIONALITA!$A$3:$M$105,2,FALSE)*P82,"") ->  | C82: =IFERROR(VLOOKUP(A82,STAGIONALITA!$A$3:$M$105,3,FALSE)*P82,"") ->  | D82: =IFERROR(VLOOKUP(A82,STAGIONALITA!$A$3:$M$105,4,FALSE)*P82,"") ->  | E82: =IFERROR(VLOOKUP(A82,STAGIONALITA!$A$3:$M$105,5,FALSE)*P82,"") ->  | F82: =IFERROR(VLOOKUP(A82,STAGIONALITA!$A$3:$M$105,6,FALSE)*P82,"") ->  | G82: =IFERROR(VLOOKUP(A82,STAGIONALITA!$A$3:$M$105,7,FALSE)*P82,"") ->  | H82: =IFERROR(VLOOKUP(A82,STAGIONALITA!$A$3:$M$105,8,FALSE)*P82,"") ->  | I82: =IFERROR(VLOOKUP(A82,STAGIONALITA!$A$3:$M$105,9,FALSE)*P82,"") ->  | J82: =IFERROR(VLOOKUP(A82,STAGIONALITA!$A$3:$M$105,10,FALSE)*P82,"") ->  | K82: =IFERROR(VLOOKUP(A82,STAGIONALITA!$A$3:$M$105,11,FALSE)*P82,"") ->  | L82: =IFERROR(VLOOKUP(A82,STAGIONALITA!$A$3:$M$105,12,FALSE)*P82,"") ->  | M82: =IFERROR(VLOOKUP(A82,STAGIONALITA!$A$3:$M$105,13,FALSE)*P82,"") -> 
B83: =IFERROR(VLOOKUP(A83,STAGIONALITA!$A$3:$M$105,2,FALSE)*P83,"") ->  | C83: =IFERROR(VLOOKUP(A83,STAGIONALITA!$A$3:$M$105,3,FALSE)*P83,"") ->  | D83: =IFERROR(VLOOKUP(A83,STAGIONALITA!$A$3:$M$105,4,FALSE)*P83,"") ->  | E83: =IFERROR(VLOOKUP(A83,STAGIONALITA!$A$3:$M$105,5,FALSE)*P83,"") ->  | F83: =IFERROR(VLOOKUP(A83,STAGIONALITA!$A$3:$M$105,6,FALSE)*P83,"") ->  | G83: =IFERROR(VLOOKUP(A83,STAGIONALITA!$A$3:$M$105,7,FALSE)*P83,"") ->  | H83: =IFERROR(VLOOKUP(A83,STAGIONALITA!$A$3:$M$105,8,FALSE)*P83,"") ->  | I83: =IFERROR(VLOOKUP(A83,STAGIONALITA!$A$3:$M$105,9,FALSE)*P83,"") ->  | J83: =IFERROR(VLOOKUP(A83,STAGIONALITA!$A$3:$M$105,10,FALSE)*P83,"") ->  | K83: =IFERROR(VLOOKUP(A83,STAGIONALITA!$A$3:$M$105,11,FALSE)*P83,"") ->  | L83: =IFERROR(VLOOKUP(A83,STAGIONALITA!$A$3:$M$105,12,FALSE)*P83,"") ->  | M83: =IFERROR(VLOOKUP(A83,STAGIONALITA!$A$3:$M$105,13,FALSE)*P83,"") -> 
B84: =IFERROR(VLOOKUP(A84,STAGIONALITA!$A$3:$M$105,2,FALSE)*P84,"") ->  | C84: =IFERROR(VLOOKUP(A84,STAGIONALITA!$A$3:$M$105,3,FALSE)*P84,"") ->  | D84: =IFERROR(VLOOKUP(A84,STAGIONALITA!$A$3:$M$105,4,FALSE)*P84,"") ->  | E84: =IFERROR(VLOOKUP(A84,STAGIONALITA!$A$3:$M$105,5,FALSE)*P84,"") ->  | F84: =IFERROR(VLOOKUP(A84,STAGIONALITA!$A$3:$M$105,6,FALSE)*P84,"") ->  | G84: =IFERROR(VLOOKUP(A84,STAGIONALITA!$A$3:$M$105,7,FALSE)*P84,"") ->  | H84: =IFERROR(VLOOKUP(A84,STAGIONALITA!$A$3:$M$105,8,FALSE)*P84,"") ->  | I84: =IFERROR(VLOOKUP(A84,STAGIONALITA!$A$3:$M$105,9,FALSE)*P84,"") ->  | J84: =IFERROR(VLOOKUP(A84,STAGIONALITA!$A$3:$M$105,10,FALSE)*P84,"") ->  | K84: =IFERROR(VLOOKUP(A84,STAGIONALITA!$A$3:$M$105,11,FALSE)*P84,"") ->  | L84: =IFERROR(VLOOKUP(A84,STAGIONALITA!$A$3:$M$105,12,FALSE)*P84,"") ->  | M84: =IFERROR(VLOOKUP(A84,STAGIONALITA!$A$3:$M$105,13,FALSE)*P84,"") -> 
B85: =IFERROR(VLOOKUP(A85,STAGIONALITA!$A$3:$M$105,2,FALSE)*P85,"") ->  | C85: =IFERROR(VLOOKUP(A85,STAGIONALITA!$A$3:$M$105,3,FALSE)*P85,"") ->  | D85: =IFERROR(VLOOKUP(A85,STAGIONALITA!$A$3:$M$105,4,FALSE)*P85,"") ->  | E85: =IFERROR(VLOOKUP(A85,STAGIONALITA!$A$3:$M$105,5,FALSE)*P85,"") ->  | F85: =IFERROR(VLOOKUP(A85,STAGIONALITA!$A$3:$M$105,6,FALSE)*P85,"") ->  | G85: =IFERROR(VLOOKUP(A85,STAGIONALITA!$A$3:$M$105,7,FALSE)*P85,"") ->  | H85: =IFERROR(VLOOKUP(A85,STAGIONALITA!$A$3:$M$105,8,FALSE)*P85,"") ->  | I85: =IFERROR(VLOOKUP(A85,STAGIONALITA!$A$3:$M$105,9,FALSE)*P85,"") ->  | J85: =IFERROR(VLOOKUP(A85,STAGIONALITA!$A$3:$M$105,10,FALSE)*P85,"") ->  | K85: =IFERROR(VLOOKUP(A85,STAGIONALITA!$A$3:$M$105,11,FALSE)*P85,"") ->  | L85: =IFERROR(VLOOKUP(A85,STAGIONALITA!$A$3:$M$105,12,FALSE)*P85,"") ->  | M85: =IFERROR(VLOOKUP(A85,STAGIONALITA!$A$3:$M$105,13,FALSE)*P85,"") -> 
B86: =IFERROR(VLOOKUP(A86,STAGIONALITA!$A$3:$M$105,2,FALSE)*P86,"") ->  | C86: =IFERROR(VLOOKUP(A86,STAGIONALITA!$A$3:$M$105,3,FALSE)*P86,"") ->  | D86: =IFERROR(VLOOKUP(A86,STAGIONALITA!$A$3:$M$105,4,FALSE)*P86,"") ->  | E86: =IFERROR(VLOOKUP(A86,STAGIONALITA!$A$3:$M$105,5,FALSE)*P86,"") ->  | F86: =IFERROR(VLOOKUP(A86,STAGIONALITA!$A$3:$M$105,6,FALSE)*P86,"") ->  | G86: =IFERROR(VLOOKUP(A86,STAGIONALITA!$A$3:$M$105,7,FALSE)*P86,"") ->  | H86: =IFERROR(VLOOKUP(A86,STAGIONALITA!$A$3:$M$105,8,FALSE)*P86,"") ->  | I86: =IFERROR(VLOOKUP(A86,STAGIONALITA!$A$3:$M$105,9,FALSE)*P86,"") ->  | J86: =IFERROR(VLOOKUP(A86,STAGIONALITA!$A$3:$M$105,10,FALSE)*P86,"") ->  | K86: =IFERROR(VLOOKUP(A86,STAGIONALITA!$A$3:$M$105,11,FALSE)*P86,"") ->  | L86: =IFERROR(VLOOKUP(A86,STAGIONALITA!$A$3:$M$105,12,FALSE)*P86,"") ->  | M86: =IFERROR(VLOOKUP(A86,STAGIONALITA!$A$3:$M$105,13,FALSE)*P86,"") -> 
B87: =IFERROR(VLOOKUP(A87,STAGIONALITA!$A$3:$M$105,2,FALSE)*P87,"") ->  | C87: =IFERROR(VLOOKUP(A87,STAGIONALITA!$A$3:$M$105,3,FALSE)*P87,"") ->  | D87: =IFERROR(VLOOKUP(A87,STAGIONALITA!$A$3:$M$105,4,FALSE)*P87,"") ->  | E87: =IFERROR(VLOOKUP(A87,STAGIONALITA!$A$3:$M$105,5,FALSE)*P87,"") ->  | F87: =IFERROR(VLOOKUP(A87,STAGIONALITA!$A$3:$M$105,6,FALSE)*P87,"") ->  | G87: =IFERROR(VLOOKUP(A87,STAGIONALITA!$A$3:$M$105,7,FALSE)*P87,"") ->  | H87: =IFERROR(VLOOKUP(A87,STAGIONALITA!$A$3:$M$105,8,FALSE)*P87,"") ->  | I87: =IFERROR(VLOOKUP(A87,STAGIONALITA!$A$3:$M$105,9,FALSE)*P87,"") ->  | J87: =IFERROR(VLOOKUP(A87,STAGIONALITA!$A$3:$M$105,10,FALSE)*P87,"") ->  | K87: =IFERROR(VLOOKUP(A87,STAGIONALITA!$A$3:$M$105,11,FALSE)*P87,"") ->  | L87: =IFERROR(VLOOKUP(A87,STAGIONALITA!$A$3:$M$105,12,FALSE)*P87,"") ->  | M87: =IFERROR(VLOOKUP(A87,STAGIONALITA!$A$3:$M$105,13,FALSE)*P87,"") -> 
B88: =IFERROR(VLOOKUP(A88,STAGIONALITA!$A$3:$M$105,2,FALSE)*P88,"") ->  | C88: =IFERROR(VLOOKUP(A88,STAGIONALITA!$A$3:$M$105,3,FALSE)*P88,"") ->  | D88: =IFERROR(VLOOKUP(A88,STAGIONALITA!$A$3:$M$105,4,FALSE)*P88,"") ->  | E88: =IFERROR(VLOOKUP(A88,STAGIONALITA!$A$3:$M$105,5,FALSE)*P88,"") ->  | F88: =IFERROR(VLOOKUP(A88,STAGIONALITA!$A$3:$M$105,6,FALSE)*P88,"") ->  | G88: =IFERROR(VLOOKUP(A88,STAGIONALITA!$A$3:$M$105,7,FALSE)*P88,"") ->  | H88: =IFERROR(VLOOKUP(A88,STAGIONALITA!$A$3:$M$105,8,FALSE)*P88,"") ->  | I88: =IFERROR(VLOOKUP(A88,STAGIONALITA!$A$3:$M$105,9,FALSE)*P88,"") ->  | J88: =IFERROR(VLOOKUP(A88,STAGIONALITA!$A$3:$M$105,10,FALSE)*P88,"") ->  | K88: =IFERROR(VLOOKUP(A88,STAGIONALITA!$A$3:$M$105,11,FALSE)*P88,"") ->  | L88: =IFERROR(VLOOKUP(A88,STAGIONALITA!$A$3:$M$105,12,FALSE)*P88,"") ->  | M88: =IFERROR(VLOOKUP(A88,STAGIONALITA!$A$3:$M$105,13,FALSE)*P88,"") -> 
B89: =IFERROR(VLOOKUP(A89,STAGIONALITA!$A$3:$M$105,2,FALSE)*P89,"") ->  | C89: =IFERROR(VLOOKUP(A89,STAGIONALITA!$A$3:$M$105,3,FALSE)*P89,"") ->  | D89: =IFERROR(VLOOKUP(A89,STAGIONALITA!$A$3:$M$105,4,FALSE)*P89,"") ->  | E89: =IFERROR(VLOOKUP(A89,STAGIONALITA!$A$3:$M$105,5,FALSE)*P89,"") ->  | F89: =IFERROR(VLOOKUP(A89,STAGIONALITA!$A$3:$M$105,6,FALSE)*P89,"") ->  | G89: =IFERROR(VLOOKUP(A89,STAGIONALITA!$A$3:$M$105,7,FALSE)*P89,"") ->  | H89: =IFERROR(VLOOKUP(A89,STAGIONALITA!$A$3:$M$105,8,FALSE)*P89,"") ->  | I89: =IFERROR(VLOOKUP(A89,STAGIONALITA!$A$3:$M$105,9,FALSE)*P89,"") ->  | J89: =IFERROR(VLOOKUP(A89,STAGIONALITA!$A$3:$M$105,10,FALSE)*P89,"") ->  | K89: =IFERROR(VLOOKUP(A89,STAGIONALITA!$A$3:$M$105,11,FALSE)*P89,"") ->  | L89: =IFERROR(VLOOKUP(A89,STAGIONALITA!$A$3:$M$105,12,FALSE)*P89,"") ->  | M89: =IFERROR(VLOOKUP(A89,STAGIONALITA!$A$3:$M$105,13,FALSE)*P89,"") -> 
B90: =IFERROR(VLOOKUP(A90,STAGIONALITA!$A$3:$M$105,2,FALSE)*P90,"") ->  | C90: =IFERROR(VLOOKUP(A90,STAGIONALITA!$A$3:$M$105,3,FALSE)*P90,"") ->  | D90: =IFERROR(VLOOKUP(A90,STAGIONALITA!$A$3:$M$105,4,FALSE)*P90,"") ->  | E90: =IFERROR(VLOOKUP(A90,STAGIONALITA!$A$3:$M$105,5,FALSE)*P90,"") ->  | F90: =IFERROR(VLOOKUP(A90,STAGIONALITA!$A$3:$M$105,6,FALSE)*P90,"") ->  | G90: =IFERROR(VLOOKUP(A90,STAGIONALITA!$A$3:$M$105,7,FALSE)*P90,"") ->  | H90: =IFERROR(VLOOKUP(A90,STAGIONALITA!$A$3:$M$105,8,FALSE)*P90,"") ->  | I90: =IFERROR(VLOOKUP(A90,STAGIONALITA!$A$3:$M$105,9,FALSE)*P90,"") ->  | J90: =IFERROR(VLOOKUP(A90,STAGIONALITA!$A$3:$M$105,10,FALSE)*P90,"") ->  | K90: =IFERROR(VLOOKUP(A90,STAGIONALITA!$A$3:$M$105,11,FALSE)*P90,"") ->  | L90: =IFERROR(VLOOKUP(A90,STAGIONALITA!$A$3:$M$105,12,FALSE)*P90,"") ->  | M90: =IFERROR(VLOOKUP(A90,STAGIONALITA!$A$3:$M$105,13,FALSE)*P90,"") -> 
B91: =IFERROR(VLOOKUP(A91,STAGIONALITA!$A$3:$M$105,2,FALSE)*P91,"") ->  | C91: =IFERROR(VLOOKUP(A91,STAGIONALITA!$A$3:$M$105,3,FALSE)*P91,"") ->  | D91: =IFERROR(VLOOKUP(A91,STAGIONALITA!$A$3:$M$105,4,FALSE)*P91,"") ->  | E91: =IFERROR(VLOOKUP(A91,STAGIONALITA!$A$3:$M$105,5,FALSE)*P91,"") ->  | F91: =IFERROR(VLOOKUP(A91,STAGIONALITA!$A$3:$M$105,6,FALSE)*P91,"") ->  | G91: =IFERROR(VLOOKUP(A91,STAGIONALITA!$A$3:$M$105,7,FALSE)*P91,"") ->  | H91: =IFERROR(VLOOKUP(A91,STAGIONALITA!$A$3:$M$105,8,FALSE)*P91,"") ->  | I91: =IFERROR(VLOOKUP(A91,STAGIONALITA!$A$3:$M$105,9,FALSE)*P91,"") ->  | J91: =IFERROR(VLOOKUP(A91,STAGIONALITA!$A$3:$M$105,10,FALSE)*P91,"") ->  | K91: =IFERROR(VLOOKUP(A91,STAGIONALITA!$A$3:$M$105,11,FALSE)*P91,"") ->  | L91: =IFERROR(VLOOKUP(A91,STAGIONALITA!$A$3:$M$105,12,FALSE)*P91,"") ->  | M91: =IFERROR(VLOOKUP(A91,STAGIONALITA!$A$3:$M$105,13,FALSE)*P91,"") -> 
B92: =IFERROR(VLOOKUP(A92,STAGIONALITA!$A$3:$M$105,2,FALSE)*P92,"") ->  | C92: =IFERROR(VLOOKUP(A92,STAGIONALITA!$A$3:$M$105,3,FALSE)*P92,"") ->  | D92: =IFERROR(VLOOKUP(A92,STAGIONALITA!$A$3:$M$105,4,FALSE)*P92,"") ->  | E92: =IFERROR(VLOOKUP(A92,STAGIONALITA!$A$3:$M$105,5,FALSE)*P92,"") ->  | F92: =IFERROR(VLOOKUP(A92,STAGIONALITA!$A$3:$M$105,6,FALSE)*P92,"") ->  | G92: =IFERROR(VLOOKUP(A92,STAGIONALITA!$A$3:$M$105,7,FALSE)*P92,"") ->  | H92: =IFERROR(VLOOKUP(A92,STAGIONALITA!$A$3:$M$105,8,FALSE)*P92,"") ->  | I92: =IFERROR(VLOOKUP(A92,STAGIONALITA!$A$3:$M$105,9,FALSE)*P92,"") ->  | J92: =IFERROR(VLOOKUP(A92,STAGIONALITA!$A$3:$M$105,10,FALSE)*P92,"") ->  | K92: =IFERROR(VLOOKUP(A92,STAGIONALITA!$A$3:$M$105,11,FALSE)*P92,"") ->  | L92: =IFERROR(VLOOKUP(A92,STAGIONALITA!$A$3:$M$105,12,FALSE)*P92,"") ->  | M92: =IFERROR(VLOOKUP(A92,STAGIONALITA!$A$3:$M$105,13,FALSE)*P92,"") -> 
B93: =IFERROR(VLOOKUP(A93,STAGIONALITA!$A$3:$M$105,2,FALSE)*P93,"") ->  | C93: =IFERROR(VLOOKUP(A93,STAGIONALITA!$A$3:$M$105,3,FALSE)*P93,"") ->  | D93: =IFERROR(VLOOKUP(A93,STAGIONALITA!$A$3:$M$105,4,FALSE)*P93,"") ->  | E93: =IFERROR(VLOOKUP(A93,STAGIONALITA!$A$3:$M$105,5,FALSE)*P93,"") ->  | F93: =IFERROR(VLOOKUP(A93,STAGIONALITA!$A$3:$M$105,6,FALSE)*P93,"") ->  | G93: =IFERROR(VLOOKUP(A93,STAGIONALITA!$A$3:$M$105,7,FALSE)*P93,"") ->  | H93: =IFERROR(VLOOKUP(A93,STAGIONALITA!$A$3:$M$105,8,FALSE)*P93,"") ->  | I93: =IFERROR(VLOOKUP(A93,STAGIONALITA!$A$3:$M$105,9,FALSE)*P93,"") ->  | J93: =IFERROR(VLOOKUP(A93,STAGIONALITA!$A$3:$M$105,10,FALSE)*P93,"") ->  | K93: =IFERROR(VLOOKUP(A93,STAGIONALITA!$A$3:$M$105,11,FALSE)*P93,"") ->  | L93: =IFERROR(VLOOKUP(A93,STAGIONALITA!$A$3:$M$105,12,FALSE)*P93,"") ->  | M93: =IFERROR(VLOOKUP(A93,STAGIONALITA!$A$3:$M$105,13,FALSE)*P93,"") -> 
B94: =IFERROR(VLOOKUP(A94,STAGIONALITA!$A$3:$M$105,2,FALSE)*P94,"") ->  | C94: =IFERROR(VLOOKUP(A94,STAGIONALITA!$A$3:$M$105,3,FALSE)*P94,"") ->  | D94: =IFERROR(VLOOKUP(A94,STAGIONALITA!$A$3:$M$105,4,FALSE)*P94,"") ->  | E94: =IFERROR(VLOOKUP(A94,STAGIONALITA!$A$3:$M$105,5,FALSE)*P94,"") ->  | F94: =IFERROR(VLOOKUP(A94,STAGIONALITA!$A$3:$M$105,6,FALSE)*P94,"") ->  | G94: =IFERROR(VLOOKUP(A94,STAGIONALITA!$A$3:$M$105,7,FALSE)*P94,"") ->  | H94: =IFERROR(VLOOKUP(A94,STAGIONALITA!$A$3:$M$105,8,FALSE)*P94,"") ->  | I94: =IFERROR(VLOOKUP(A94,STAGIONALITA!$A$3:$M$105,9,FALSE)*P94,"") ->  | J94: =IFERROR(VLOOKUP(A94,STAGIONALITA!$A$3:$M$105,10,FALSE)*P94,"") ->  | K94: =IFERROR(VLOOKUP(A94,STAGIONALITA!$A$3:$M$105,11,FALSE)*P94,"") ->  | L94: =IFERROR(VLOOKUP(A94,STAGIONALITA!$A$3:$M$105,12,FALSE)*P94,"") ->  | M94: =IFERROR(VLOOKUP(A94,STAGIONALITA!$A$3:$M$105,13,FALSE)*P94,"") -> 
B95: =IFERROR(VLOOKUP(A95,STAGIONALITA!$A$3:$M$105,2,FALSE)*P95,"") ->  | C95: =IFERROR(VLOOKUP(A95,STAGIONALITA!$A$3:$M$105,3,FALSE)*P95,"") ->  | D95: =IFERROR(VLOOKUP(A95,STAGIONALITA!$A$3:$M$105,4,FALSE)*P95,"") ->  | E95: =IFERROR(VLOOKUP(A95,STAGIONALITA!$A$3:$M$105,5,FALSE)*P95,"") ->  | F95: =IFERROR(VLOOKUP(A95,STAGIONALITA!$A$3:$M$105,6,FALSE)*P95,"") ->  | G95: =IFERROR(VLOOKUP(A95,STAGIONALITA!$A$3:$M$105,7,FALSE)*P95,"") ->  | H95: =IFERROR(VLOOKUP(A95,STAGIONALITA!$A$3:$M$105,8,FALSE)*P95,"") ->  | I95: =IFERROR(VLOOKUP(A95,STAGIONALITA!$A$3:$M$105,9,FALSE)*P95,"") ->  | J95: =IFERROR(VLOOKUP(A95,STAGIONALITA!$A$3:$M$105,10,FALSE)*P95,"") ->  | K95: =IFERROR(VLOOKUP(A95,STAGIONALITA!$A$3:$M$105,11,FALSE)*P95,"") ->  | L95: =IFERROR(VLOOKUP(A95,STAGIONALITA!$A$3:$M$105,12,FALSE)*P95,"") ->  | M95: =IFERROR(VLOOKUP(A95,STAGIONALITA!$A$3:$M$105,13,FALSE)*P95,"") -> 
B96: =IFERROR(VLOOKUP(A96,STAGIONALITA!$A$3:$M$105,2,FALSE)*P96,"") ->  | C96: =IFERROR(VLOOKUP(A96,STAGIONALITA!$A$3:$M$105,3,FALSE)*P96,"") ->  | D96: =IFERROR(VLOOKUP(A96,STAGIONALITA!$A$3:$M$105,4,FALSE)*P96,"") ->  | E96: =IFERROR(VLOOKUP(A96,STAGIONALITA!$A$3:$M$105,5,FALSE)*P96,"") ->  | F96: =IFERROR(VLOOKUP(A96,STAGIONALITA!$A$3:$M$105,6,FALSE)*P96,"") ->  | G96: =IFERROR(VLOOKUP(A96,STAGIONALITA!$A$3:$M$105,7,FALSE)*P96,"") ->  | H96: =IFERROR(VLOOKUP(A96,STAGIONALITA!$A$3:$M$105,8,FALSE)*P96,"") ->  | I96: =IFERROR(VLOOKUP(A96,STAGIONALITA!$A$3:$M$105,9,FALSE)*P96,"") ->  | J96: =IFERROR(VLOOKUP(A96,STAGIONALITA!$A$3:$M$105,10,FALSE)*P96,"") ->  | K96: =IFERROR(VLOOKUP(A96,STAGIONALITA!$A$3:$M$105,11,FALSE)*P96,"") ->  | L96: =IFERROR(VLOOKUP(A96,STAGIONALITA!$A$3:$M$105,12,FALSE)*P96,"") ->  | M96: =IFERROR(VLOOKUP(A96,STAGIONALITA!$A$3:$M$105,13,FALSE)*P96,"") -> 
B97: =IFERROR(VLOOKUP(A97,STAGIONALITA!$A$3:$M$105,2,FALSE)*P97,"") ->  | C97: =IFERROR(VLOOKUP(A97,STAGIONALITA!$A$3:$M$105,3,FALSE)*P97,"") ->  | D97: =IFERROR(VLOOKUP(A97,STAGIONALITA!$A$3:$M$105,4,FALSE)*P97,"") ->  | E97: =IFERROR(VLOOKUP(A97,STAGIONALITA!$A$3:$M$105,5,FALSE)*P97,"") ->  | F97: =IFERROR(VLOOKUP(A97,STAGIONALITA!$A$3:$M$105,6,FALSE)*P97,"") ->  | G97: =IFERROR(VLOOKUP(A97,STAGIONALITA!$A$3:$M$105,7,FALSE)*P97,"") ->  | H97: =IFERROR(VLOOKUP(A97,STAGIONALITA!$A$3:$M$105,8,FALSE)*P97,"") ->  | I97: =IFERROR(VLOOKUP(A97,STAGIONALITA!$A$3:$M$105,9,FALSE)*P97,"") ->  | J97: =IFERROR(VLOOKUP(A97,STAGIONALITA!$A$3:$M$105,10,FALSE)*P97,"") ->  | K97: =IFERROR(VLOOKUP(A97,STAGIONALITA!$A$3:$M$105,11,FALSE)*P97,"") ->  | L97: =IFERROR(VLOOKUP(A97,STAGIONALITA!$A$3:$M$105,12,FALSE)*P97,"") ->  | M97: =IFERROR(VLOOKUP(A97,STAGIONALITA!$A$3:$M$105,13,FALSE)*P97,"") -> 
B98: =IFERROR(VLOOKUP(A98,STAGIONALITA!$A$3:$M$105,2,FALSE)*P98,"") ->  | C98: =IFERROR(VLOOKUP(A98,STAGIONALITA!$A$3:$M$105,3,FALSE)*P98,"") ->  | D98: =IFERROR(VLOOKUP(A98,STAGIONALITA!$A$3:$M$105,4,FALSE)*P98,"") ->  | E98: =IFERROR(VLOOKUP(A98,STAGIONALITA!$A$3:$M$105,5,FALSE)*P98,"") ->  | F98: =IFERROR(VLOOKUP(A98,STAGIONALITA!$A$3:$M$105,6,FALSE)*P98,"") ->  | G98: =IFERROR(VLOOKUP(A98,STAGIONALITA!$A$3:$M$105,7,FALSE)*P98,"") ->  | H98: =IFERROR(VLOOKUP(A98,STAGIONALITA!$A$3:$M$105,8,FALSE)*P98,"") ->  | I98: =IFERROR(VLOOKUP(A98,STAGIONALITA!$A$3:$M$105,9,FALSE)*P98,"") ->  | J98: =IFERROR(VLOOKUP(A98,STAGIONALITA!$A$3:$M$105,10,FALSE)*P98,"") ->  | K98: =IFERROR(VLOOKUP(A98,STAGIONALITA!$A$3:$M$105,11,FALSE)*P98,"") ->  | L98: =IFERROR(VLOOKUP(A98,STAGIONALITA!$A$3:$M$105,12,FALSE)*P98,"") ->  | M98: =IFERROR(VLOOKUP(A98,STAGIONALITA!$A$3:$M$105,13,FALSE)*P98,"") -> 
A99: =IF(O99=0,"",O99) ->  | B99: =IFERROR(VLOOKUP(A99,STAGIONALITA!$A$3:$M$105,2,FALSE)*P99,"") ->  | C99: =IFERROR(VLOOKUP(A99,STAGIONALITA!$A$3:$M$105,3,FALSE)*P99,"") ->  | D99: =IFERROR(VLOOKUP(A99,STAGIONALITA!$A$3:$M$105,4,FALSE)*P99,"") ->  | E99: =IFERROR(VLOOKUP(A99,STAGIONALITA!$A$3:$M$105,5,FALSE)*P99,"") ->  | F99: =IFERROR(VLOOKUP(A99,STAGIONALITA!$A$3:$M$105,6,FALSE)*P99,"") ->  | G99: =IFERROR(VLOOKUP(A99,STAGIONALITA!$A$3:$M$105,7,FALSE)*P99,"") ->  | H99: =IFERROR(VLOOKUP(A99,STAGIONALITA!$A$3:$M$105,8,FALSE)*P99,"") ->  | I99: =IFERROR(VLOOKUP(A99,STAGIONALITA!$A$3:$M$105,9,FALSE)*P99,"") ->  | J99: =IFERROR(VLOOKUP(A99,STAGIONALITA!$A$3:$M$105,10,FALSE)*P99,"") ->  | K99: =IFERROR(VLOOKUP(A99,STAGIONALITA!$A$3:$M$105,11,FALSE)*P99,"") ->  | L99: =IFERROR(VLOOKUP(A99,STAGIONALITA!$A$3:$M$105,12,FALSE)*P99,"") ->  | M99: =IFERROR(VLOOKUP(A99,STAGIONALITA!$A$3:$M$105,13,FALSE)*P99,"") -> 
B100: =IFERROR(VLOOKUP(A100,STAGIONALITA!$A$3:$M$105,2,FALSE)*P100,"") ->  | C100: =IFERROR(VLOOKUP(A100,STAGIONALITA!$A$3:$M$105,3,FALSE)*P100,"") ->  | D100: =IFERROR(VLOOKUP(A100,STAGIONALITA!$A$3:$M$105,4,FALSE)*P100,"") ->  | E100: =IFERROR(VLOOKUP(A100,STAGIONALITA!$A$3:$M$105,5,FALSE)*P100,"") ->  | F100: =IFERROR(VLOOKUP(A100,STAGIONALITA!$A$3:$M$105,6,FALSE)*P100,"") ->  | G100: =IFERROR(VLOOKUP(A100,STAGIONALITA!$A$3:$M$105,7,FALSE)*P100,"") ->  | H100: =IFERROR(VLOOKUP(A100,STAGIONALITA!$A$3:$M$105,8,FALSE)*P100,"") ->  | I100: =IFERROR(VLOOKUP(A100,STAGIONALITA!$A$3:$M$105,9,FALSE)*P100,"") ->  | J100: =IFERROR(VLOOKUP(A100,STAGIONALITA!$A$3:$M$105,10,FALSE)*P100,"") ->  | K100: =IFERROR(VLOOKUP(A100,STAGIONALITA!$A$3:$M$105,11,FALSE)*P100,"") ->  | L100: =IFERROR(VLOOKUP(A100,STAGIONALITA!$A$3:$M$105,12,FALSE)*P100,"") ->  | M100: =IFERROR(VLOOKUP(A100,STAGIONALITA!$A$3:$M$105,13,FALSE)*P100,"") -> 
B101: =IFERROR(VLOOKUP(A101,STAGIONALITA!$A$3:$M$105,2,FALSE)*P101,"") ->  | C101: =IFERROR(VLOOKUP(A101,STAGIONALITA!$A$3:$M$105,3,FALSE)*P101,"") ->  | D101: =IFERROR(VLOOKUP(A101,STAGIONALITA!$A$3:$M$105,4,FALSE)*P101,"") ->  | E101: =IFERROR(VLOOKUP(A101,STAGIONALITA!$A$3:$M$105,5,FALSE)*P101,"") ->  | F101: =IFERROR(VLOOKUP(A101,STAGIONALITA!$A$3:$M$105,6,FALSE)*P101,"") ->  | G101: =IFERROR(VLOOKUP(A101,STAGIONALITA!$A$3:$M$105,7,FALSE)*P101,"") ->  | H101: =IFERROR(VLOOKUP(A101,STAGIONALITA!$A$3:$M$105,8,FALSE)*P101,"") ->  | I101: =IFERROR(VLOOKUP(A101,STAGIONALITA!$A$3:$M$105,9,FALSE)*P101,"") ->  | J101: =IFERROR(VLOOKUP(A101,STAGIONALITA!$A$3:$M$105,10,FALSE)*P101,"") ->  | K101: =IFERROR(VLOOKUP(A101,STAGIONALITA!$A$3:$M$105,11,FALSE)*P101,"") ->  | L101: =IFERROR(VLOOKUP(A101,STAGIONALITA!$A$3:$M$105,12,FALSE)*P101,"") ->  | M101: =IFERROR(VLOOKUP(A101,STAGIONALITA!$A$3:$M$105,13,FALSE)*P101,"") -> 
B102: =IFERROR(VLOOKUP(A102,STAGIONALITA!$A$3:$M$105,2,FALSE)*P102,"") ->  | C102: =IFERROR(VLOOKUP(A102,STAGIONALITA!$A$3:$M$105,3,FALSE)*P102,"") ->  | D102: =IFERROR(VLOOKUP(A102,STAGIONALITA!$A$3:$M$105,4,FALSE)*P102,"") ->  | E102: =IFERROR(VLOOKUP(A102,STAGIONALITA!$A$3:$M$105,5,FALSE)*P102,"") ->  | F102: =IFERROR(VLOOKUP(A102,STAGIONALITA!$A$3:$M$105,6,FALSE)*P102,"") ->  | G102: =IFERROR(VLOOKUP(A102,STAGIONALITA!$A$3:$M$105,7,FALSE)*P102,"") ->  | H102: =IFERROR(VLOOKUP(A102,STAGIONALITA!$A$3:$M$105,8,FALSE)*P102,"") ->  | I102: =IFERROR(VLOOKUP(A102,STAGIONALITA!$A$3:$M$105,9,FALSE)*P102,"") ->  | J102: =IFERROR(VLOOKUP(A102,STAGIONALITA!$A$3:$M$105,10,FALSE)*P102,"") ->  | K102: =IFERROR(VLOOKUP(A102,STAGIONALITA!$A$3:$M$105,11,FALSE)*P102,"") ->  | L102: =IFERROR(VLOOKUP(A102,STAGIONALITA!$A$3:$M$105,12,FALSE)*P102,"") ->  | M102: =IFERROR(VLOOKUP(A102,STAGIONALITA!$A$3:$M$105,13,FALSE)*P102,"") -> 
B103: =IFERROR(VLOOKUP(A103,STAGIONALITA!$A$3:$M$105,2,FALSE)*P103,"") ->  | C103: =IFERROR(VLOOKUP(A103,STAGIONALITA!$A$3:$M$105,3,FALSE)*P103,"") ->  | D103: =IFERROR(VLOOKUP(A103,STAGIONALITA!$A$3:$M$105,4,FALSE)*P103,"") ->  | E103: =IFERROR(VLOOKUP(A103,STAGIONALITA!$A$3:$M$105,5,FALSE)*P103,"") ->  | F103: =IFERROR(VLOOKUP(A103,STAGIONALITA!$A$3:$M$105,6,FALSE)*P103,"") ->  | G103: =IFERROR(VLOOKUP(A103,STAGIONALITA!$A$3:$M$105,7,FALSE)*P103,"") ->  | H103: =IFERROR(VLOOKUP(A103,STAGIONALITA!$A$3:$M$105,8,FALSE)*P103,"") ->  | I103: =IFERROR(VLOOKUP(A103,STAGIONALITA!$A$3:$M$105,9,FALSE)*P103,"") ->  | J103: =IFERROR(VLOOKUP(A103,STAGIONALITA!$A$3:$M$105,10,FALSE)*P103,"") ->  | K103: =IFERROR(VLOOKUP(A103,STAGIONALITA!$A$3:$M$105,11,FALSE)*P103,"") ->  | L103: =IFERROR(VLOOKUP(A103,STAGIONALITA!$A$3:$M$105,12,FALSE)*P103,"") ->  | M103: =IFERROR(VLOOKUP(A103,STAGIONALITA!$A$3:$M$105,13,FALSE)*P103,"") -> 
B104: =IFERROR(VLOOKUP(A104,STAGIONALITA!$A$3:$M$105,2,FALSE)*P104,"") ->  | C104: =IFERROR(VLOOKUP(A104,STAGIONALITA!$A$3:$M$105,3,FALSE)*P104,"") ->  | D104: =IFERROR(VLOOKUP(A104,STAGIONALITA!$A$3:$M$105,4,FALSE)*P104,"") ->  | E104: =IFERROR(VLOOKUP(A104,STAGIONALITA!$A$3:$M$105,5,FALSE)*P104,"") ->  | F104: =IFERROR(VLOOKUP(A104,STAGIONALITA!$A$3:$M$105,6,FALSE)*P104,"") ->  | G104: =IFERROR(VLOOKUP(A104,STAGIONALITA!$A$3:$M$105,7,FALSE)*P104,"") ->  | H104: =IFERROR(VLOOKUP(A104,STAGIONALITA!$A$3:$M$105,8,FALSE)*P104,"") ->  | I104: =IFERROR(VLOOKUP(A104,STAGIONALITA!$A$3:$M$105,9,FALSE)*P104,"") ->  | J104: =IFERROR(VLOOKUP(A104,STAGIONALITA!$A$3:$M$105,10,FALSE)*P104,"") ->  | K104: =IFERROR(VLOOKUP(A104,STAGIONALITA!$A$3:$M$105,11,FALSE)*P104,"") ->  | L104: =IFERROR(VLOOKUP(A104,STAGIONALITA!$A$3:$M$105,12,FALSE)*P104,"") ->  | M104: =IFERROR(VLOOKUP(A104,STAGIONALITA!$A$3:$M$105,13,FALSE)*P104,"") -> 
B105: =IFERROR(VLOOKUP(A105,STAGIONALITA!$A$3:$M$105,2,FALSE)*P105,"") ->  | C105: =IFERROR(VLOOKUP(A105,STAGIONALITA!$A$3:$M$105,3,FALSE)*P105,"") ->  | D105: =IFERROR(VLOOKUP(A105,STAGIONALITA!$A$3:$M$105,4,FALSE)*P105,"") ->  | E105: =IFERROR(VLOOKUP(A105,STAGIONALITA!$A$3:$M$105,5,FALSE)*P105,"") ->  | F105: =IFERROR(VLOOKUP(A105,STAGIONALITA!$A$3:$M$105,6,FALSE)*P105,"") ->  | G105: =IFERROR(VLOOKUP(A105,STAGIONALITA!$A$3:$M$105,7,FALSE)*P105,"") ->  | H105: =IFERROR(VLOOKUP(A105,STAGIONALITA!$A$3:$M$105,8,FALSE)*P105,"") ->  | I105: =IFERROR(VLOOKUP(A105,STAGIONALITA!$A$3:$M$105,9,FALSE)*P105,"") ->  | J105: =IFERROR(VLOOKUP(A105,STAGIONALITA!$A$3:$M$105,10,FALSE)*P105,"") ->  | K105: =IFERROR(VLOOKUP(A105,STAGIONALITA!$A$3:$M$105,11,FALSE)*P105,"") ->  | L105: =IFERROR(VLOOKUP(A105,STAGIONALITA!$A$3:$M$105,12,FALSE)*P105,"") ->  | M105: =IFERROR(VLOOKUP(A105,STAGIONALITA!$A$3:$M$105,13,FALSE)*P105,"") -> 
B106: =IFERROR(VLOOKUP(A106,STAGIONALITA!$A$3:$M$105,2,FALSE)*P106,"") ->  | C106: =IFERROR(VLOOKUP(A106,STAGIONALITA!$A$3:$M$105,3,FALSE)*P106,"") ->  | D106: =IFERROR(VLOOKUP(A106,STAGIONALITA!$A$3:$M$105,4,FALSE)*P106,"") ->  | E106: =IFERROR(VLOOKUP(A106,STAGIONALITA!$A$3:$M$105,5,FALSE)*P106,"") ->  | F106: =IFERROR(VLOOKUP(A106,STAGIONALITA!$A$3:$M$105,6,FALSE)*P106,"") ->  | G106: =IFERROR(VLOOKUP(A106,STAGIONALITA!$A$3:$M$105,7,FALSE)*P106,"") ->  | H106: =IFERROR(VLOOKUP(A106,STAGIONALITA!$A$3:$M$105,8,FALSE)*P106,"") ->  | I106: =IFERROR(VLOOKUP(A106,STAGIONALITA!$A$3:$M$105,9,FALSE)*P106,"") ->  | J106: =IFERROR(VLOOKUP(A106,STAGIONALITA!$A$3:$M$105,10,FALSE)*P106,"") ->  | K106: =IFERROR(VLOOKUP(A106,STAGIONALITA!$A$3:$M$105,11,FALSE)*P106,"") ->  | L106: =IFERROR(VLOOKUP(A106,STAGIONALITA!$A$3:$M$105,12,FALSE)*P106,"") ->  | M106: =IFERROR(VLOOKUP(A106,STAGIONALITA!$A$3:$M$105,13,FALSE)*P106,"") -> 
B107: =IFERROR(VLOOKUP(A107,STAGIONALITA!$A$3:$M$105,2,FALSE)*P107,"") ->  | C107: =IFERROR(VLOOKUP(A107,STAGIONALITA!$A$3:$M$105,3,FALSE)*P107,"") ->  | D107: =IFERROR(VLOOKUP(A107,STAGIONALITA!$A$3:$M$105,4,FALSE)*P107,"") ->  | E107: =IFERROR(VLOOKUP(A107,STAGIONALITA!$A$3:$M$105,5,FALSE)*P107,"") ->  | F107: =IFERROR(VLOOKUP(A107,STAGIONALITA!$A$3:$M$105,6,FALSE)*P107,"") ->  | G107: =IFERROR(VLOOKUP(A107,STAGIONALITA!$A$3:$M$105,7,FALSE)*P107,"") ->  | H107: =IFERROR(VLOOKUP(A107,STAGIONALITA!$A$3:$M$105,8,FALSE)*P107,"") ->  | I107: =IFERROR(VLOOKUP(A107,STAGIONALITA!$A$3:$M$105,9,FALSE)*P107,"") ->  | J107: =IFERROR(VLOOKUP(A107,STAGIONALITA!$A$3:$M$105,10,FALSE)*P107,"") ->  | K107: =IFERROR(VLOOKUP(A107,STAGIONALITA!$A$3:$M$105,11,FALSE)*P107,"") ->  | L107: =IFERROR(VLOOKUP(A107,STAGIONALITA!$A$3:$M$105,12,FALSE)*P107,"") ->  | M107: =IFERROR(VLOOKUP(A107,STAGIONALITA!$A$3:$M$105,13,FALSE)*P107,"") -> 
B108: =IFERROR(VLOOKUP(A108,STAGIONALITA!$A$3:$M$105,2,FALSE)*P108,"") ->  | C108: =IFERROR(VLOOKUP(A108,STAGIONALITA!$A$3:$M$105,3,FALSE)*P108,"") ->  | D108: =IFERROR(VLOOKUP(A108,STAGIONALITA!$A$3:$M$105,4,FALSE)*P108,"") ->  | E108: =IFERROR(VLOOKUP(A108,STAGIONALITA!$A$3:$M$105,5,FALSE)*P108,"") ->  | F108: =IFERROR(VLOOKUP(A108,STAGIONALITA!$A$3:$M$105,6,FALSE)*P108,"") ->  | G108: =IFERROR(VLOOKUP(A108,STAGIONALITA!$A$3:$M$105,7,FALSE)*P108,"") ->  | H108: =IFERROR(VLOOKUP(A108,STAGIONALITA!$A$3:$M$105,8,FALSE)*P108,"") ->  | I108: =IFERROR(VLOOKUP(A108,STAGIONALITA!$A$3:$M$105,9,FALSE)*P108,"") ->  | J108: =IFERROR(VLOOKUP(A108,STAGIONALITA!$A$3:$M$105,10,FALSE)*P108,"") ->  | K108: =IFERROR(VLOOKUP(A108,STAGIONALITA!$A$3:$M$105,11,FALSE)*P108,"") ->  | L108: =IFERROR(VLOOKUP(A108,STAGIONALITA!$A$3:$M$105,12,FALSE)*P108,"") ->  | M108: =IFERROR(VLOOKUP(A108,STAGIONALITA!$A$3:$M$105,13,FALSE)*P108,"") -> 
B109: =IFERROR(VLOOKUP(A109,STAGIONALITA!$A$3:$M$105,2,FALSE)*P109,"") ->  | C109: =IFERROR(VLOOKUP(A109,STAGIONALITA!$A$3:$M$105,3,FALSE)*P109,"") ->  | D109: =IFERROR(VLOOKUP(A109,STAGIONALITA!$A$3:$M$105,4,FALSE)*P109,"") ->  | E109: =IFERROR(VLOOKUP(A109,STAGIONALITA!$A$3:$M$105,5,FALSE)*P109,"") ->  | F109: =IFERROR(VLOOKUP(A109,STAGIONALITA!$A$3:$M$105,6,FALSE)*P109,"") ->  | G109: =IFERROR(VLOOKUP(A109,STAGIONALITA!$A$3:$M$105,7,FALSE)*P109,"") ->  | H109: =IFERROR(VLOOKUP(A109,STAGIONALITA!$A$3:$M$105,8,FALSE)*P109,"") ->  | I109: =IFERROR(VLOOKUP(A109,STAGIONALITA!$A$3:$M$105,9,FALSE)*P109,"") ->  | J109: =IFERROR(VLOOKUP(A109,STAGIONALITA!$A$3:$M$105,10,FALSE)*P109,"") ->  | K109: =IFERROR(VLOOKUP(A109,STAGIONALITA!$A$3:$M$105,11,FALSE)*P109,"") ->  | L109: =IFERROR(VLOOKUP(A109,STAGIONALITA!$A$3:$M$105,12,FALSE)*P109,"") ->  | M109: =IFERROR(VLOOKUP(A109,STAGIONALITA!$A$3:$M$105,13,FALSE)*P109,"") -> 
B110: =IFERROR(VLOOKUP(A110,STAGIONALITA!$A$3:$M$105,2,FALSE)*P110,"") ->  | C110: =IFERROR(VLOOKUP(A110,STAGIONALITA!$A$3:$M$105,3,FALSE)*P110,"") ->  | D110: =IFERROR(VLOOKUP(A110,STAGIONALITA!$A$3:$M$105,4,FALSE)*P110,"") ->  | E110: =IFERROR(VLOOKUP(A110,STAGIONALITA!$A$3:$M$105,5,FALSE)*P110,"") ->  | F110: =IFERROR(VLOOKUP(A110,STAGIONALITA!$A$3:$M$105,6,FALSE)*P110,"") ->  | G110: =IFERROR(VLOOKUP(A110,STAGIONALITA!$A$3:$M$105,7,FALSE)*P110,"") ->  | H110: =IFERROR(VLOOKUP(A110,STAGIONALITA!$A$3:$M$105,8,FALSE)*P110,"") ->  | I110: =IFERROR(VLOOKUP(A110,STAGIONALITA!$A$3:$M$105,9,FALSE)*P110,"") ->  | J110: =IFERROR(VLOOKUP(A110,STAGIONALITA!$A$3:$M$105,10,FALSE)*P110,"") ->  | K110: =IFERROR(VLOOKUP(A110,STAGIONALITA!$A$3:$M$105,11,FALSE)*P110,"") ->  | L110: =IFERROR(VLOOKUP(A110,STAGIONALITA!$A$3:$M$105,12,FALSE)*P110,"") ->  | M110: =IFERROR(VLOOKUP(A110,STAGIONALITA!$A$3:$M$105,13,FALSE)*P110,"") -> 
B111: =IFERROR(VLOOKUP(A111,STAGIONALITA!$A$3:$M$105,2,FALSE)*P111,"") ->  | C111: =IFERROR(VLOOKUP(A111,STAGIONALITA!$A$3:$M$105,3,FALSE)*P111,"") ->  | D111: =IFERROR(VLOOKUP(A111,STAGIONALITA!$A$3:$M$105,4,FALSE)*P111,"") ->  | E111: =IFERROR(VLOOKUP(A111,STAGIONALITA!$A$3:$M$105,5,FALSE)*P111,"") ->  | F111: =IFERROR(VLOOKUP(A111,STAGIONALITA!$A$3:$M$105,6,FALSE)*P111,"") ->  | G111: =IFERROR(VLOOKUP(A111,STAGIONALITA!$A$3:$M$105,7,FALSE)*P111,"") ->  | H111: =IFERROR(VLOOKUP(A111,STAGIONALITA!$A$3:$M$105,8,FALSE)*P111,"") ->  | I111: =IFERROR(VLOOKUP(A111,STAGIONALITA!$A$3:$M$105,9,FALSE)*P111,"") ->  | J111: =IFERROR(VLOOKUP(A111,STAGIONALITA!$A$3:$M$105,10,FALSE)*P111,"") ->  | K111: =IFERROR(VLOOKUP(A111,STAGIONALITA!$A$3:$M$105,11,FALSE)*P111,"") ->  | L111: =IFERROR(VLOOKUP(A111,STAGIONALITA!$A$3:$M$105,12,FALSE)*P111,"") ->  | M111: =IFERROR(VLOOKUP(A111,STAGIONALITA!$A$3:$M$105,13,FALSE)*P111,"") -> 
B112: =IFERROR(VLOOKUP(A112,STAGIONALITA!$A$3:$M$105,2,FALSE)*P112,"") ->  | C112: =IFERROR(VLOOKUP(A112,STAGIONALITA!$A$3:$M$105,3,FALSE)*P112,"") ->  | D112: =IFERROR(VLOOKUP(A112,STAGIONALITA!$A$3:$M$105,4,FALSE)*P112,"") ->  | E112: =IFERROR(VLOOKUP(A112,STAGIONALITA!$A$3:$M$105,5,FALSE)*P112,"") ->  | F112: =IFERROR(VLOOKUP(A112,STAGIONALITA!$A$3:$M$105,6,FALSE)*P112,"") ->  | G112: =IFERROR(VLOOKUP(A112,STAGIONALITA!$A$3:$M$105,7,FALSE)*P112,"") ->  | H112: =IFERROR(VLOOKUP(A112,STAGIONALITA!$A$3:$M$105,8,FALSE)*P112,"") ->  | I112: =IFERROR(VLOOKUP(A112,STAGIONALITA!$A$3:$M$105,9,FALSE)*P112,"") ->  | J112: =IFERROR(VLOOKUP(A112,STAGIONALITA!$A$3:$M$105,10,FALSE)*P112,"") ->  | K112: =IFERROR(VLOOKUP(A112,STAGIONALITA!$A$3:$M$105,11,FALSE)*P112,"") ->  | L112: =IFERROR(VLOOKUP(A112,STAGIONALITA!$A$3:$M$105,12,FALSE)*P112,"") ->  | M112: =IFERROR(VLOOKUP(A112,STAGIONALITA!$A$3:$M$105,13,FALSE)*P112,"") -> 

Sheet STAGIONALITA
A1: STAGIONALITA' 2021 GRUPPO DELTA | P1: STAGIONALITA' 2021 SOCIO
A2: Fornitori | B2: GEN 21 | C2: FEB 21 | D2: MAR 21 | E2: APR 21 | F2: MAG 21 | G2: GIU 21 | H2: LUG 21 | I2: AGO 21 | J2: SET 21 | K2: OTT 21 | L2: NOV 21 | M2: DIC 21 | P2: Fornitori | Q2: GEN 21 | R2: FEB 21 | S2: MAR 21 | T2: APR 21 | U2: MAG 21 | V2: GIU 21 | W2: LUG 21 | X2: AGO 21 | Y2: SET 21 | Z2: OTT 21 | AA2: NOV 21 | AB2: DIC 21
A3: Albatros | B3: 0.006582473895 | C3: 0.005671219366 | D3: 0.2138982397 | E3: 0.05442869701 | F3: 0.1696970347 | G3: 0.007525890349 | H3: 0.1385428504 | I3: 0.05957460494 | J3: 0.09932674371 | K3: 0.0109993782 | L3: 0.1124702502 | M3: 0.1212826176 | P3: Arblu | Q3: 0.06041182907 | R3: 0.05690199239 | S3: 0.08953654948 | T3: 0.09325199669 | U3: 0.05776272763 | V3: 0.1286038795 | W3: 0.1420501519 | X3: 0.005109472566 | Y3: 0.1294263998 | Z3: 0.07572625806 | AA3: 0.1077434365 | AB3: 0.05347530646
A4: Arbi Arredobagno | B4: 0.005100171884 | C4: 0.06940178647 | D4: 0.09236664882 | E4: 0.05376313787 | F4: 0.07892586435 | G4: 0.1184028854 | H4: 0.06993716363 | I4: 0.07481191355 | J4: 0.08613936713 | K4: 0.04099861929 | L4: 0.2084307814 | M4: 0.1017216602 | P4: Ariston | Q4: 0.1411663131 | R4: 0.1985413977 | S4: 0.1091345198 | T4: 0.04782153725 | U4: 0.1115409389 | V4: 0.220095144 | W4: 0.04398223796 | X4: 0.0003200715993 | Y4: 0.003061982553 | Z4: 0.09081933325 | AA4: 0.03161369188 | AB4: 0.001902831995
A5: Arblu | B5: 0.04182637457 | C5: 0.06987616743 | D5: 0.1136707678 | E5: 0.1029330369 | F5: 0.07574855299 | G5: 0.1049147632 | H5: 0.1176450051 | I5: 0.02332169958 | J5: 0.1015607665 | K5: 0.07096922042 | L5: 0.08332034142 | M5: 0.09421330409 | P5: Bosch | Q5: 0.01074068889 | R5: 0.01118771858 | S5: 0.04110405007 | T5: 0.2864936886 | U5: 0 | V5: 0 | W5: 0.02465077303 | X5: 0 | Y5: 0.1816314712 | Z5: 0.4283493944 | AA5: 0 | AB5: 0.01584221523
A6: Ariston | B6: 0.08014351868 | C6: 0.1221844306 | D6: 0.09694702204 | E6: 0.09841197759 | F6: 0.09350379707 | G6: 0.1049548407 | H6: 0.08775993385 | I6: 0.0141492384 | J6: 0.08232210294 | K6: 0.1020744519 | L6: 0.06116577926 | M6: 0.05638290705 | P6: Bossini | Q6: 0 | R6: 0 | S6: 1 | T6: 0 | U6: 0 | V6: 0 | W6: 0 | X6: 0 | Y6: 0 | Z6: 0 | AA6: 0 | AB6: 0
A7: Arredamenti Montegrappa | B7: 0.1103357095 | C7: 0.03295759674 | D7: 0.1329170782 | E7: 0.03716558225 | F7: 0.05639394476 | G7: 0.1936992976 | H7: 0.04213375595 | I7: 0.02973097888 | J7: 0.1894268788 | K7: 0.07697850284 | L7: 0.02429752291 | M7: 0.07396315163 | P7: Bwt/Cillichemie | Q7: 0 | R7: 0.0430075873 | S7: 0.2377982743 | T7: 0.306039004 | U7: 0 | V7: 0 | W7: 0.2755224884 | X7: 0 | Y7: 0 | Z7: 0 | AA7: 0.137632646 | AB7: 0
A8: Atusa | B8: 0.05637102347 | C8: 0.06831343377 | D8: 0.08194690243 | E8: 0.05809740401 | F8: 0.06813993623 | G8: 0.117812569 | H8: 0.07708026685 | I8: 0.04832894221 | J8: 0 | K8: 0.1358761558 | L8: 0.1234171775 | M8: 0.1646161887 | P8: Caleffi | Q8: 0.07547896341 | R8: 0.03539943992 | S8: 0.106845016 | T8: 0.07739890979 | U8: 0.05169477052 | V8: 0.1639004225 | W8: 0.1036143205 | X8: 0 | Y8: 0.1003662683 | Z8: 0.0536295022 | AA8: 0.1750198262 | AB8: 0.05665256063
A9: Bernasconi | B9: 0.135486241 | C9: 0.05648410868 | D9: 0.06751345969 | E9: 0.06484408818 | F9: 0.069769753 | G9: 0.196934773 | H9: 0.1159781894 | I9: 0.02002577033 | J9: 0.1058081211 | K9: 0.06615105753 | L9: 0.05143386825 | M9: 0.04957056986 | P9: Carlo Nobili | Q9: 0 | R9: 0.3626523518 | S9: 0.003260439125 | T9: 0.02986315836 | U9: 0.1085361024 | V9: 0.03329519954 | W9: 0.1604567255 | X9: 0.00710168522 | Y9: 0.07028204338 | Z9: 0.02570510846 | AA9: 0.17666652 | AB9: 0.02218066617
A10: Beza | B10: 0 | C10: 0 | D10: 0 | E10: 0 | F10: 0 | G10: 0 | H10: 0 | I10: 0 | J10: 0 | K10: 0 | L10: 0 | M10: 1 | P10: Cordivari | Q10: 0.05480493384 | R10: 0.03355724828 | S10: 0.04785526344 | T10: 0.06286538876 | U10: 0.07415575592 | V10: 0.1420890972 | W10: 0.1837218863 | X10: 0.09985781946 | Y10: 0.07729959481 | Z10: 0.05476438665 | AA10: 0.1023840291 | AB10: 0.06664459627
A11: Bmeters | B11: 0.02610242599 | C11: 0.2090633482 | D11: 0.1521970513 | E11: 0.009326455047 | F11: 0.1134017162 | G11: 0.01788872142 | H11: 0.1168370354 | I11: 0.02576674773 | J11: 0.1722385963 | K11: 0.01768752625 | L11: 0.1233700544 | M11: 0.01612032177 | P11: Dab Pumps | Q11: 0 | R11: 0 | S11: 0 | T11: 0 | U11: 0.5 | V11: 0 | W11: 0.5 | X11: 0 | Y11: 0 | Z11: 0 | AA11: 0 | AB11: 0
A12: Bosch | B12: 0.07276153238 | C12: 0.04981907736 | D12: 0.09487311343 | E12: 0.1085321314 | F12: 0.07178066296 | G12: 0.05610763677 | H12: 0.07491980467 | I12: 0.01327191225 | J12: 0.0995620837 | K12: 0.2257638444 | L12: 0.08055121955 | M12: 0.05205698116 | P12: Ebara | Q12: 0 | R12: 0.1957960279 | S12: 0.1939994421 | T12: 0.05085218848 | U12: 0.00803755032 | V12: 0.1383564042 | W12: 0.1647903213 | X12: 0.00771230714 | Y12: 0.04318050235 | Z12: 0.01333822558 | AA12: 0.1317383886 | AB12: 0.05219864207
A13: Bossini | B13: 0.103298099 | C13: 0.1090835924 | D13: 0.107154173 | E13: 0.03884530852 | F13: 0.1159272477 | G13: 0.03866451185 | H13: 0.1156636395 | I13: 0.05390228905 | J13: 0.0614096585 | K13: 0.1154447161 | L13: 0.1184270896 | M13: 0.02217967485 | P13: Effebi | Q13: 0 | R13: 0.1722856539 | S13: 0.1603475765 | T13: 0.01202251189 | U13: 0.03827002236 | V13: 0.1284620734 | W13: 0.1649654717 | X13: 0.01170595893 | Y13: 0.03534357087 | Z13: 0.07724649549 | AA13: 0.07419996955 | AB13: 0.1251506953
A14: BT-Flex | B14: 0 | C14: 0 | D14: 0 | E14: 0 | F14: 0 | G14: 0.5089369325 | H14: 0 | I14: 0.1208315455 | J14: 0.07242981629 | K14: 0.2978017056 | L14: 0 | M14: 0 | P14: Ercos | Q14: 0 | R14: 0 | S14: 0.1578677647 | T14: 0.07907783473 | U14: 0.07773427928 | V14: 0.04256191711 | W14: 0.4000276389 | X14: 0 | Y14: 0.009791000354 | Z14: 0.004366555194 | AA14: 0.1851684914 | AB14: 0.04340451831
A15: Bwt/Cillichemie | B15: 0.04933651896 | C15: 0.06435394472 | D15: 0.09950170362 | E15: 0.171345677 | F15: 0.08092080004 | G15: 0.06763974827 | H15: 0.1202402854 | I15: 0.02827192496 | J15: 0.1092085643 | K15: 0.04475907132 | L15: 0.1353351647 | M15: 0.02908659674 | P15: Euroacque | Q15: 0 | R15: 0.4373432853 | S15: 0 | T15: 0 | U15: 0 | V15: 0.03148871654 | W15: 0 | X15: 0 | Y15: 0 | Z15: 0.4801154586 | AA15: 0.0006705930375 | AB15: 0.05038194647
A16: Caleffi | B16: 0.06770008034 | C16: 0.08809064902 | D16: 0.07661676843 | E16: 0.07676831239 | F16: 0.07081432623 | G16: 0.09114287456 | H16: 0.09321193999 | I16: 0.03934505917 | J16: 0.07677791599 | K16: 0.1135217445 | L16: 0.09982364282 | M16: 0.1061866866 | P16: Ferrari | Q16: 0.1749802441 | R16: 0.09051911382 | S16: 0.08214268135 | T16: 0.08516760114 | U16: 0 | V16: 0.117246965 | W16: 0.1288991708 | X16: 0.01914290956 | Y16: 0.1079887416 | Z16: 0.09617097061 | AA16: 0.05740635502 | AB16: 0.04033524703
A17: Camon | B17: 0 | C17: 0 | D17: 0 | E17: 0 | F17: 0 | G17: 0.4924252227 | H17: 0 | I17: 0 | J17: 0 | K17: 0.3336617338 | L17: 0 | M17: 0.1739130435 | P17: Fimi | Q17: 0.03507895934 | R17: 0.1451784697 | S17: 0.2141594256 | T17: 0 | U17: 0.06798647618 | V17: 0.1818429872 | W17: 0.07003776392 | X17: 0 | Y17: 0.04745247654 | Z17: 0.1266642474 | AA17: 0.05567494084 | AB17: 0.05592425333
A18: Carlo Nobili | B18: 0.03403715675 | C18: 0.2402683911 | D18: 0.04253650389 | E18: 0.03750803649 | F18: 0.1019612348 | G18: 0.0676545381 | H18: 0.1076635522 | I18: 0.04025425133 | J18: 0.1160590602 | K18: 0.03065686012 | L18: 0.1307224776 | M18: 0.05067793727 | P18: First Corporation | Q18: 0 | R18: 0.1816683045 | S18: 0.149389286 | T18: 0.1791988596 | U18: 0.1876590801 | V18: 0.03455871863 | W18: 0.0397291092 | X18: 0.01829696013 | Y18: 0.07860047803 | Z18: 0.08712742638 | AA18: 0.002949333243 | AB18: 0.04082244416
A19: Carrier | B19: 0 | C19: 0 | D19: 0 | E19: 0 | F19: 0.3070295277 | G19: 0.04340671283 | H19: 0.003236873971 | I19: 0.2074859503 | J19: 0.08668922905 | K19: 0.1410640544 | L19: 0.1340857578 | M19: 0.077001894 | P19: Fluidmaster | Q19: 0.03294263444 | R19: 0.03847901392 | S19: 0.2032386868 | T19: 0 | U19: 0 | V19: 0.3215147897 | W19: 0.001271484844 | X19: 2.801244425e-06 | Y19: 0.05838073506 | Z19: 0.3441580888 | AA19: 1.176522658e-05 | AB19: 0
A20: Cordivari | B20: 0.0475053856 | C20: 0.06620869753 | D20: 0.08567446119 | E20: 0.08796447648 | F20: 0.08317164181 | G20: 0.08675078605 | H20: 0.09983849264 | I20: 0.04575586945 | J20: 0.07968456465 | K20: 0.1004302527 | L20: 0.1336746896 | M20: 0.08334068225 | P20: Galletti | Q20: 0 | R20: 0.3171149402 | S20: 0.02729680991 | T20: 0.03697231675 | U20: 0.006655540802 | V20: 0.007274095007 | W20: 0.07634514889 | X20: 0.005893361639 | Y20: 0.1235000461 | Z20: 0.07873516294 | AA20: 0.2196064651 | AB20: 0.1006061127
A21: Cuprumfoma | B21: 0.1578545181 | C21: 0.1981138467 | D21: 0.2543340817 | E21: 0.07718871633 | F21: 0 | G21: 0.07424023245 | H21: 0.2382686048 | I21: 0 | J21: 0 | K21: 0 | L21: 0 | M21: 0 | P21: Geberit | Q21: 0.04883997961 | R21: 0.1044782282 | S21: 0.1664864824 | T21: 0.1079951646 | U21: 0.03470928815 | V21: 0.1668430014 | W21: 0.07987211508 | X21: 0.006998786383 | Y21: 0.07769610468 | Z21: 0.1200269238 | AA21: 0.06756741553 | AB21: 0.01848651023
A22: Dab Pumps | B22: 0.06209012467 | C22: 0.107318707 | D22: 0.08487728873 | E22: 0.1066509019 | F22: 0.04488877784 | G22: 0.1514567279 | H22: 0.07016487084 | I22: 0.04321769128 | J22: 0.03245245491 | K22: 0.08395091942 | L22: 0.08307713645 | M22: 0.129854399 | P22: General Fittings | Q22: 0 | R22: 0.4083235167 | S22: 0.008454310517 | T22: 0.05034648809 | U22: 0.1521939853 | V22: 0.07476102806 | W22: 0 | X22: 0.02759367137 | Y22: 0.147098702 | Z22: 0.09158552401 | AA22: 0.01710310475 | AB22: 0.02253966919
A23: Ebara | B23: 0 | C23: 0.1818590768 | D23: 0.1134099933 | E23: 0.08544619085 | F23: 0.05495669659 | G23: 0.1266617818 | H23: 0.1378813544 | I23: 0.02879100068 | J23: 0.06233494038 | K23: 0.0803248792 | L23: 0.08579176202 | M23: 0.04254232395 | P23: Giacomini | Q23: 0.203461402 | R23: 0.04738186355 | S23: 0.1644622855 | T23: 0.05766062804 | U23: 0.0275674947 | V23: 0.2208766703 | W23: 0.04699272567 | X23: 0.01215575725 | Y23: 0.006507898203 | Z23: 0.164264952 | AA23: 0.03576407931 | AB23: 0.0129042434
A24: Effebi | B24: 0 | C24: 0.2189055528 | D24: 0.08995592127 | E24: 0.02086672237 | F24: 0.04774006849 | G24: 0.1989987121 | H24: 0.1292574042 | I24: 0.01425338007 | J24: 0.05426091349 | K24: 0.09351642363 | L24: 0.06323508228 | M24: 0.06900981918 | P24: Giuseppe Tirinnanzi | Q24: 0.06699500695 | R24: 0 | S24: 0.1419409203 | T24: 0.03118640021 | U24: 0 | V24: 0.2161657847 | W24: 0.154254951 | X24: 0.03133213402 | Y24: 0.1270138412 | Z24: 0 | AA24: 0.138450929 | AB24: 0.09266003255
A25: Enolgas | B25: 0.0619567921 | C25: 0.04848861329 | D25: 0.1468363682 | E25: 0.07259984605 | F25: 0.07901534713 | G25: 0.07017105214 | H25: 0.08155534768 | I25: 0.04310872833 | J25: 0.1401056796 | K25: 0.1026548189 | L25: 0.09028891214 | M25: 0.06321849439 | P25: Global | Q25: 0.3431124357 | R25: -0.0005761136965 | S25: 0.2127894049 | T25: 0 | U25: 0.006930290388 | V25: 0.1509265551 | W25: 0.002227900771 | X25: 0 | Y25: 0.0261282287 | Z25: 0.0003523515817 | AA25: 0.2581089466 | AB25: 0
A26: Ercos | B26: 0.06456024497 | C26: 0.08285600052 | D26: 0.117799045 | E26: 0.1358038497 | F26: 0.09361979546 | G26: 0.07199014129 | H26: 0.1105248804 | I26: 0 | J26: 0.1299446787 | K26: 0.07863968731 | L26: 0.08082281631 | M26: 0.03343886032 | P26: Grohe | Q26: 0.04481307967 | R26: 0.1925026058 | S26: 0.1433004261 | T26: 0.02950655451 | U26: 0.02665732784 | V26: 0.1495982314 | W26: 0.05822012037 | X26: 0.01270626004 | Y26: 0.1284641617 | Z26: 0.01337163284 | AA26: 0.040547815 | AB26: 0.1603117847
A27: Euroacque | B27: 0 | C27: 0.2054813858 | D27: 0.0542404404 | E27: 0.08274547294 | F27: 0.08738261894 | G27: 0.03416196583 | H27: 0.08084645746 | I27: 0.04793223905 | J27: 0.09586121687 | K27: 0.1556742178 | L27: 0.08489872477 | M27: 0.07077526011 | P27: Haier | Q27: 0 | R27: 0.2936409894 | S27: 0.01662760176 | T27: 0.09062264574 | U27: 0.2252043635 | V27: 0.001270245761 | W27: 0.3085935495 | X27: 0.03677484561 | Y27: 0.02031828245 | Z27: 0.02219731936 | AA27: 0.00178268897 | AB27: -0.01703253211
A28: Eurocornici | B28: 0 | C28: 0.1657223894 | D28: 0.09613388305 | E28: -1.598725089e-05 | F28: 0.03039176395 | G28: 0.1994485852 | H28: 0.1900302777 | I28: 0.04527262441 | J28: 0.0968155213 | K28: 0.06502014939 | L28: 0.06504740038 | M28: 0.04613339253 | P28: Ibp Banninger | Q28: 0.09841213496 | R28: 0.03606641801 | S28: 0.1686198237 | T28: 0.1653986352 | U28: 0.08581994659 | V28: -0.0002966981732 | W28: 0.1550247955 | X28: 0 | Y28: 0.2246746916 | Z28: 0.01379646505 | AA28: 0.04861611495 | AB28: 0.003867672615
A29: Farg | B29: 0.01024930612 | C29: 0.09570870423 | D29: 0.07448617112 | E29: 0.09443178241 | F29: 0.1353232861 | G29: 0.1308583363 | H29: 0.07950973045 | I29: 0 | J29: 0.1526886937 | K29: 0.1136732429 | L29: 0.0295203516 | M29: 0.08355039509 | P29: Immergas | Q29: 0 | R29: 0.006559161952 | S29: 0.1332439972 | T29: 0.07172352756 | U29: 0.07431272271 | V29: 0.06825730287 | W29: 0.0139172738 | X29: 0.005180782965 | Y29: 0.1234110987 | Z29: 0.08643394521 | AA29: 0.2711310662 | AB29: 0.1458291208
A30: Ferrari | B30: 0.1020151274 | C30: 0.07728175565 | D30: 0.0938805758 | E30: 0.0793499407 | F30: 0.0524923533 | G30: 0.08741817566 | H30: 0.1240236145 | I30: 0.0225869348 | J30: 0.08775887305 | K30: 0.1169525161 | L30: 0.07244919106 | M30: 0.08379094201 | P30: Italkero | Q30: 0 | R30: 0.09897351162 | S30: 0.3309531759 | T30: 0 | U30: 0 | V30: 0 | W30: 0 | X30: 0 | Y30: 0.4760584398 | Z30: 0 | AA30: 0.08936665392 | AB30: 0.004648218762
A31: Ferroli | B31: 0.09027168964 | C31: 0.06322876654 | D31: 0.01387360953 | E31: 0.01838018031 | F31: 0.1106844118 | G31: 0.1064229498 | H31: 0 | I31: 0.07788536291 | J31: 0.06685486229 | K31: 0.1408160554 | L31: 0.1955931949 | M31: 0.1159889169 | P31: Itap | Q31: 0.05571892859 | R31: 0.1539958323 | S31: 0.2492762641 | T31: 0 | U31: 0.01805164961 | V31: 0.07835017057 | W31: 0.02991104345 | X31: 0 | Y31: 0.045439465 | Z31: 0.1231306725 | AA31: 0.09227036711 | AB31: 0.1538556068
A32: Fima Carlo Frattini | B32: 0.08033524366 | C32: 0.1118468981 | D32: 0.05467678533 | E32: 0.05816924627 | F32: 0.01832724096 | G32: 0.1679488653 | H32: 0.0708402042 | I32: 0.04066126265 | J32: 0.09124348968 | K32: 0.1543598848 | L32: 0.122101442 | M32: 0.029489437 | P32: Kinedo | Q32: 0 | R32: 0 | S32: 0 | T32: 0 | U32: 0 | V32: 1 | W32: 0 | X32: 0 | Y32: 0 | Z32: 0 | AA32: 0 | AB32: 0
A33: Fimi | B33: 0.04318538269 | C33: 0.07305749211 | D33: 0.1093257278 | E33: 0.07292164732 | F33: 0.06241673639 | G33: 0.09305682619 | H33: 0.1121353001 | I33: 0.04278428486 | J33: 0.1204093947 | K33: 0.1227359363 | L33: 0.05487945578 | M33: 0.09309181578 | P33: LG | Q33: 0 | R33: 0.3453497865 | S33: 0.02295874879 | T33: 0 | U33: 0.01924038121 | V33: 0.04038300316 | W33: 0.1162443249 | X33: 0.1486141737 | Y33: 0.07958138134 | Z33: 0.01330148388 | AA33: 0.08520283568 | AB33: 0.1291238809
A34: First Corporation | B34: 0 | C34: 0.1683333438 | D34: 0.1064636299 | E34: 0.1350706174 | F34: 0.1785735441 | G34: 0.0527122176 | H34: 0.06656969505 | I34: 0.03865481273 | J34: 0.0783086574 | K34: 0.07552488733 | L34: 0.03346744833 | M34: 0.06632114635 | P34: L'isolante K-Flex | Q34: 0 | R34: 0.0451213692 | S34: 0.04764606014 | T34: 0.0570912653 | U34: 0.07181860331 | V34: 0.1236572742 | W34: 0.1348721602 | X34: 0.00298601731 | Y34: 0.1599916364 | Z34: 0.3124293048 | AA34: 0 | AB34: 0.04438630911
A35: Fluidmaster | B35: 0.1098977425 | C35: 0.06261267565 | D35: 0.08338067139 | E35: 0.09710399057 | F35: 0.02415510502 | G35: 0.2069597088 | H35: 0.01963567618 | I35: 0.009359584275 | J35: 0.09877255683 | K35: 0.1957750618 | L35: 0.05852764312 | M35: 0.03381958385 | P35: Megius | Q35: 0 | R35: 0.05216691188 | S35: 0.007580551822 | T35: 0 | U35: 0.2202819177 | V35: 0.1487526457 | W35: 0.1121817781 | X35: 0.00196802436 | Y35: 0.0581232949 | Z35: 0.1470688509 | AA35: 0.2283394776 | AB35: 0.02353654709
A36: Galassia | B36: 0.0610254791 | C36: 0.1600110029 | D36: 0.09114401223 | E36: 0.06924085722 | F36: 0.1169001234 | G36: 0.08305842197 | H36: 0.095986843 | I36: 0.02081061239 | J36: 0.07672012506 | K36: 0.08576459581 | L36: 0.09639751505 | M36: 0.04294041187 | P36: Negrari | Q36: 0.1 | R36: 0.1125 | S36: 0.15 | T36: 0 | U36: 0 | V36: 0.15 | W36: 0.1625 | X36: 0 | Y36: 0.1 | Z36: 0.225 | AA36: 0 | AB36: 0
A37: Galletti | B37: 0 | C37: 0.1604669085 | D37: 0.02130701772 | E37: 0.3647004481 | F37: 0.01657234164 | G37: 0.01308206407 | H37: 0.06745512913 | I37: 0.00828164468 | J37: 0.062932892 | K37: 0.06641597651 | L37: 0.1332956612 | M37: 0.08548991639 | P37: Neoperl | Q37: 0.05751112659 | R37: 0.115266511 | S37: 0.06711114448 | T37: 0.1485489905 | U37: 0.1331569161 | V37: 0.1121195953 | W37: 0.002604724128 | X37: 0.04108770596 | Y37: 0.1071264485 | Z37: 0.1436943471 | AA37: 0.0004504950653 | AB37: 0.07132199534
A38: GBD | B38: 0.05002101468 | C38: 0.08417219575 | D38: 0.08295564621 | E38: 0.1186854186 | F38: 0.03792003514 | G38: 0.1327752926 | H38: 0.05158334286 | I38: 0.03787423896 | J38: 0.07755480444 | K38: 0.1171502488 | L38: 0.1284634387 | M38: 0.0808443233 | P38: Novellini | Q38: 0.04564289884 | R38: 0.08129770476 | S38: 0.09682636592 | T38: 0.1484895038 | U38: 0.07249766238 | V38: 0.1558851493 | W38: 0.07767835392 | X38: 0.02121677762 | Y38: 0.05229196398 | Z38: 0.08587089575 | AA38: 0.1094937539 | AB38: 0.05280896994
A39: Geberit | B39: 0.06957331868 | C39: 0.1045292742 | D39: 0.1081311069 | E39: 0.07772513597 | F39: 0.07712464331 | G39: 0.09678936839 | H39: 0.08684301175 | I39: 0.04242528304 | J39: 0.07090372642 | K39: 0.1036752667 | L39: 0.111092206 | M39: 0.05118765865 | P39: Olimpia Splendid | Q39: 0.1314336308 | R39: 0 | S39: -0.01980474848 | T39: 0 | U39: 0.04618001351 | V39: 0.03350497449 | W39: 0.007712202055 | X39: 0 | Y39: 0 | Z39: 0.1400312216 | AA39: 0.4697919336 | AB39: 0.1911507724
A40: General d'aspirazione | B40: 0.01372712037 | C40: 0.07054437537 | D40: 0.04565402132 | E40: 0.2028943373 | F40: 0.06278036344 | G40: 0.02901440986 | H40: 0.1197021998 | I40: 0.01482818407 | J40: 0.05325425495 | K40: 0.07553994217 | L40: 0.1852424576 | M40: 0.1268183337 | P40: Omp Tea | Q40: 0.03248727829 | R40: 0 | S40: 0.7044713673 | T40: 0 | U40: 0 | V40: 0 | W40: 0 | X40: 0 | Y40: 0.1888467684 | Z40: 0.07419458597 | AA40: 0 | AB40: 0
A41: General Fittings | B41: 0 | C41: 0.312694465 | D41: 0.05292193294 | E41: 0.07341006219 | F41: 0.1072534762 | G41: 0.07946025282 | H41: 0 | I41: 0.08513264062 | J41: 0.1298704317 | K41: 0.08473858091 | L41: 0.03189446062 | M41: 0.04262369704 | P41: Paini | Q41: 0.01802116515 | R41: 0.6873168269 | S41: 0.04193517964 | T41: 0.004858961842 | U41: 0.02007113399 | V41: 0.007795464868 | W41: 0.07853636601 | X41: 0 | Y41: 0.03143235254 | Z41: 0.05105456071 | AA41: 0.03373553063 | AB41: 0.02524245767
A42: Giacomini | B42: 0.09229624506 | C42: 0.07050592306 | D42: 0.1435148684 | E42: 0.06895986 | F42: 0.07225212782 | G42: 0.09939236921 | H42: 0.09746049896 | I42: 0.02816741251 | J42: 0.05923986851 | K42: 0.1063215951 | L42: 0.09186938031 | M42: 0.07001985104 | P42: Raccorderie Metalliche | Q42: 0.09638296099 | R42: 0.01084102545 | S42: 0.1636911055 | T42: 0.04694299655 | U42: 0.08504411588 | V42: 0.1328458213 | W42: 0.2045478701 | X42: 0.06064178648 | Y42: 0.02643341882 | Z42: 0.04061095629 | AA42: 0.09492635009 | AB42: 0.03709159252
A43: Giuseppe Tirinnanzi | B43: 0.09752921766 | C43: 0.06115375741 | D43: 0.1290917038 | E43: 0.06261886419 | F43: 0.06766498109 | G43: 0.09286057001 | H43: 0.1133043063 | I43: 0.0527828823 | J43: 0.08962710191 | K43: 0.07828094138 | L43: 0.1002597756 | M43: 0.05482589835 | P43: Rainbox | Q43: 0.02942524903 | R43: -0.001146167632 | S43: 0 | T43: 0.1944317092 | U43: 0.1950568916 | V43: 0.01229525278 | W43: 0.4611136582 | X43: 0.06166381861 | Y43: 0.04632601175 | Z43: 0.0008335764598 | AA43: 0 | AB43: 0
A44: Global | B44: 0.1277982223 | C44: 0.08595216897 | D44: 0.1139585919 | E44: 0.08951167269 | F44: 0.04371371598 | G44: 0.09782091851 | H44: 0.01730723566 | I44: 0.01212693715 | J44: 0.07666472683 | K44: 0.05809119658 | L44: 0.2159887213 | M44: 0.0610658921 | P44: Rems | Q44: 0.05321453386 | R44: 0.09841827768 | S44: 0.05546245964 | T44: 0.04875955368 | U44: 0.03584419831 | V44: 0.05672947235 | W44: 0.06539420444 | X44: 0.0008582989333 | Y44: 0.02141660195 | Z44: 0.1199983651 | AA44: 0.2883884416 | AB44: 0.1555155924
A45: Grantour | B45: 0.09631258661 | C45: 0.1379466169 | D45: 0.1649996987 | E45: 0.1539434838 | F45: 0.08429234199 | G45: 0.08173163825 | H45: 0.07603783816 | I45: 0.06880761583 | J45: 0.04817135627 | K45: 0.0367837561 | L45: 0.03455443755 | M45: 0.01641862987 | P45: River | Q45: 0.154096355 | R45: 0 | S45: 0.1519331032 | T45: 0.1658441427 | U45: 0.06418265809 | V45: 0.1575728253 | W45: 0 | X45: 0 | Y45: 0.1522498024 | Z45: 0.1541211132 | AA45: 0 | AB45: 0
A46: Griffon - Bostik | B46: 0 | C46: 0 | D46: 0 | E46: 0.6234057982 | F46: 0.0422618776 | G46: 0.02396056775 | H46: 0 | I46: 0 | J46: 0.2284164727 | K46: 0 | L46: 0 | M46: 0.08195528375 | P46: Rizzo Aquae | Q46: 0 | R46: 0.05414338422 | S46: 0.09027766136 | T46: 0.1679689364 | U46: 0.05758013827 | V46: 0.1350650791 | W46: 0 | X46: 0.01547506516 | Y46: 0.1626758193 | Z46: 0.04506338974 | AA46: 0.05232699844 | AB46: 0.219423528
A47: Grohe | B47: 0.05059177308 | C47: 0.1043983476 | D47: 0.05377349429 | E47: 0.05182175793 | F47: 0.02931213293 | G47: 0.1005189333 | H47: 0.04449297288 | I47: 0.02024813696 | J47: 0.07750188693 | K47: 0.2514308874 | L47: 0.0747501191 | M47: 0.1411595575 | P47: RM Manfredi | Q47: 0.08833703438 | R47: 0.3093021445 | S47: 0.05080096576 | T47: 0.05770790632 | U47: 0.09346310125 | V47: 0 | W47: 0.08412372466 | X47: 0 | Y47: 0.1885370621 | Z47: 0 | AA47: 0.0902394824 | AB47: 0.03748857866
A48: Gruppo Salteco | B48: 0.07282602348 | C48: 0.09098872861 | D48: 0.1029609297 | E48: 0.07933773287 | F48: 0.08567423933 | G48: 0.1196636103 | H48: 0.07224201367 | I48: 0.04572796823 | J48: 0.1175903755 | K48: 0.1032821351 | L48: 0.05699935759 | M48: 0.05270688548 | P48: Samsung | Q48: 0 | R48: 0.1532235225 | S48: 0 | T48: 0 | U48: 0 | V48: 0.8467764775 | W48: 0 | X48: 0 | Y48: 0 | Z48: 0 | AA48: 0 | AB48: 0
A49: Haier | B49: 0 | C49: 0.08855829203 | D49: 0.1380705098 | E49: 0.1555339344 | F49: 0.2440493367 | G49: 0.03209106912 | H49: 0.1872539316 | I49: 0.07760260331 | J49: 0.02026471214 | K49: -0.005950885001 | L49: 0.04757234876 | M49: 0.01495414725 | P49: System Group (Italiana Corrugati) | Q49: 0 | R49: 0 | S49: 0 | T49: 0 | U49: 0 | V49: 0.1732692557 | W49: 0.4079750617 | X49: 0 | Y49: 0 | Z49: 0 | AA49: 0.4187556826 | AB49: 0
A50: Ibp Banninger | B50: 0.09508425099 | C50: 0.06961318888 | D50: 0.09810957323 | E50: 0.1265756622 | F50: 0.08442606313 | G50: 0.08596620319 | H50: 0.1035509489 | I50: 0.03131406678 | J50: 0.09961179336 | K50: 0.08027377448 | L50: 0.07595148686 | M50: 0.04952298792 | P50: System Group (Rototec) | Q50: 0.02741847641 | R50: 0 | S50: 0.1199103837 | T50: 0.1477224268 | U50: 0.1671773947 | V50: 0.2164918262 | W50: 0.1465966576 | X50: 0.06181347563 | Y50: 0.01152319031 | Z50: 0.03288658716 | AA50: 0.04632236781 | AB50: 0.02213721358
A51: Ideal Standard | B51: 0 | C51: 0.2240585745 | D51: 0.01125534788 | E51: 0.07285028844 | F51: 0.08581449762 | G51: 0.07527183234 | H51: 0.09222663216 | I51: 0.03070426058 | J51: 0.132642028 | K51: 0.102367883 | L51: 0.0781365492 | M51: 0.09467210624 | P51: System Group (Sa.Mi. Plastic) | Q51: 0.2520068599 | R51: 0.01323588466 | S51: 0 | T51: 0.1919396264 | U51: 0.1793726326 | V51: 0.004555959844 | W51: 0.03144325023 | X51: 0 | Y51: 0.1212249376 | Z51: 0.06207438277 | AA51: 0.1349020751 | AB51: 0.009244390857
A52: Immergas | B52: 0.0428275254 | C52: 0.07993986397 | D52: 0.1030290322 | E52: 0.06253384463 | F52: 0.05689887985 | G52: 0.09499958341 | H52: 0.04998152559 | I52: 0.01199689428 | J52: 0.1069580906 | K52: 0.1237846948 | L52: 0.1797025726 | M52: 0.08734749264 | P52: System Group (Sab) | Q52: 0 | R52: 0.3956247371 | S52: 0 | T52: 0.3947623054 | U52: 0.0223601178 | V52: 0.04419436264 | W52: 0.0419225915 | X52: 0 | Y52: 0.03737904922 | Z52: 0.02191838452 | AA52: 0.02053007993 | AB52: 0.0213083719
A53: Isoclima | B53: 0 | C53: 0 | D53: 0.0735828425 | E53: 0.04191012182 | F53: 0.08294933822 | G53: 0.07049126497 | H53: 0.1075878228 | I53: 0.04032815256 | J53: 0.1782924713 | K53: 0.06260932561 | L53: 0.1238561776 | M53: 0.2183924826 | P53: Tecnosystemi | Q53: 0.02784728723 | R53: 0 | S53: 0.02319613248 | T53: 0.02114326265 | U53: 0.3748013038 | V53: 0 | W53: 0.07643936428 | X53: 0 | Y53: 0.1493149465 | Z53: 0.1705558826 | AA53: 0.1567018204 | AB53: 0
A54: Italkero | B54: 0 | C54: 0.2500984837 | D54: 0.25831241 | E54: 0 | F54: 0.02122824318 | G54: 0.01248573794 | H54: 0.004169499226 | I54: 0.03184236477 | J54: 0.2505273028 | K54: 0.07940383946 | L54: 0.08948597872 | M54: 0.002446140246 | P54: Thermomat Saniline | Q54: 0.0521095278 | R54: 0.08289675887 | S54: 0.2274902207 | T54: 0.1796591227 | U54: 0 | V54: 0.02015227717 | W54: 0.1384988824 | X54: 0 | Y54: 0.151753283 | Z54: 0.04461791003 | AA54: 0.04997904443 | AB54: 0.0528429729
A55: Itap | B55: 0.06440933563 | C55: 0.07056745451 | D55: 0.1552393081 | E55: 0.04965751277 | F55: 0.1418048045 | G55: 0.0747981004 | H55: 0.04376737789 | I55: 0 | J55: 0.09232619495 | K55: 0.133554173 | L55: 0.09129239959 | M55: 0.08258333869 | P55: Va-Albertoni | Q55: 0.1778201578 | R55: 0.0157342367 | S55: 0.08665328846 | T55: 0.2000204262 | U55: 0.0964808925 | V55: 0.02692775289 | W55: 0.1010542878 | X55: 0.2064473553 | Y55: 0.03335164667 | Z55: 0.05075997388 | AA55: 0.004749981832 | AB55: 0
A56: Kinedo | B56: 0 | C56: 0 | D56: 0 | E56: 0 | F56: 0.4567167691 | G56: 0.1407925446 | H56: 0.06203090661 | I56: -0.0001064197419 | J56: 0.1554012663 | K56: 0.04151085849 | L56: 0.098322167 | M56: 0.0453319077 | P56: Valsir | Q56: 0.2746074566 | R56: 0.05787708912 | S56: 0.08073335288 | T56: 0.08334004465 | U56: 0.1022851481 | V56: 0.1231319467 | W56: 0.09096703168 | X56: -0.005009069199 | Y56: 0.02355227965 | Z56: 0.1398183663 | AA56: 0.02285850897 | AB56: 0.005837844508
A57: LG | B57: 0 | C57: 0.1951590577 | D57: 0.03628905556 | E57: 0.06567754705 | F57: 0.02394158756 | G57: 0.06489151114 | H57: 0.1622672529 | I57: 0.09713073296 | J57: 0.1019823523 | K57: 0.06682665466 | L57: 0.08188587406 | M57: 0.103948374 | P57: Varem | Q57: 0.05600969853 | R57: -0.01856079687 | S57: 0.6423354233 | T57: 0.1095732926 | U57: 0 | V57: 0.0592671088 | W57: 0 | X57: 0.05335061179 | Y57: 0 | Z57: 0.09802466184 | AA57: 0 | AB57: 0
A58: L'isolante K-Flex | B58: 0.03240900725 | C58: 0.06755411242 | D58: 0.1070621062 | E58: 0.08502915926 | F58: 0.06800180087 | G58: 0.121620247 | H58: 0.1004376808 | I58: 0.03467327109 | J58: 0.09869541713 | K58: 0.1717690224 | L58: 0.06429112839 | M58: 0.04845704718
A59: Megius | B59: 0 | C59: 0.1110889064 | D59: 0.04677615303 | E59: 0.03395478707 | F59: 0.1013256431 | G59: 0.1052641726 | H59: 0.07580591251 | I59: 0.01770645268 | J59: 0.1336207418 | K59: 0.1217368116 | L59: 0.1495357288 | M59: 0.1031846904
A60: Mut Meccanica Tovo | B60: 0.1476254934 | C60: 0.026293624 | D60: 0.1139793131 | E60: 0.1290836807 | F60: 0.07850905124 | G60: 0.009152705877 | H60: 0.0457429051 | I60: 0 | J60: 0.016712867 | K60: 0.1277845455 | L60: 0.1693642643 | M60: 0.1357515498
A61: Negrari | B61: 0.08248332188 | C61: 0.09431368255 | D61: 0.07186266991 | E61: 0.07752468334 | F61: 0.01661667407 | G61: 0.1733453526 | H61: 0.1018980481 | I61: 0.03091382439 | J61: 0.1959117064 | K61: 0.0742402075 | L61: 0.03143045651 | M61: 0.04945937281
A62: Neoperl | B62: 0.07871819542 | C62: 0.09699601542 | D62: 0.0670751203 | E62: 0.106479561 | F62: 0.105236203 | G62: 0.08911721211 | H62: 0.07947141237 | I62: 0.04474547851 | J62: 0.08946586491 | K62: 0.1084236444 | L62: 0.08192009877 | M62: 0.05235119382
A63: Novellini | B63: 0.06218632338 | C63: 0.07375811755 | D63: 0.07050084488 | E63: 0.1067607889 | F63: 0.08361724266 | G63: 0.1193706625 | H63: 0.1142179873 | I63: 0.03189256992 | J63: 0.06762384749 | K63: 0.09546102662 | L63: 0.1171992035 | M63: 0.05741138526
A64: Olimpia Splendid | B64: 0.03899415507 | C64: 0.05808897859 | D64: 0.09406797743 | E64: 0.06051999202 | F64: 0.08350443704 | G64: 0.04154409579 | H64: 0.1095250254 | I64: 0.004228914019 | J64: 0.1631997034 | K64: 0.1178114583 | L64: 0.1645114013 | M64: 0.06400386164
A65: Omp Tea | B65: 0.08204611422 | C65: 0.0821027945 | D65: 0.1262569247 | E65: 0.06603879282 | F65: 0.09516799359 | G65: 0.09849848806 | H65: 0.09460204966 | I65: 0.04173567281 | J65: 0.09101008605 | K65: 0.1206233152 | L65: 0.06658178058 | M65: 0.03533598784
A66: Paini | B66: 0.01580087794 | C66: 0.4945584044 | D66: 0.1195706787 | E66: 0.02936085729 | F66: 0.04256822273 | G66: 0.03715379897 | H66: 0.04932866744 | I66: 0 | J66: 0.04806857056 | K66: 0.05370911914 | L66: 0.07217666071 | M66: 0.03770414218
A67: Panasonic | B67: 0.04036159684 | C67: 0.08049894378 | D67: 0.06601434959 | E67: 0.09242446785 | F67: 0.1174997687 | G67: 0.1524351038 | H67: 0.1651497513 | I67: 0.02810425877 | J67: 0.06580450239 | K67: 0.06235263347 | L67: 0.02736357639 | M67: 0.1019910472
A68: Planus | B68: 0 | C68: 0 | D68: 0.5 | E68: 0 | F68: 0 | G68: 0 | H68: 0 | I68: 0 | J68: 0 | K68: 0 | L68: 0 | M68: 0.5
A69: Polieco | B69: 0.02545668811 | C69: 0.1010215709 | D69: 0.08573809445 | E69: 0.08874640109 | F69: 0.1234002418 | G69: 0.137861209 | H69: 0.1330330077 | I69: 0.01734969069 | J69: 0.08254640324 | K69: 0.03111224151 | L69: 0.1170327653 | M69: 0.05670168627
A70: Raccorderie Metalliche | B70: 0.07498345988 | C70: 0.06092866996 | D70: 0.119723913 | E70: 0.09378281617 | F70: 0.08796945483 | G70: 0.1241083993 | H70: 0.1151224541 | I70: 0.03430628425 | J70: 0.05978071603 | K70: 0.1008187049 | L70: 0.0702516683 | M70: 0.05822345938
A71: Rainbox | B71: 0.07677847329 | C71: 0.0656421007 | D71: 0.08042990433 | E71: 0.1154777371 | F71: 0.1477550096 | G71: 0.08000669265 | H71: 0.1866166686 | I71: 0.04994882091 | J71: 0.06842742412 | K71: 0.05486988701 | L71: 0.0529113027 | M71: 0.0211359789
A72: Rems | B72: 0.06132829531 | C72: 0.08955246713 | D72: 0.08816802943 | E72: 0.0870283542 | F72: 0.1031520816 | G72: 0.06430368903 | H72: 0.08073336954 | I72: 0.01219223032 | J72: 0.07544803004 | K72: 0.1285691339 | L72: 0.1379542447 | M72: 0.07157007473
A73: River | B73: 0.09511757836 | C73: 0.04715012036 | D73: 0.09696973689 | E73: 0.04679152517 | F73: 0.1311418817 | G73: 0.07117476256 | H73: 0.1071532637 | I73: 0.03040442517 | J73: 0.1655767974 | K73: 0.08148725603 | L73: 0.09681020115 | M73: 0.0302224515
A74: Rizzo Aquae | B74: 0 | C74: 0.06190413547 | D74: 0.07251368339 | E74: 0.151686755 | F74: 0.04625006733 | G74: 0.1084882598 | H74: 0.03417636554 | I74: 0.01243002929 | J74: 0.1306660217 | K74: 0.106014684 | L74: 0.05943832841 | M74: 0.2164316701
A75: RM Manfredi | B75: 0.09949038791 | C75: 0.08979053838 | D75: 0.07197148301 | E75: 0.1080559801 | F75: 0.04536733753 | G75: 0.2016382157 | H75: 0.1058493609 | I75: 0.03027519274 | J75: 0.1076299176 | K75: 0.0271429131 | L75: 0.05342889746 | M75: 0.05935977557
A76: Royo | B76: 0 | C76: 0 | D76: 0 | E76: 0 | F76: 0.4746140853 | G76: 0.06218894238 | H76: 0.1368502979 | I76: 0.05442398075 | J76: 0.07339228562 | K76: 0.07566547136 | L76: 0.03491824058 | M76: 0.08794669605
A77: Rubinetterie Bresciane | B77: 0.05526834881 | C77: 0.07275031661 | D77: 0.1407805817 | E77: 0.08380305009 | F77: 0.07286421295 | G77: 0.1114529119 | H77: 0.08835903774 | I77: 0.02151103566 | J77: 0.08245196133 | K77: 0.09318559459 | L77: 0.1097537626 | M77: 0.067819186
A78: Sabiana | B78: 0 | C78: 0 | D78: 0 | E78: 0.3325221034 | F78: 0.05114270506 | G78: 0.08287308951 | H78: 0.1015837112 | I78: 0.03206045416 | J78: 0.1629263961 | K78: 0.1169295467 | L78: 0.06416369817 | M78: 0.05579829569
A79: Samsung | B79: 0.01714613566 | C79: 0.1743991767 | D79: 0.1575677515 | E79: 0.1213703246 | F79: 0.09983481841 | G79: 0.110297426 | H79: 0.04557811822 | I79: 0.02630843565 | J79: 0.01282864329 | K79: 0.1185204388 | L79: 0.06329042795 | M79: 0.05285830316
A80: Silmet | B80: 0 | C80: 0.2086060255 | D80: 0.08149003175 | E80: 0.1499642862 | F80: 0.004723281882 | G80: 0.05984740976 | H80: 0.04615900231 | I80: 0 | J80: 0.1995811615 | K80: 0.1200944587 | L80: 0.1295343424 | M80: 0
A81: System Group (Rototec) | B81: 0.06568228189 | C81: 0 | D81: 0.1110455727 | E81: 0.1195802228 | F81: 0.1213952006 | G81: 0.2087467743 | H81: 0.1192246495 | I81: 0.04418873152 | J81: 0.07872886697 | K81: 0.0235097049 | L81: 0.09207271752 | M81: 0.01582527722
A82: System Group (Sa.Mi. Plastic) | B82: 0.1020069444 | C82: 0.1300742208 | D82: 0.06836856411 | E82: 0.1074063821 | F82: 0.07323709385 | G82: 0.05821464569 | H82: 0.06145678873 | I82: 0.01838322516 | J82: 0.1412281386 | K82: 0.08039253933 | L82: 0.09813614903 | M82: 0.06109530828
A83: System Group (Sab) | B83: 0.0238278989 | C83: 0.2694867837 | D83: 0.04980223809 | E83: 0.2864533089 | F83: 0.03200366583 | G83: 0.06153530774 | H83: 0.08893256801 | I83: 0.02060823847 | J83: 0.05163515339 | K83: 0.0568203743 | L83: 0.0276746093 | M83: 0.03121985337
A84: TECNOCONTROL | B84: 0.0171511104 | C84: 0.2716999765 | D84: 0.08136679546 | E84: 0.03203081215 | F84: 0.05232337946 | G84: 0.07718690977 | H84: 0.06340785364 | I84: 0 | J84: 0.159807424 | K84: 0.1120811782 | L84: 0.06085054378 | M84: 0.07209401657
A85: Tecnosystemi | B85: 0.05950778305 | C85: 0.06942872833 | D85: 0.1126149952 | E85: 0.0699525232 | F85: 0.1469134771 | G85: 0.05537516549 | H85: 0.09627329207 | I85: 0.05362333029 | J85: 0.1038529286 | K85: 0.08749670126 | L85: 0.1050317573 | M85: 0.03992931814
A86: Tenaris Dalmine | B86: 0.03321691831 | C86: 0.04633361235 | D86: 0.09830719754 | E86: 0.1577885671 | F86: 0.1104488256 | G86: 0.07814656368 | H86: 0.09126402973 | I86: 0.001958806831 | J86: 0.08513295846 | K86: 0.09146388828 | L86: 0.1649114955 | M86: 0.04102713665
A87: Thermomat Saniline | B87: 0.06999120342 | C87: 0.08669692275 | D87: 0.1441938673 | E87: 0.1448399879 | F87: 0.07863987731 | G87: 0.04274515604 | H87: 0.1045469761 | I87: 0.01335056321 | J87: 0.1237281934 | K87: 0.06314855323 | L87: 0.0556597825 | M87: 0.07245891685
A88: Tiemme Raccorderie | B88: 0.0666111127 | C88: 0.1124799893 | D88: 0.07677224552 | E88: 0.07219169105 | F88: 0.1064159417 | G88: 0.03700689464 | H88: 0.08709234023 | I88: 0.02543089608 | J88: 0.1082839346 | K88: 0.1204917256 | L88: 0.1104422525 | M88: 0.07678097602
A89: Unidelta | B89: 0 | C89: 0.2006776526 | D89: 0.09830994252 | E89: 0.1213102786 | F89: 0.08852666619 | G89: 0.1046641197 | H89: 0.0939315871 | I89: 0.0259806627 | J89: 0.05663197871 | K89: 0.09395716571 | L89: 0.09690803612 | M89: 0.01910191011
A90: Va-Albertoni | B90: 0.079097176 | C90: 0.1055994013 | D90: 0.0762983228 | E90: 0.1506466135 | F90: 0.1050521756 | G90: 0.06528949358 | H90: 0.09149047134 | I90: 0.0966603874 | J90: 0.0668685454 | K90: 0.08971956745 | L90: 0.02142127686 | M90: 0.05185656881
A91: Valsir | B91: 0.1017844489 | C91: 0.08690584841 | D91: 0.1306495409 | E91: 0.07340575985 | F91: 0.08568021657 | G91: 0.09179245847 | H91: 0.09549304485 | I91: 0.01238513746 | J91: 0.08849609739 | K91: 0.1057993093 | L91: 0.06573547372 | M91: 0.06187266417
A92: Varem | B92: 0.07869520086 | C92: 0.04224788557 | D92: 0.182857471 | E92: 0.09946439394 | F92: 0.08492320329 | G92: 0.07563668086 | H92: 0.041101384 | I92: 0.06234387919 | J92: 0.08988623424 | K92: 0.07794296648 | L92: 0.09536645728 | M92: 0.06953424333
A93: Vortice | B93: 0.1650180584 | C93: 0.1008618732 | D93: -0.003704967005 | E93: 0.2241330288 | F93: 0.01331833022 | G93: 0.04468966992 | H93: 0.1494043252 | I93: 0 | J93: 0.07622800775 | K93: 0.03815269856 | L93: 0.1346618465 | M93: 0.0572371284
A94: Wavin | B94: 0.0594695455 | C94: 0.1056134413 | D94: 0.09846236436 | E94: 0.173546865 | F94: 0.09052170217 | G94: 0.06951629059 | H94: 0.04126630835 | I94: 0.04554408742 | J94: 0.07723980378 | K94: 0.08567977264 | L94: 0.08932656505 | M94: 0.06381325389
A95: Wilo | B95: 0.04857742647 | C95: 0.1174745011 | D95: 0.0329236074 | E95: 0.1459197994 | F95: 0.1827138392 | G95: 0.07803853264 | H95: 0.02529173004 | I95: 0.006090948582 | J95: 0.01971843088 | K95: 0.03337352547 | L95: 0.2764449293 | M95: 0.03343272949
A96: Xylem | B96: 0 | C96: 0 | D96: 0 | E96: 0 | F96: 0 | G96: 0.4556213949 | H96: 0.08805568762 | I96: 0.06149854253 | J96: 0.1353396261 | K96: 0.0562454091 | L96: 0.1269345597 | M96: 0.07630477997

Sheet PREMI
B1: STIMA PREMI AD OGGI
A4: SOCIO | B4: FORNITORE | C4: Fatt. Progr.2022 | D4: Coordinamento | E4: Incondizionato | F4: Premio a Target | G4: Totale premi
A5: RAFFAELE SpA | C5: 1033305.776 | G5: =SUM(G6:G102) -> 0
B6: Arblu | C6: 8399.78 | D6: =IFERROR(VLOOKUP(B6,'[1]FATT+ORD+P.O.'!$A$3:$I$96,6,FALSE),"") -> 0 | E6: =IFERROR(VLOOKUP(B6,'[1]FATT+ORD+P.O.'!$A$3:$I$96,7,FALSE),"") -> 0 | F6: =IFERROR(VLOOKUP(B6,'[1]FATT+ORD+P.O.'!$A$3:$I$96,8,FALSE),"") -> 0 | G6: =IFERROR(C6*(D6+E6+F6),"") -> 0
B7: Ariston | C7: 39569.51 | D7: =IFERROR(VLOOKUP(B7,'[1]FATT+ORD+P.O.'!$A$3:$I$96,6,FALSE),"") -> 0 | E7: =IFERROR(VLOOKUP(B7,'[1]FATT+ORD+P.O.'!$A$3:$I$96,7,FALSE),"") -> 0 | F7: =IFERROR(VLOOKUP(B7,'[1]FATT+ORD+P.O.'!$A$3:$I$96,8,FALSE),"") -> 0 | G7: =IFERROR(C7*(D7+E7+F7),"") -> 0
B8: Bosch | C8: 34199.31 | D8: =IFERROR(VLOOKUP(B8,'[1]FATT+ORD+P.O.'!$A$3:$I$96,6,FALSE),"") -> 0 | E8: =IFERROR(VLOOKUP(B8,'[1]FATT+ORD+P.O.'!$A$3:$I$96,7,FALSE),"") -> 0 | F8: =IFERROR(VLOOKUP(B8,'[1]FATT+ORD+P.O.'!$A$3:$I$96,8,FALSE),"") -> 0 | G8: 0
B9: Bwt/Cillichemie | C9: 355 | D9: =IFERROR(VLOOKUP(B9,'[1]FATT+ORD+P.O.'!$A$3:$I$96,6,FALSE),"") -> 0 | E9: =IFERROR(VLOOKUP(B9,'[1]FATT+ORD+P.O.'!$A$3:$I$96,7,FALSE),"") -> 0 | F9: =IFERROR(VLOOKUP(B9,'[1]FATT+ORD+P.O.'!$A$3:$I$96,8,FALSE),"") -> 0 | G9: 0
B10: Caleffi | C10: 2988.57 | D10: =IFERROR(VLOOKUP(B10,'[1]FATT+ORD+P.O.'!$A$3:$I$96,6,FALSE),"") -> 0 | E10: =IFERROR(VLOOKUP(B10,'[1]FATT+ORD+P.O.'!$A$3:$I$96,7,FALSE),"") -> 0 | F10: =IFERROR(VLOOKUP(B10,'[1]FATT+ORD+P.O.'!$A$3:$I$96,8,FALSE),"") -> 0 | G10: 0
B11: Carlo Nobili | C11: 84309 | D11: =IFERROR(VLOOKUP(B11,'[1]FATT+ORD+P.O.'!$A$3:$I$96,6,FALSE),"") -> 0 | E11: =IFERROR(VLOOKUP(B11,'[1]FATT+ORD+P.O.'!$A$3:$I$96,7,FALSE),"") -> 0 | F11: =IFERROR(VLOOKUP(B11,'[1]FATT+ORD+P.O.'!$A$3:$I$96,8,FALSE),"") -> 0 | G11: 0
B12: Cordivari | C12: 24622.4 | D12: =IFERROR(VLOOKUP(B12,'[1]FATT+ORD+P.O.'!$A$3:$I$96,6,FALSE),"") -> 0 | E12: =IFERROR(VLOOKUP(B12,'[1]FATT+ORD+P.O.'!$A$3:$I$96,7,FALSE),"") -> 0 | F12: =IFERROR(VLOOKUP(B12,'[1]FATT+ORD+P.O.'!$A$3:$I$96,8,FALSE),"") -> 0 | G12: 0
B13: Ebara | C13: 75856.85 | D13: =IFERROR(VLOOKUP(B13,'[1]FATT+ORD+P.O.'!$A$3:$I$96,6,FALSE),"") -> 0 | E13: =IFERROR(VLOOKUP(B13,'[1]FATT+ORD+P.O.'!$A$3:$I$96,7,FALSE),"") -> 0 | F13: =IFERROR(VLOOKUP(B13,'[1]FATT+ORD+P.O.'!$A$3:$I$96,8,FALSE),"") -> 0 | G13: 0
B14: Effebi | C14: 2452.3 | D14: =IFERROR(VLOOKUP(B14,'[1]FATT+ORD+P.O.'!$A$3:$I$96,6,FALSE),"") -> 0 | E14: =IFERROR(VLOOKUP(B14,'[1]FATT+ORD+P.O.'!$A$3:$I$96,7,FALSE),"") -> 0 | F14: =IFERROR(VLOOKUP(B14,'[1]FATT+ORD+P.O.'!$A$3:$I$96,8,FALSE),"") -> 0 | G14: 0
B15: Ercos | C15: 687 | D15: =IFERROR(VLOOKUP(B15,'[1]FATT+ORD+P.O.'!$A$3:$I$96,6,FALSE),"") -> 0 | E15: =IFERROR(VLOOKUP(B15,'[1]FATT+ORD+P.O.'!$A$3:$I$96,7,FALSE),"") -> 0 | F15: =IFERROR(VLOOKUP(B15,'[1]FATT+ORD+P.O.'!$A$3:$I$96,8,FALSE),"") -> 0 | G15: 0
B16: Euroacque | C16: 4608 | D16: =IFERROR(VLOOKUP(B16,'[1]FATT+ORD+P.O.'!$A$3:$I$96,6,FALSE),"") -> 0 | E16: =IFERROR(VLOOKUP(B16,'[1]FATT+ORD+P.O.'!$A$3:$I$96,7,FALSE),"") -> 0 | F16: =IFERROR(VLOOKUP(B16,'[1]FATT+ORD+P.O.'!$A$3:$I$96,8,FALSE),"") -> 0 | G16: 0
B17: Ferrari | C17: 64659 | D17: =IFERROR(VLOOKUP(B17,'[1]FATT+ORD+P.O.'!$A$3:$I$96,6,FALSE),"") -> 0 | E17: =IFERROR(VLOOKUP(B17,'[1]FATT+ORD+P.O.'!$A$3:$I$96,7,FALSE),"") -> 0 | F17: =IFERROR(VLOOKUP(B17,'[1]FATT+ORD+P.O.'!$A$3:$I$96,8,FALSE),"") -> 0 | G17: 0
B18: Fimi | C18: 2299 | D18: =IFERROR(VLOOKUP(B18,'[1]FATT+ORD+P.O.'!$A$3:$I$96,6,FALSE),"") -> 0 | E18: =IFERROR(VLOOKUP(B18,'[1]FATT+ORD+P.O.'!$A$3:$I$96,7,FALSE),"") -> 0 | F18: =IFERROR(VLOOKUP(B18,'[1]FATT+ORD+P.O.'!$A$3:$I$96,8,FALSE),"") -> 0 | G18: 0
B19: First Corporation | C19: 459.586 | D19: =IFERROR(VLOOKUP(B19,'[1]FATT+ORD+P.O.'!$A$3:$I$96,6,FALSE),"") -> 0 | E19: =IFERROR(VLOOKUP(B19,'[1]FATT+ORD+P.O.'!$A$3:$I$96,7,FALSE),"") -> 0 | F19: =IFERROR(VLOOKUP(B19,'[1]FATT+ORD+P.O.'!$A$3:$I$96,8,FALSE),"") -> 0 | G19: 0
B20: Fluidmaster | C20: 8941 | D20: =IFERROR(VLOOKUP(B20,'[1]FATT+ORD+P.O.'!$A$3:$I$96,6,FALSE),"") -> 0 | E20: =IFERROR(VLOOKUP(B20,'[1]FATT+ORD+P.O.'!$A$3:$I$96,7,FALSE),"") -> 0 | F20: =IFERROR(VLOOKUP(B20,'[1]FATT+ORD+P.O.'!$A$3:$I$96,8,FALSE),"") -> 0 | G20: 0
B21: Geberit | C21: 149260.83 | D21: =IFERROR(VLOOKUP(B21,'[1]FATT+ORD+P.O.'!$A$3:$I$96,6,FALSE),"") -> 0 | E21: =IFERROR(VLOOKUP(B21,'[1]FATT+ORD+P.O.'!$A$3:$I$96,7,FALSE),"") -> 0 | F21: =IFERROR(VLOOKUP(B21,'[1]FATT+ORD+P.O.'!$A$3:$I$96,8,FALSE),"") -> 0 | G21: 0
B22: General Fittings | C22: 132901.34 | D22: =IFERROR(VLOOKUP(B22,'[1]FATT+ORD+P.O.'!$A$3:$I$96,6,FALSE),"") -> 0 | E22: =IFERROR(VLOOKUP(B22,'[1]FATT+ORD+P.O.'!$A$3:$I$96,7,FALSE),"") -> 0 | F22: =IFERROR(VLOOKUP(B22,'[1]FATT+ORD+P.O.'!$A$3:$I$96,8,FALSE),"") -> 0 | G22: 0
B23: Giacomini | C23: 7884.35 | D23: =IFERROR(VLOOKUP(B23,'[1]FATT+ORD+P.O.'!$A$3:$I$96,6,FALSE),"") -> 0 | E23: =IFERROR(VLOOKUP(B23,'[1]FATT+ORD+P.O.'!$A$3:$I$96,7,FALSE),"") -> 0 | F23: =IFERROR(VLOOKUP(B23,'[1]FATT+ORD+P.O.'!$A$3:$I$96,8,FALSE),"") -> 0 | G23: 0
B24: Giuseppe Tirinnanzi | C24: 1849.4 | D24: =IFERROR(VLOOKUP(B24,'[1]FATT+ORD+P.O.'!$A$3:$I$96,6,FALSE),"") -> 0 | E24: =IFERROR(VLOOKUP(B24,'[1]FATT+ORD+P.O.'!$A$3:$I$96,7,FALSE),"") -> 0 | F24: =IFERROR(VLOOKUP(B24,'[1]FATT+ORD+P.O.'!$A$3:$I$96,8,FALSE),"") -> 0 | G24: 0
B25: Global | C25: 34301.5 | D25: =IFERROR(VLOOKUP(B25,'[1]FATT+ORD+P.O.'!$A$3:$I$96,6,FALSE),"") -> 0 | E25: =IFERROR(VLOOKUP(B25,'[1]FATT+ORD+P.O.'!$A$3:$I$96,7,FALSE),"") -> 0 | F25: =IFERROR(VLOOKUP(B25,'[1]FATT+ORD+P.O.'!$A$3:$I$96,8,FALSE),"") -> 0 | G25: 0
B26: Grohe | C26: 18078.07 | D26: =IFERROR(VLOOKUP(B26,'[1]FATT+ORD+P.O.'!$A$3:$I$96,6,FALSE),"") -> 0 | E26: =IFERROR(VLOOKUP(B26,'[1]FATT+ORD+P.O.'!$A$3:$I$96,7,FALSE),"") -> 0 | F26: =IFERROR(VLOOKUP(B26,'[1]FATT+ORD+P.O.'!$A$3:$I$96,8,FALSE),"") -> 0 | G26: 0
B27: Haier | C27: 9225.85 | D27: =IFERROR(VLOOKUP(B27,'[1]FATT+ORD+P.O.'!$A$3:$I$96,6,FALSE),"") -> 0 | E27: =IFERROR(VLOOKUP(B27,'[1]FATT+ORD+P.O.'!$A$3:$I$96,7,FALSE),"") -> 0 | F27: =IFERROR(VLOOKUP(B27,'[1]FATT+ORD+P.O.'!$A$3:$I$96,8,FALSE),"") -> 0 | G27: 0
B28: Immergas | C28: 124928.85 | D28: =IFERROR(VLOOKUP(B28,'[1]FATT+ORD+P.O.'!$A$3:$I$96,6,FALSE),"") -> 0 | E28: =IFERROR(VLOOKUP(B28,'[1]FATT+ORD+P.O.'!$A$3:$I$96,7,FALSE),"") -> 0 | F28: =IFERROR(VLOOKUP(B28,'[1]FATT+ORD+P.O.'!$A$3:$I$96,8,FALSE),"") -> 0 | G28: 0
B29: LG | C29: 58297.91 | D29: =IFERROR(VLOOKUP(B29,'[1]FATT+ORD+P.O.'!$A$3:$I$96,6,FALSE),"") -> 0 | E29: =IFERROR(VLOOKUP(B29,'[1]FATT+ORD+P.O.'!$A$3:$I$96,7,FALSE),"") -> 0 | F29: =IFERROR(VLOOKUP(B29,'[1]FATT+ORD+P.O.'!$A$3:$I$96,8,FALSE),"") -> 0 | G29: 0
B30: L'isolante K-Flex | C30: 6049.43 | D30: =IFERROR(VLOOKUP(B30,'[1]FATT+ORD+P.O.'!$A$3:$I$96,6,FALSE),"") -> 0 | E30: =IFERROR(VLOOKUP(B30,'[1]FATT+ORD+P.O.'!$A$3:$I$96,7,FALSE),"") -> 0 | F30: =IFERROR(VLOOKUP(B30,'[1]FATT+ORD+P.O.'!$A$3:$I$96,8,FALSE),"") -> 0 | G30: 0
B31: Megius | C31: 4375.8 | D31: =IFERROR(VLOOKUP(B31,'[1]FATT+ORD+P.O.'!$A$3:$I$96,6,FALSE),"") -> 0 | E31: =IFERROR(VLOOKUP(B31,'[1]FATT+ORD+P.O.'!$A$3:$I$96,7,FALSE),"") -> 0 | F31: =IFERROR(VLOOKUP(B31,'[1]FATT+ORD+P.O.'!$A$3:$I$96,8,FALSE),"") -> 0 | G31: 0
B32: Negrari | C32: 1532.11 | D32: =IFERROR(VLOOKUP(B32,'[1]FATT+ORD+P.O.'!$A$3:$I$96,6,FALSE),"") -> 0 | E32: =IFERROR(VLOOKUP(B32,'[1]FATT+ORD+P.O.'!$A$3:$I$96,7,FALSE),"") -> 0 | F32: =IFERROR(VLOOKUP(B32,'[1]FATT+ORD+P.O.'!$A$3:$I$96,8,FALSE),"") -> 0 | G32: 0
B33: Neoperl | C33: 12866.1 | D33: =IFERROR(VLOOKUP(B33,'[1]FATT+ORD+P.O.'!$A$3:$I$96,6,FALSE),"") -> 0 | E33: =IFERROR(VLOOKUP(B33,'[1]FATT+ORD+P.O.'!$A$3:$I$96,7,FALSE),"") -> 0 | F33: =IFERROR(VLOOKUP(B33,'[1]FATT+ORD+P.O.'!$A$3:$I$96,8,FALSE),"") -> 0 | G33: 0
B34: Novellini | C34: 3267.23 | D34: =IFERROR(VLOOKUP(B34,'[1]FATT+ORD+P.O.'!$A$3:$I$96,6,FALSE),"") -> 0 | E34: =IFERROR(VLOOKUP(B34,'[1]FATT+ORD+P.O.'!$A$3:$I$96,7,FALSE),"") -> 0 | F34: =IFERROR(VLOOKUP(B34,'[1]FATT+ORD+P.O.'!$A$3:$I$96,8,FALSE),"") -> 0 | G34: 0
B35: Olimpia Splendid | C35: 1281 | D35: =IFERROR(VLOOKUP(B35,'[1]FATT+ORD+P.O.'!$A$3:$I$96,6,FALSE),"") -> 0 | E35: =IFERROR(VLOOKUP(B35,'[1]FATT+ORD+P.O.'!$A$3:$I$96,7,FALSE),"") -> 0 | F35: =IFERROR(VLOOKUP(B35,'[1]FATT+ORD+P.O.'!$A$3:$I$96,8,FALSE),"") -> 0 | G35: 0
B36: Paini | C36: 2524.73 | D36: =IFERROR(VLOOKUP(B36,'[1]FATT+ORD+P.O.'!$A$3:$I$96,6,FALSE),"") -> 0 | E36: =IFERROR(VLOOKUP(B36,'[1]FATT+ORD+P.O.'!$A$3:$I$96,7,FALSE),"") -> 0 | F36: =IFERROR(VLOOKUP(B36,'[1]FATT+ORD+P.O.'!$A$3:$I$96,8,FALSE),"") -> 0 | G36: 0
B37: Raccorderie Metalliche | C37: 17654.93 | D37: =IFERROR(VLOOKUP(B37,'[1]FATT+ORD+P.O.'!$A$3:$I$96,6,FALSE),"") -> 0 | E37: =IFERROR(VLOOKUP(B37,'[1]FATT+ORD+P.O.'!$A$3:$I$96,7,FALSE),"") -> 0 | F37: =IFERROR(VLOOKUP(B37,'[1]FATT+ORD+P.O.'!$A$3:$I$96,8,FALSE),"") -> 0 | G37: 0
B38: Rems | C38: 316 | D38: =IFERROR(VLOOKUP(B38,'[1]FATT+ORD+P.O.'!$A$3:$I$96,6,FALSE),"") -> 0 | E38: =IFERROR(VLOOKUP(B38,'[1]FATT+ORD+P.O.'!$A$3:$I$96,7,FALSE),"") -> 0 | F38: =IFERROR(VLOOKUP(B38,'[1]FATT+ORD+P.O.'!$A$3:$I$96,8,FALSE),"") -> 0 | G38: 0
B39: River | C39: 1642.99 | D39: =IFERROR(VLOOKUP(B39,'[1]FATT+ORD+P.O.'!$A$3:$I$96,6,FALSE),"") -> 0 | E39: =IFERROR(VLOOKUP(B39,'[1]FATT+ORD+P.O.'!$A$3:$I$96,7,FALSE),"") -> 0 | F39: =IFERROR(VLOOKUP(B39,'[1]FATT+ORD+P.O.'!$A$3:$I$96,8,FALSE),"") -> 0 | G39: 0
B40: System Group (Sa.Mi. Plastic) | C40: 22329.4 | D40: =IFERROR(VLOOKUP(B40,'[1]FATT+ORD+P.O.'!$A$3:$I$96,6,FALSE),"") -> 0 | E40: =IFERROR(VLOOKUP(B40,'[1]FATT+ORD+P.O.'!$A$3:$I$96,7,FALSE),"") -> 0 | F40: =IFERROR(VLOOKUP(B40,'[1]FATT+ORD+P.O.'!$A$3:$I$96,8,FALSE),"") -> 0 | G40: 0
B41: Thermomat Saniline | C41: 8961 | D41: =IFERROR(VLOOKUP(B41,'[1]FATT+ORD+P.O.'!$A$3:$I$96,6,FALSE),"") -> 0 | E41: =IFERROR(VLOOKUP(B41,'[1]FATT+ORD+P.O.'!$A$3:$I$96,7,FALSE),"") -> 0 | F41: =IFERROR(VLOOKUP(B41,'[1]FATT+ORD+P.O.'!$A$3:$I$96,8,FALSE),"") -> 0 | G41: 0
B42: Va-Albertoni | C42: 13618.21 | D42: =IFERROR(VLOOKUP(B42,'[1]FATT+ORD+P.O.'!$A$3:$I$96,6,FALSE),"") -> 0 | E42: =IFERROR(VLOOKUP(B42,'[1]FATT+ORD+P.O.'!$A$3:$I$96,7,FALSE),"") -> 0 | F42: =IFERROR(VLOOKUP(B42,'[1]FATT+ORD+P.O.'!$A$3:$I$96,8,FALSE),"") -> 0 | G42: 0
B43: Valsir | C43: 29347 | D43: =IFERROR(VLOOKUP(B43,'[1]FATT+ORD+P.O.'!$A$3:$I$96,6,FALSE),"") -> 0 | E43: =IFERROR(VLOOKUP(B43,'[1]FATT+ORD+P.O.'!$A$3:$I$96,7,FALSE),"") -> 0 | F43: =IFERROR(VLOOKUP(B43,'[1]FATT+ORD+P.O.'!$A$3:$I$96,8,FALSE),"") -> 0 | G43: 0
B44: Varem | C44: 16405.44 | D44: =IFERROR(VLOOKUP(B44,'[1]FATT+ORD+P.O.'!$A$3:$I$96,6,FALSE),"") -> 0 | E44: =IFERROR(VLOOKUP(B44,'[1]FATT+ORD+P.O.'!$A$3:$I$96,7,FALSE),"") -> 0 | F44: =IFERROR(VLOOKUP(B44,'[1]FATT+ORD+P.O.'!$A$3:$I$96,8,FALSE),"") -> 0 | G44: 0
A45: Totale complessivo | C45: 1033305.776 | D45: =IFERROR(VLOOKUP(B45,'[1]FATT+ORD+P.O.'!$A$3:$I$96,6,FALSE),"") ->  | E45: =IFERROR(VLOOKUP(B45,'[1]FATT+ORD+P.O.'!$A$3:$I$96,7,FALSE),"") ->  | F45: =IFERROR(VLOOKUP(B45,'[1]FATT+ORD+P.O.'!$A$3:$I$96,8,FALSE),"") -> 
D46: =IFERROR(VLOOKUP(B46,'[1]FATT+ORD+P.O.'!$A$3:$I$96,6,FALSE),"") ->  | E46: =IFERROR(VLOOKUP(B46,'[1]FATT+ORD+P.O.'!$A$3:$I$96,7,FALSE),"") ->  | F46: =IFERROR(VLOOKUP(B46,'[1]FATT+ORD+P.O.'!$A$3:$I$96,8,FALSE),"") -> 
D47: =IFERROR(VLOOKUP(B47,'[1]FATT+ORD+P.O.'!$A$3:$I$96,6,FALSE),"") ->  | E47: =IFERROR(VLOOKUP(B47,'[1]FATT+ORD+P.O.'!$A$3:$I$96,7,FALSE),"") ->  | F47: =IFERROR(VLOOKUP(B47,'[1]FATT+ORD+P.O.'!$A$3:$I$96,8,FALSE),"") -> 
D48: =IFERROR(VLOOKUP(B48,'[1]FATT+ORD+P.O.'!$A$3:$I$96,6,FALSE),"") ->  | E48: =IFERROR(VLOOKUP(B48,'[1]FATT+ORD+P.O.'!$A$3:$I$96,7,FALSE),"") ->  | F48: =IFERROR(VLOOKUP(B48,'[1]FATT+ORD+P.O.'!$A$3:$I$96,8,FALSE),"") -> 
D49: =IFERROR(VLOOKUP(B49,'[1]FATT+ORD+P.O.'!$A$3:$I$96,6,FALSE),"") ->  | E49: =IFERROR(VLOOKUP(B49,'[1]FATT+ORD+P.O.'!$A$3:$I$96,7,FALSE),"") ->  | F49: =IFERROR(VLOOKUP(B49,'[1]FATT+ORD+P.O.'!$A$3:$I$96,8,FALSE),"") -> 
D50: =IFERROR(VLOOKUP(B50,'[1]FATT+ORD+P.O.'!$A$3:$I$96,6,FALSE),"") ->  | E50: =IFERROR(VLOOKUP(B50,'[1]FATT+ORD+P.O.'!$A$3:$I$96,7,FALSE),"") ->  | F50: =IFERROR(VLOOKUP(B50,'[1]FATT+ORD+P.O.'!$A$3:$I$96,8,FALSE),"") -> 
D51: =IFERROR(VLOOKUP(B51,'[1]FATT+ORD+P.O.'!$A$3:$I$96,6,FALSE),"") ->  | E51: =IFERROR(VLOOKUP(B51,'[1]FATT+ORD+P.O.'!$A$3:$I$96,7,FALSE),"") ->  | F51: =IFERROR(VLOOKUP(B51,'[1]FATT+ORD+P.O.'!$A$3:$I$96,8,FALSE),"") -> 
D52: =IFERROR(VLOOKUP(B52,'[1]FATT+ORD+P.O.'!$A$3:$I$96,6,FALSE),"") ->  | E52: =IFERROR(VLOOKUP(B52,'[1]FATT+ORD+P.O.'!$A$3:$I$96,7,FALSE),"") ->  | F52: =IFERROR(VLOOKUP(B52,'[1]FATT+ORD+P.O.'!$A$3:$I$96,8,FALSE),"") -> 
D53: =IFERROR(VLOOKUP(B53,'[1]FATT+ORD+P.O.'!$A$3:$I$96,6,FALSE),"") ->  | E53: =IFERROR(VLOOKUP(B53,'[1]FATT+ORD+P.O.'!$A$3:$I$96,7,FALSE),"") ->  | F53: =IFERROR(VLOOKUP(B53,'[1]FATT+ORD+P.O.'!$A$3:$I$96,8,FALSE),"") -> 
D54: =IFERROR(VLOOKUP(B54,'[1]FATT+ORD+P.O.'!$A$3:$I$96,6,FALSE),"") ->  | E54: =IFERROR(VLOOKUP(B54,'[1]FATT+ORD+P.O.'!$A$3:$I$96,7,FALSE),"") ->  | F54: =IFERROR(VLOOKUP(B54,'[1]FATT+ORD+P.O.'!$A$3:$I$96,8,FALSE),"") -> 
D55: =IFERROR(VLOOKUP(B55,'[1]FATT+ORD+P.O.'!$A$3:$I$96,6,FALSE),"") ->  | E55: =IFERROR(VLOOKUP(B55,'[1]FATT+ORD+P.O.'!$A$3:$I$96,7,FALSE),"") ->  | F55: =IFERROR(VLOOKUP(B55,'[1]FATT+ORD+P.O.'!$A$3:$I$96,8,FALSE),"") -> 
D56: =IFERROR(VLOOKUP(B56,'[1]FATT+ORD+P.O.'!$A$3:$I$96,6,FALSE),"") ->  | E56: =IFERROR(VLOOKUP(B56,'[1]FATT+ORD+P.O.'!$A$3:$I$96,7,FALSE),"") ->  | F56: =IFERROR(VLOOKUP(B56,'[1]FATT+ORD+P.O.'!$A$3:$I$96,8,FALSE),"") -> 
D57: =IFERROR(VLOOKUP(B57,'[1]FATT+ORD+P.O.'!$A$3:$I$96,6,FALSE),"") ->  | E57: =IFERROR(VLOOKUP(B57,'[1]FATT+ORD+P.O.'!$A$3:$I$96,7,FALSE),"") ->  | F57: =IFERROR(VLOOKUP(B57,'[1]FATT+ORD+P.O.'!$A$3:$I$96,8,FALSE),"") -> 
D58: =IFERROR(VLOOKUP(B58,'[1]FATT+ORD+P.O.'!$A$3:$I$96,6,FALSE),"") ->  | E58: =IFERROR(VLOOKUP(B58,'[1]FATT+ORD+P.O.'!$A$3:$I$96,7,FALSE),"") ->  | F58: =IFERROR(VLOOKUP(B58,'[1]FATT+ORD+P.O.'!$A$3:$I$96,8,FALSE),"") -> 
D59: =IFERROR(VLOOKUP(B59,'[1]FATT+ORD+P.O.'!$A$3:$I$96,6,FALSE),"") ->  | E59: =IFERROR(VLOOKUP(B59,'[1]FATT+ORD+P.O.'!$A$3:$I$96,7,FALSE),"") ->  | F59: =IFERROR(VLOOKUP(B59,'[1]FATT+ORD+P.O.'!$A$3:$I$96,8,FALSE),"") -> 
D60: =IFERROR(VLOOKUP(B60,'[1]FATT+ORD+P.O.'!$A$3:$I$96,6,FALSE),"") ->  | E60: =IFERROR(VLOOKUP(B60,'[1]FATT+ORD+P.O.'!$A$3:$I$96,7,FALSE),"") ->  | F60: =IFERROR(VLOOKUP(B60,'[1]FATT+ORD+P.O.'!$A$3:$I$96,8,FALSE),"") -> 
D61: =IFERROR(VLOOKUP(B61,'[1]FATT+ORD+P.O.'!$A$3:$I$96,6,FALSE),"") ->  | E61: =IFERROR(VLOOKUP(B61,'[1]FATT+ORD+P.O.'!$A$3:$I$96,7,FALSE),"") ->  | F61: =IFERROR(VLOOKUP(B61,'[1]FATT+ORD+P.O.'!$A$3:$I$96,8,FALSE),"") -> 
D62: =IFERROR(VLOOKUP(B62,'[1]FATT+ORD+P.O.'!$A$3:$I$96,6,FALSE),"") ->  | E62: =IFERROR(VLOOKUP(B62,'[1]FATT+ORD+P.O.'!$A$3:$I$96,7,FALSE),"") ->  | F62: =IFERROR(VLOOKUP(B62,'[1]FATT+ORD+P.O.'!$A$3:$I$96,8,FALSE),"") -> 
D63: =IFERROR(VLOOKUP(B63,'[1]FATT+ORD+P.O.'!$A$3:$I$96,6,FALSE),"") ->  | E63: =IFERROR(VLOOKUP(B63,'[1]FATT+ORD+P.O.'!$A$3:$I$96,7,FALSE),"") ->  | F63: =IFERROR(VLOOKUP(B63,'[1]FATT+ORD+P.O.'!$A$3:$I$96,8,FALSE),"") -> 
D64: =IFERROR(VLOOKUP(B64,'[1]FATT+ORD+P.O.'!$A$3:$I$96,6,FALSE),"") ->  | E64: =IFERROR(VLOOKUP(B64,'[1]FATT+ORD+P.O.'!$A$3:$I$96,7,FALSE),"") ->  | F64: =IFERROR(VLOOKUP(B64,'[1]FATT+ORD+P.O.'!$A$3:$I$96,8,FALSE),"") -> 
D65: =IFERROR(VLOOKUP(B65,'[1]FATT+ORD+P.O.'!$A$3:$I$96,6,FALSE),"") ->  | E65: =IFERROR(VLOOKUP(B65,'[1]FATT+ORD+P.O.'!$A$3:$I$96,7,FALSE),"") ->  | F65: =IFERROR(VLOOKUP(B65,'[1]FATT+ORD+P.O.'!$A$3:$I$96,8,FALSE),"") -> 
D66: =IFERROR(VLOOKUP(B66,'[1]FATT+ORD+P.O.'!$A$3:$I$96,6,FALSE),"") ->  | E66: =IFERROR(VLOOKUP(B66,'[1]FATT+ORD+P.O.'!$A$3:$I$96,7,FALSE),"") ->  | F66: =IFERROR(VLOOKUP(B66,'[1]FATT+ORD+P.O.'!$A$3:$I$96,8,FALSE),"") -> 
D67: =IFERROR(VLOOKUP(B67,'[1]FATT+ORD+P.O.'!$A$3:$I$96,6,FALSE),"") ->  | E67: =IFERROR(VLOOKUP(B67,'[1]FATT+ORD+P.O.'!$A$3:$I$96,7,FALSE),"") ->  | F67: =IFERROR(VLOOKUP(B67,'[1]FATT+ORD+P.O.'!$A$3:$I$96,8,FALSE),"") -> 
D68: =IFERROR(VLOOKUP(B68,'[1]FATT+ORD+P.O.'!$A$3:$I$96,6,FALSE),"") ->  | E68: =IFERROR(VLOOKUP(B68,'[1]FATT+ORD+P.O.'!$A$3:$I$96,7,FALSE),"") ->  | F68: =IFERROR(VLOOKUP(B68,'[1]FATT+ORD+P.O.'!$A$3:$I$96,8,FALSE),"") -> 
D69: =IFERROR(VLOOKUP(B69,'[1]FATT+ORD+P.O.'!$A$3:$I$96,6,FALSE),"") ->  | E69: =IFERROR(VLOOKUP(B69,'[1]FATT+ORD+P.O.'!$A$3:$I$96,7,FALSE),"") ->  | F69: =IFERROR(VLOOKUP(B69,'[1]FATT+ORD+P.O.'!$A$3:$I$96,8,FALSE),"") -> 
D70: =IFERROR(VLOOKUP(B70,'[1]FATT+ORD+P.O.'!$A$3:$I$96,6,FALSE),"") ->  | E70: =IFERROR(VLOOKUP(B70,'[1]FATT+ORD+P.O.'!$A$3:$I$96,7,FALSE),"") ->  | F70: =IFERROR(VLOOKUP(B70,'[1]FATT+ORD+P.O.'!$A$3:$I$96,8,FALSE),"") -> 
D71: =IFERROR(VLOOKUP(B71,'[1]FATT+ORD+P.O.'!$A$3:$I$96,6,FALSE),"") ->  | E71: =IFERROR(VLOOKUP(B71,'[1]FATT+ORD+P.O.'!$A$3:$I$96,7,FALSE),"") ->  | F71: =IFERROR(VLOOKUP(B71,'[1]FATT+ORD+P.O.'!$A$3:$I$96,8,FALSE),"") ->  | G71: =IFERROR(C71*(D71+E71+F71),"") -> 
D72: =IFERROR(VLOOKUP(B72,'[1]FATT+ORD+P.O.'!$A$3:$I$96,6,FALSE),"") ->  | E72: =IFERROR(VLOOKUP(B72,'[1]FATT+ORD+P.O.'!$A$3:$I$96,7,FALSE),"") ->  | F72: =IFERROR(VLOOKUP(B72,'[1]FATT+ORD+P.O.'!$A$3:$I$96,8,FALSE),"") -> 
D73: =IFERROR(VLOOKUP(B73,'[1]FATT+ORD+P.O.'!$A$3:$I$96,6,FALSE),"") ->  | E73: =IFERROR(VLOOKUP(B73,'[1]FATT+ORD+P.O.'!$A$3:$I$96,7,FALSE),"") ->  | F73: =IFERROR(VLOOKUP(B73,'[1]FATT+ORD+P.O.'!$A$3:$I$96,8,FALSE),"") -> 
D74: =IFERROR(VLOOKUP(B74,'[1]FATT+ORD+P.O.'!$A$3:$I$96,6,FALSE),"") ->  | E74: =IFERROR(VLOOKUP(B74,'[1]FATT+ORD+P.O.'!$A$3:$I$96,7,FALSE),"") ->  | F74: =IFERROR(VLOOKUP(B74,'[1]FATT+ORD+P.O.'!$A$3:$I$96,8,FALSE),"") -> 
D75: =IFERROR(VLOOKUP(B75,'[1]FATT+ORD+P.O.'!$A$3:$I$96,6,FALSE),"") ->  | E75: =IFERROR(VLOOKUP(B75,'[1]FATT+ORD+P.O.'!$A$3:$I$96,7,FALSE),"") ->  | F75: =IFERROR(VLOOKUP(B75,'[1]FATT+ORD+P.O.'!$A$3:$I$96,8,FALSE),"") -> 
D76: =IFERROR(VLOOKUP(B76,'[1]FATT+ORD+P.O.'!$A$3:$I$96,6,FALSE),"") ->  | E76: =IFERROR(VLOOKUP(B76,'[1]FATT+ORD+P.O.'!$A$3:$I$96,7,FALSE),"") ->  | F76: =IFERROR(VLOOKUP(B76,'[1]FATT+ORD+P.O.'!$A$3:$I$96,8,FALSE),"") -> 
D77: =IFERROR(VLOOKUP(B77,'[1]FATT+ORD+P.O.'!$A$3:$I$96,6,FALSE),"") ->  | E77: =IFERROR(VLOOKUP(B77,'[1]FATT+ORD+P.O.'!$A$3:$I$96,7,FALSE),"") ->  | F77: =IFERROR(VLOOKUP(B77,'[1]FATT+ORD+P.O.'!$A$3:$I$96,8,FALSE),"") -> 
D78: =IFERROR(VLOOKUP(B78,'[1]FATT+ORD+P.O.'!$A$3:$I$96,6,FALSE),"") ->  | E78: =IFERROR(VLOOKUP(B78,'[1]FATT+ORD+P.O.'!$A$3:$I$96,7,FALSE),"") ->  | F78: =IFERROR(VLOOKUP(B78,'[1]FATT+ORD+P.O.'!$A$3:$I$96,8,FALSE),"") -> 
D79: =IFERROR(VLOOKUP(B79,'[1]FATT+ORD+P.O.'!$A$3:$I$96,6,FALSE),"") ->  | E79: =IFERROR(VLOOKUP(B79,'[1]FATT+ORD+P.O.'!$A$3:$I$96,7,FALSE),"") ->  | F79: =IFERROR(VLOOKUP(B79,'[1]FATT+ORD+P.O.'!$A$3:$I$96,8,FALSE),"") -> 
D80: =IFERROR(VLOOKUP(B80,'[1]FATT+ORD+P.O.'!$A$3:$I$96,6,FALSE),"") ->  | E80: =IFERROR(VLOOKUP(B80,'[1]FATT+ORD+P.O.'!$A$3:$I$96,7,FALSE),"") ->  | F80: =IFERROR(VLOOKUP(B80,'[1]FATT+ORD+P.O.'!$A$3:$I$96,8,FALSE),"") -> 
D81: =IFERROR(VLOOKUP(B81,'[1]FATT+ORD+P.O.'!$A$3:$I$96,6,FALSE),"") ->  | E81: =IFERROR(VLOOKUP(B81,'[1]FATT+ORD+P.O.'!$A$3:$I$96,7,FALSE),"") ->  | F81: =IFERROR(VLOOKUP(B81,'[1]FATT+ORD+P.O.'!$A$3:$I$96,8,FALSE),"") -> 
D82: =IFERROR(VLOOKUP(B82,'[1]FATT+ORD+P.O.'!$A$3:$I$96,6,FALSE),"") ->  | E82: =IFERROR(VLOOKUP(B82,'[1]FATT+ORD+P.O.'!$A$3:$I$96,7,FALSE),"") ->  | F82: =IFERROR(VLOOKUP(B82,'[1]FATT+ORD+P.O.'!$A$3:$I$96,8,FALSE),"") -> 
D83: =IFERROR(VLOOKUP(B83,'[1]FATT+ORD+P.O.'!$A$3:$I$96,6,FALSE),"") ->  | E83: =IFERROR(VLOOKUP(B83,'[1]FATT+ORD+P.O.'!$A$3:$I$96,7,FALSE),"") ->  | F83: =IFERROR(VLOOKUP(B83,'[1]FATT+ORD+P.O.'!$A$3:$I$96,8,FALSE),"") -> 
D84: =IFERROR(VLOOKUP(B84,'[1]FATT+ORD+P.O.'!$A$3:$I$96,6,FALSE),"") ->  | E84: =IFERROR(VLOOKUP(B84,'[1]FATT+ORD+P.O.'!$A$3:$I$96,7,FALSE),"") ->  | F84: =IFERROR(VLOOKUP(B84,'[1]FATT+ORD+P.O.'!$A$3:$I$96,8,FALSE),"") -> 
D85: =IFERROR(VLOOKUP(B85,'[1]FATT+ORD+P.O.'!$A$3:$I$96,6,FALSE),"") ->  | E85: =IFERROR(VLOOKUP(B85,'[1]FATT+ORD+P.O.'!$A$3:$I$96,7,FALSE),"") ->  | F85: =IFERROR(VLOOKUP(B85,'[1]FATT+ORD+P.O.'!$A$3:$I$96,8,FALSE),"") -> 
D86: =IFERROR(VLOOKUP(B86,'[1]FATT+ORD+P.O.'!$A$3:$I$96,6,FALSE),"") ->  | E86: =IFERROR(VLOOKUP(B86,'[1]FATT+ORD+P.O.'!$A$3:$I$96,7,FALSE),"") ->  | F86: =IFERROR(VLOOKUP(B86,'[1]FATT+ORD+P.O.'!$A$3:$I$96,8,FALSE),"") -> 
D87: =IFERROR(VLOOKUP(B87,'[1]FATT+ORD+P.O.'!$A$3:$I$96,6,FALSE),"") ->  | E87: =IFERROR(VLOOKUP(B87,'[1]FATT+ORD+P.O.'!$A$3:$I$96,7,FALSE),"") ->  | F87: =IFERROR(VLOOKUP(B87,'[1]FATT+ORD+P.O.'!$A$3:$I$96,8,FALSE),"") -> 
D88: =IFERROR(VLOOKUP(B88,'[1]FATT+ORD+P.O.'!$A$3:$I$96,6,FALSE),"") ->  | E88: =IFERROR(VLOOKUP(B88,'[1]FATT+ORD+P.O.'!$A$3:$I$96,7,FALSE),"") ->  | F88: =IFERROR(VLOOKUP(B88,'[1]FATT+ORD+P.O.'!$A$3:$I$96,8,FALSE),"") -> 
D89: =IFERROR(VLOOKUP(B89,'[1]FATT+ORD+P.O.'!$A$3:$I$96,6,FALSE),"") ->  | E89: =IFERROR(VLOOKUP(B89,'[1]FATT+ORD+P.O.'!$A$3:$I$96,7,FALSE),"") ->  | F89: =IFERROR(VLOOKUP(B89,'[1]FATT+ORD+P.O.'!$A$3:$I$96,8,FALSE),"") -> 
D90: =IFERROR(VLOOKUP(B90,'[1]FATT+ORD+P.O.'!$A$3:$I$96,6,FALSE),"") ->  | E90: =IFERROR(VLOOKUP(B90,'[1]FATT+ORD+P.O.'!$A$3:$I$96,7,FALSE),"") ->  | F90: =IFERROR(VLOOKUP(B90,'[1]FATT+ORD+P.O.'!$A$3:$I$96,8,FALSE),"") -> 
D91: =IFERROR(VLOOKUP(B91,'[1]FATT+ORD+P.O.'!$A$3:$I$96,6,FALSE),"") ->  | E91: =IFERROR(VLOOKUP(B91,'[1]FATT+ORD+P.O.'!$A$3:$I$96,7,FALSE),"") ->  | F91: =IFERROR(VLOOKUP(B91,'[1]FATT+ORD+P.O.'!$A$3:$I$96,8,FALSE),"") -> 
D92: =IFERROR(VLOOKUP(B92,'[1]FATT+ORD+P.O.'!$A$3:$I$96,6,FALSE),"") ->  | E92: =IFERROR(VLOOKUP(B92,'[1]FATT+ORD+P.O.'!$A$3:$I$96,7,FALSE),"") ->  | F92: =IFERROR(VLOOKUP(B92,'[1]FATT+ORD+P.O.'!$A$3:$I$96,8,FALSE),"") -> 
D93: =IFERROR(VLOOKUP(B93,'[1]FATT+ORD+P.O.'!$A$3:$I$96,6,FALSE),"") ->  | E93: =IFERROR(VLOOKUP(B93,'[1]FATT+ORD+P.O.'!$A$3:$I$96,7,FALSE),"") ->  | F93: =IFERROR(VLOOKUP(B93,'[1]FATT+ORD+P.O.'!$A$3:$I$96,8,FALSE),"") -> 
D94: =IFERROR(VLOOKUP(B94,'[1]FATT+ORD+P.O.'!$A$3:$I$96,6,FALSE),"") ->  | E94: =IFERROR(VLOOKUP(B94,'[1]FATT+ORD+P.O.'!$A$3:$I$96,7,FALSE),"") ->  | F94: =IFERROR(VLOOKUP(B94,'[1]FATT+ORD+P.O.'!$A$3:$I$96,8,FALSE),"") -> 
D95: =IFERROR(VLOOKUP(B95,'[1]FATT+ORD+P.O.'!$A$3:$I$96,6,FALSE),"") ->  | E95: =IFERROR(VLOOKUP(B95,'[1]FATT+ORD+P.O.'!$A$3:$I$96,7,FALSE),"") ->  | F95: =IFERROR(VLOOKUP(B95,'[1]FATT+ORD+P.O.'!$A$3:$I$96,8,FALSE),"") -> 
D96: =IFERROR(VLOOKUP(B96,'[1]FATT+ORD+P.O.'!$A$3:$I$96,6,FALSE),"") ->  | E96: =IFERROR(VLOOKUP(B96,'[1]FATT+ORD+P.O.'!$A$3:$I$96,7,FALSE),"") ->  | F96: =IFERROR(VLOOKUP(B96,'[1]FATT+ORD+P.O.'!$A$3:$I$96,8,FALSE),"") -> 
D97: =IFERROR(VLOOKUP(B97,'[1]FATT+ORD+P.O.'!$A$3:$I$96,6,FALSE),"") ->  | E97: =IFERROR(VLOOKUP(B97,'[1]FATT+ORD+P.O.'!$A$3:$I$96,7,FALSE),"") ->  | F97: =IFERROR(VLOOKUP(B97,'[1]FATT+ORD+P.O.'!$A$3:$I$96,8,FALSE),"") -> 
D98: =IFERROR(VLOOKUP(B98,'[1]FATT+ORD+P.O.'!$A$3:$I$96,6,FALSE),"") ->  | E98: =IFERROR(VLOOKUP(B98,'[1]FATT+ORD+P.O.'!$A$3:$I$96,7,FALSE),"") ->  | F98: =IFERROR(VLOOKUP(B98,'[1]FATT+ORD+P.O.'!$A$3:$I$96,8,FALSE),"") -> 
D99: =IFERROR(VLOOKUP(B99,'[1]FATT+ORD+P.O.'!$A$3:$I$96,6,FALSE),"") ->  | E99: =IFERROR(VLOOKUP(B99,'[1]FATT+ORD+P.O.'!$A$3:$I$96,7,FALSE),"") ->  | F99: =IFERROR(VLOOKUP(B99,'[1]FATT+ORD+P.O.'!$A$3:$I$96,8,FALSE),"") -> 
D100: =IFERROR(VLOOKUP(B100,'[1]FATT+ORD+P.O.'!$A$3:$I$96,6,FALSE),"") ->  | E100: =IFERROR(VLOOKUP(B100,'[1]FATT+ORD+P.O.'!$A$3:$I$96,7,FALSE),"") ->  | F100: =IFERROR(VLOOKUP(B100,'[1]FATT+ORD+P.O.'!$A$3:$I$96,8,FALSE),"") -> 
D101: =IFERROR(VLOOKUP(B101,'[1]FATT+ORD+P.O.'!$A$3:$I$96,6,FALSE),"") ->  | E101: =IFERROR(VLOOKUP(B101,'[1]FATT+ORD+P.O.'!$A$3:$I$96,7,FALSE),"") ->  | F101: =IFERROR(VLOOKUP(B101,'[1]FATT+ORD+P.O.'!$A$3:$I$96,8,FALSE),"") -> 
G102: 0
